Publisher Label,Publisher URI,"Directorate code","Directorate","Service code","Service","Revenue or capital code","Revenue capital","Cost centre","Cost centre description","Bvsub Category","Bvsub description","Bvsum code","Bvsum description","Account code","Account description","Transaction No","Period","Transaction Date","Amount","Classification code","Classification description","Supplier ID","Supplier description","Company registration number","Company registration number Uri","VAT registration number"
"London Borough of Redbridge","http://opendatacommunities.org/doc/london-borough-council/redbridge","6BADULTSOCIA","Adult Social Care","6COLDINCMENT","Older People (65 or over) incl. Older Mentally Ill","REV","Revenue","R4385","OP Nursing","09-INCOME","Income","09C","Customer and Client Receipts","8557","Nursing Home Charges","91033581","201911",08/01/2019 00:00:00,-2209.76,"53350","Nursing Homes","REDACTED DATA","HC ONE OVAL(SEABROOKE MANOR)","10257888","http://opencorporates.com/companies/gb/10257888","283937558"
"London Borough of Redbridge","http://opendatacommunities.org/doc/london-borough-council/redbridge","6BADULTSOCIA","Adult Social Care","6COLDINCMENT","Older People (65 or over) incl. Older Mentally Ill","REV","Revenue","R4385","OP Nursing","09-INCOME","Income","09C","Customer and Client Receipts","8557","Nursing Home Charges","91033555","201911",08/01/2019 00:00:00,-2209.6,"53350","Nursing Homes","REDACTED DATA","HC ONE OVAL(SEABROOKE MANOR)","10257888","http://opencorporates.com/companies/gb/10257888","283937558"
"London Borough of Redbridge","http://opendatacommunities.org/doc/london-borough-council/redbridge","9BNONBVO","Outside the BVACOP Objective Structure","9CNONBVO","Outside the BVACOP Objective Structure","CAP","Capital","C1055","IT Modernisation-Data Ctr Cloud-Data Centre","99-NONBV","Capital, Balance Sheet and Control","50B","Capital - Contracted Works","9094","ICT","60396811","201911",28/01/2019 00:00:00,5040,"76510","Telecommunication Services","REDACTED DATA","VIRGIN MEDIA PAYMENTS LTD(MAIN ACCT)","1785381","http://opencorporates.com/companies/gb/1785381","591819014"
"London Borough of Redbridge","http://opendatacommunities.org/doc/london-borough-council/redbridge","3BNONSCHFUND","Non-School Funding","3CNONSCH","Non Schools","REV","Revenue","R3962","Early Years - 3 and 4 Year Olds","05-THIRD","Third Party Payments","05A","Independent units within the council","6517","Non-Maintained Schools","3541825","201911",28/02/2019 00:00:00,6036.49,"17580","Childcare Services","REDACTED DATA","BEEHIVE EDUCATION LTD","8788435","http://opencorporates.com/companies/gb/8788435",""
"London Borough of Redbridge","http://opendatacommunities.org/doc/london-borough-council/redbridge","6BADULTSOCIA","Adult Social Care","6CADLEARNDIS","Adults Under 65 with Learning Disabilities","REV","Revenue","R4218","LD Individual Budgets","06-TRANSFER","Transfer Payments","06B","Social Services Clients","7053","Direct Payments","3539059","201911",04/02/2019 00:00:00,6009.72,"90005","Home Care Services DP","REDACTED DATA","REDACTED DATA","",,""
"London Borough of Redbridge","http://opendatacommunities.org/doc/london-borough-council/redbridge","3BNONSCHFUND","Non-School Funding","6CCHILLOOKED","Children Looked After","REV","Revenue","R2238","Looked After Children Placements LA","05-THIRD","Third Party Payments","05H","Private contractors","6917","Fostering Costs - Agency","60395700","201911",31/01/2019 00:00:00,6009.66,"1880","Adoption and Fostering","REDACTED DATA","NATIONAL FOSTERING AGENCY","3127814","http://opencorporates.com/companies/gb/3127814","673006159"
"London Borough of Redbridge","http://opendatacommunities.org/doc/london-borough-council/redbridge","6BADULTSOCIA","Adult Social Care","6CADPHYSDIS","Adults Under 65 with Phys Disab or Sensory Impair","REV","Revenue","R4214","PD Direct Payments","06-TRANSFER","Transfer Payments","06B","Social Services Clients","7053","Direct Payments","3538872","201911",04/02/2019 00:00:00,6331.04,"90005","Home Care Services DP","REDACTED DATA","REDACTED DATA","",,""
"London Borough of Redbridge","http://opendatacommunities.org/doc/london-borough-council/redbridge","6BADULTSOCIA","Adult Social Care","6CADPHYSDIS","Adults Under 65 with Phys Disab or Sensory Impair","REV","Revenue","R4214","PD Direct Payments","09-INCOME","Income","09C","Customer and Client Receipts","8545","Direct Payments Income","3538872","201911",04/02/2019 00:00:00,-324.72,"90005","Home Care Services DP","REDACTED DATA","REDACTED DATA","",,""
"London Borough of Redbridge","http://opendatacommunities.org/doc/london-borough-council/redbridge","9BNONBVO","Outside the BVACOP Objective Structure","9CNONBVO","Outside the BVACOP Objective Structure","CAP","Capital","C2018","Investment Assets � Acquisition","99-NONBV","Capital, Balance Sheet and Control","50B","Capital - Contracted Works","9055","External - Consultants Fees","60395483","201911",11/12/2018 00:00:00,5000,"47846","Letting Agents","REDACTED DATA","STRETTONS LTD","268552","http://opencorporates.com/companies/gb/268552",""
"London Borough of Redbridge","http://opendatacommunities.org/doc/london-borough-council/redbridge","9BNONBVO","Outside the BVACOP Objective Structure","9CNONBVO","Outside the BVACOP Objective Structure","CAP","Capital","C2203","Accident Remediation Local Safety TFL","99-NONBV","Capital, Balance Sheet and Control","50E","Capital - Contract Payments","9153","Carriageways","3539976","201911",07/02/2019 00:00:00,5000,"18632","Civil Engineers","REDACTED DATA","KENSON CONTRACTORS BENINGTON LTD","1314691","http://opencorporates.com/companies/gb/1314691","301629589"
"London Borough of Redbridge","http://opendatacommunities.org/doc/london-borough-council/redbridge","9BNONBVO","Outside the BVACOP Objective Structure","9CNONBVO","Outside the BVACOP Objective Structure","CAP","Capital","C2203","Accident Remediation Local Safety TFL","99-NONBV","Capital, Balance Sheet and Control","50E","Capital - Contract Payments","9153","Carriageways","3539974","201911",07/02/2019 00:00:00,5000,"18632","Civil Engineers","REDACTED DATA","KENSON CONTRACTORS BENINGTON LTD","1314691","http://opencorporates.com/companies/gb/1314691","301629589"
"London Borough of Redbridge","http://opendatacommunities.org/doc/london-borough-council/redbridge","9BNONBVO","Outside the BVACOP Objective Structure","9CNONBVO","Outside the BVACOP Objective Structure","CAP","Capital","C2203","Accident Remediation Local Safety TFL","99-NONBV","Capital, Balance Sheet and Control","50E","Capital - Contract Payments","9153","Carriageways","3539972","201911",07/02/2019 00:00:00,5000,"18632","Civil Engineers","REDACTED DATA","KENSON CONTRACTORS BENINGTON LTD","1314691","http://opencorporates.com/companies/gb/1314691","301629589"
"London Borough of Redbridge","http://opendatacommunities.org/doc/london-borough-council/redbridge","9BNONBVO","Outside the BVACOP Objective Structure","9CNONBVO","Outside the BVACOP Objective Structure","CAP","Capital","C2203","Accident Remediation Local Safety TFL","99-NONBV","Capital, Balance Sheet and Control","50E","Capital - Contract Payments","9153","Carriageways","3539977","201911",07/02/2019 00:00:00,5000,"18632","Civil Engineers","REDACTED DATA","KENSON CONTRACTORS BENINGTON LTD","1314691","http://opencorporates.com/companies/gb/1314691","301629589"
"London Borough of Redbridge","http://opendatacommunities.org/doc/london-borough-council/redbridge","9BNONBVO","Outside the BVACOP Objective Structure","9CNONBVO","Outside the BVACOP Objective Structure","CAP","Capital","C2203","Accident Remediation Local Safety TFL","99-NONBV","Capital, Balance Sheet and Control","50E","Capital - Contract Payments","9153","Carriageways","3539978","201911",07/02/2019 00:00:00,18545.89,"18632","Civil Engineers","REDACTED DATA","KENSON CONTRACTORS BENINGTON LTD","1314691","http://opencorporates.com/companies/gb/1314691","301629589"
"London Borough of Redbridge","http://opendatacommunities.org/doc/london-borough-council/redbridge","9BNONBVO","Outside the BVACOP Objective Structure","9CNONBVO","Outside the BVACOP Objective Structure","CAP","Capital","C2203","Accident Remediation Local Safety TFL","99-NONBV","Capital, Balance Sheet and Control","50E","Capital - Contract Payments","9153","Carriageways","3540669","201911",14/02/2019 00:00:00,5000,"18632","Civil Engineers","REDACTED DATA","KENSON CONTRACTORS BENINGTON LTD","1314691","http://opencorporates.com/companies/gb/1314691","301629589"
"London Borough of Redbridge","http://opendatacommunities.org/doc/london-borough-council/redbridge","9BNONBVO","Outside the BVACOP Objective Structure","9CNONBVO","Outside the BVACOP Objective Structure","CAP","Capital","C2203","Accident Remediation Local Safety TFL","99-NONBV","Capital, Balance Sheet and Control","50E","Capital - Contract Payments","9157","Footways & cycle tracks","3539978","201911",07/02/2019 00:00:00,-13545.89,"18632","Civil Engineers","REDACTED DATA","KENSON CONTRACTORS BENINGTON LTD","1314691","http://opencorporates.com/companies/gb/1314691","301629589"
"London Borough of Redbridge","http://opendatacommunities.org/doc/london-borough-council/redbridge","9BNONBVO","Outside the BVACOP Objective Structure","9CNONBVO","Outside the BVACOP Objective Structure","CAP","Capital","C2223","Highways Preventative Maintenance LBR","99-NONBV","Capital, Balance Sheet and Control","50E","Capital - Contract Payments","9185","Asset Under construction","3541956","201911",28/02/2019 00:00:00,5000,"18632","Civil Engineers","REDACTED DATA","KENSON CONTRACTORS BENINGTON LTD","1314691","http://opencorporates.com/companies/gb/1314691","301629589"
"London Borough of Redbridge","http://opendatacommunities.org/doc/london-borough-council/redbridge","9BNONBVO","Outside the BVACOP Objective Structure","9CNONBVO","Outside the BVACOP Objective Structure","CAP","Capital","C2223","Highways Preventative Maintenance LBR","99-NONBV","Capital, Balance Sheet and Control","50E","Capital - Contract Payments","9185","Asset Under construction","3539986","201911",07/02/2019 00:00:00,5000,"18632","Civil Engineers","REDACTED DATA","KENSON CONTRACTORS BENINGTON LTD","1314691","http://opencorporates.com/companies/gb/1314691","301629589"
"London Borough of Redbridge","http://opendatacommunities.org/doc/london-borough-council/redbridge","9BNONBVO","Outside the BVACOP Objective Structure","9CNONBVO","Outside the BVACOP Objective Structure","CAP","Capital","C2237","Minor Works for People with Impaired Mobility LBR","99-NONBV","Capital, Balance Sheet and Control","50E","Capital - Contract Payments","9157","Footways & cycle tracks","3541950","201911",28/02/2019 00:00:00,5000,"18632","Civil Engineers","REDACTED DATA","KENSON CONTRACTORS BENINGTON LTD","1314691","http://opencorporates.com/companies/gb/1314691","301629589"
"London Borough of Redbridge","http://opendatacommunities.org/doc/london-borough-council/redbridge","6BADULTSOCIA","Adult Social Care","6CADLEARNDIS","Adults Under 65 with Learning Disabilities","REV","Revenue","R4215","LD Direct Payments","06-TRANSFER","Transfer Payments","06B","Social Services Clients","7053","Direct Payments","3539008","201911",04/02/2019 00:00:00,6087.4,"90005","Home Care Services DP","REDACTED DATA","REDACTED DATA","",,""
"London Borough of Redbridge","http://opendatacommunities.org/doc/london-borough-council/redbridge","6BADULTSOCIA","Adult Social Care","6CADLEARNDIS","Adults Under 65 with Learning Disabilities","REV","Revenue","R4215","LD Direct Payments","09-INCOME","Income","09C","Customer and Client Receipts","8545","Direct Payments Income","3539008","201911",04/02/2019 00:00:00,-92,"90005","Home Care Services DP","REDACTED DATA","REDACTED DATA","",,""
"London Borough of Redbridge","http://opendatacommunities.org/doc/london-borough-council/redbridge","3BNONSCHFUND","Non-School Funding","6CCHILLOOKED","Children Looked After","REV","Revenue","R2238","Looked After Children Placements LA","05-THIRD","Third Party Payments","05H","Private contractors","6917","Fostering Costs - Agency","60394168","201910",17/01/2019 00:00:00,5978.04,"1880","Adoption and Fostering","REDACTED DATA","NEXT STEP FOSTERING SERVICES LTD","5160087","http://opencorporates.com/companies/gb/5160087",""
"London Borough of Redbridge","http://opendatacommunities.org/doc/london-borough-council/redbridge","3BNONSCHFUND","Non-School Funding","3CNONSCH","Non Schools","REV","Revenue","R3962","Early Years - 3 and 4 Year Olds","05-THIRD","Third Party Payments","05A","Independent units within the council","6517","Non-Maintained Schools","3541777","201911",28/02/2019 00:00:00,5954.82,"59760","Playgroups, Nurseries and Creches","REDACTED DATA","LITTLE ACORNS CHILDREN CLUB CIC","7930059","http://opencorporates.com/companies/gb/7930059",""
"London Borough of Redbridge","http://opendatacommunities.org/doc/london-borough-council/redbridge","6BADULTSOCIA","Adult Social Care","6CADLEARNDIS","Adults Under 65 with Learning Disabilities","REV","Revenue","R4188","LD - Residential Care","05-THIRD","Third Party Payments","05F","Voluntary associations","6802","Residential Homes","91030513","201911",08/01/2019 00:00:00,5914.64,"64710","Residential Care Homes","REDACTED DATA","EDEN SUPPORTED SERVICES LTD","8534225","http://opencorporates.com/companies/gb/8534225",""
"London Borough of Redbridge","http://opendatacommunities.org/doc/london-borough-council/redbridge","3BINDSCHFUND","Individual School Funds","3CDELSECOND","Delegated Individual Secondary School Budgets","REV","Revenue","S2201","TRINITY: CAPITAL: LCVAP","99-NONBV","Capital, Balance Sheet and Control","99B","Accounting & Control","7409","Schools Capital New Construction, Conversion and Renovation","60397460","201911",31/01/2019 00:00:00,5913.6,"11040","Builders","REDACTED DATA","M & G CONSTRUCTION LTD.","1918880","http://opencorporates.com/companies/gb/1918880","406392853"
"London Borough of Redbridge","http://opendatacommunities.org/doc/london-borough-council/redbridge","2BENVIRONMEN","Environmental Services","2CWASTECOLLN","Waste Collection","REV","Revenue","R6211","Kerbside Recycling","04-SUPPLIES","Supplies And Services","04A","Equipment, furniture and materials","5510","Materials","60394999","201910",28/01/2019 00:00:00,4922.4,"21760","Container Mnfrs","REDACTED DATA","STRAIGHT MANUFACTURING LTD","1618165","http://opencorporates.com/companies/gb/1618165","927572986"
"London Borough of Redbridge","http://opendatacommunities.org/doc/london-borough-council/redbridge","6BADULTSOCIA","Adult Social Care","6CADLEARNDIS","Adults Under 65 with Learning Disabilities","REV","Revenue","R4188","LD - Residential Care","05-THIRD","Third Party Payments","05F","Voluntary associations","6802","Residential Homes","91033602","201911",08/01/2019 00:00:00,6242.4,"64710","Residential Care Homes","REDACTED DATA","CMG HOMES LTD (CLEVELAND HOUSE)","2992839","http://opencorporates.com/companies/gb/2992839",""
"London Borough of Redbridge","http://opendatacommunities.org/doc/london-borough-council/redbridge","6BADULTSOCIA","Adult Social Care","6CADLEARNDIS","Adults Under 65 with Learning Disabilities","REV","Revenue","R4188","LD - Residential Care","09-INCOME","Income","09C","Customer and Client Receipts","8555","Accommodation Charges","91033602","201911",08/01/2019 00:00:00,-343.8,"64710","Residential Care Homes","REDACTED DATA","CMG HOMES LTD (CLEVELAND HOUSE)","2992839","http://opencorporates.com/companies/gb/2992839",""
"London Borough of Redbridge","http://opendatacommunities.org/doc/london-borough-council/redbridge","6BADULTSOCIA","Adult Social Care","6COLDINCMENT","Older People (65 or over) incl. Older Mentally Ill","REV","Revenue","R4385","OP Nursing","05-THIRD","Third Party Payments","05H","Private contractors","6909","Nursing Homes","91033525","201911",08/01/2019 00:00:00,9090.24,"53350","Nursing Homes","REDACTED DATA","HC-ONE OVAL LTD- BAKERS COURT NURSING HOME (ACCOMMODATION FEES)","",,""
"London Borough of Redbridge","http://opendatacommunities.org/doc/london-borough-council/redbridge","6BADULTSOCIA","Adult Social Care","6COLDINCMENT","Older People (65 or over) incl. Older Mentally Ill","REV","Revenue","R4385","OP Nursing","09-INCOME","Income","09C","Customer and Client Receipts","8557","Nursing Home Charges","91033525","201911",08/01/2019 00:00:00,-3199.52,"53350","Nursing Homes","REDACTED DATA","HC-ONE OVAL LTD- BAKERS COURT NURSING HOME (ACCOMMODATION FEES)","",,""
"London Borough of Redbridge","http://opendatacommunities.org/doc/london-borough-council/redbridge","1BOTHEROPI&E","Other Operating Income & Expenditure","1CTRADSURDEF","Trading Account Surpluses & Deficits","REV","Revenue","R9557","CLM Utilities","02-PREMISES","Premises","02B","Energy costs","4000","Electricity","80032795","201911",18/02/2019 00:00:00,4905.64,"30586","Electricity Companies","REDACTED DATA","SCOTTISH & SOUTHERN ENERGY (SOUTHERN ELECTRIC & SWALEC)","2716495","http://opencorporates.com/companies/gb/2716495","553769603"
"London Borough of Redbridge","http://opendatacommunities.org/doc/london-borough-council/redbridge","9BNONBVO","Outside the BVACOP Objective Structure","9CNONBVO","Outside the BVACOP Objective Structure","CAP","Capital","C2002","Disabled Facilities Grants (DFG)","99-NONBV","Capital, Balance Sheet and Control","50H","Capital - Deferred Charges","9251","Housing Grants - Mandatory","70106300","201911",06/12/2018 00:00:00,5875,"11040","Builders","REDACTED DATA","GRIFFON CONSTRUCTION LTD (GRANT WORK)","7720146","http://opencorporates.com/companies/gb/7720146","243073922"
"London Borough of Redbridge","http://opendatacommunities.org/doc/london-borough-council/redbridge","3BOPTIONHLDG","Optional Holding Accounts","3CYOUTH","Youth Service","REV","Revenue","R3379","Youth Detention Accommodation","05-THIRD","Third Party Payments","05H","Private contractors","6956","Bed Night Costs - Remand","60397494","201911",25/02/2019 00:00:00,5859,"61847","Prisons","REDACTED DATA","HER MAJESTY'S PRISON & PROBATION SERVICE","",,"888818055"
"London Borough of Redbridge","http://opendatacommunities.org/doc/london-borough-council/redbridge","6BADULTSOCIA","Adult Social Care","6COLDINCMENT","Older People (65 or over) incl. Older Mentally Ill","REV","Revenue","R4385","OP Nursing","05-THIRD","Third Party Payments","05H","Private contractors","6909","Nursing Homes","91033563","201911",08/01/2019 00:00:00,8269.6,"53350","Nursing Homes","REDACTED DATA","HC ONE OVAL(SEABROOKE MANOR)","10257888","http://opencorporates.com/companies/gb/10257888","283937558"
"London Borough of Redbridge","http://opendatacommunities.org/doc/london-borough-council/redbridge","6BADULTSOCIA","Adult Social Care","6COLDINCMENT","Older People (65 or over) incl. Older Mentally Ill","REV","Revenue","R4385","OP Nursing","09-INCOME","Income","09C","Customer and Client Receipts","8557","Nursing Home Charges","91033563","201911",08/01/2019 00:00:00,-2285.44,"53350","Nursing Homes","REDACTED DATA","HC ONE OVAL(SEABROOKE MANOR)","10257888","http://opencorporates.com/companies/gb/10257888","283937558"
"London Borough of Redbridge","http://opendatacommunities.org/doc/london-borough-council/redbridge","6BADULTSOCIA","Adult Social Care","6COLDINCMENT","Older People (65 or over) incl. Older Mentally Ill","REV","Revenue","R4385","OP Nursing","09-INCOME","Income","09C","Customer and Client Receipts","8557","Nursing Home Charges","91033563","201911",08/01/2019 00:00:00,-131.7,"53350","Nursing Homes","REDACTED DATA","HC ONE OVAL(SEABROOKE MANOR)","10257888","http://opencorporates.com/companies/gb/10257888","283937558"
"London Borough of Redbridge","http://opendatacommunities.org/doc/london-borough-council/redbridge","3BLEACENTFND","LEA Centrally Held School Funds","3CNONSCH","Non Schools","REV","Revenue","R2230","Local Offer","05-THIRD","Third Party Payments","05A","Independent units within the council","6513","Agency & Contracted Services","60395856","201911",01/02/2019 00:00:00,4872,"31230","Employment and Recruitment Agencies","REDACTED DATA","BALTIMORE CONSULTING LTD","8387222","http://opencorporates.com/companies/gb/8387222","156711312"
"London Borough of Redbridge","http://opendatacommunities.org/doc/london-borough-council/redbridge","3BLEACENTFND","LEA Centrally Held School Funds","3CNONSCH","Non Schools","REV","Revenue","R2231","Special School Top Up Fees","05-THIRD","Third Party Payments","05G","Other establishments","7432","OOB Pre 16 Top Up","60397594","201911",28/11/2018 00:00:00,5833.32,"67981","Schools - Local Authority","REDACTED DATA","WHITEFIELD ACADEMY TRUST- JOSEPH CLARKE SCHOOL","8878604","http://opencorporates.com/companies/gb/8878604",""
"London Borough of Redbridge","http://opendatacommunities.org/doc/london-borough-council/redbridge","6BADULTSOCIA","Adult Social Care","6COLDINCMENT","Older People (65 or over) incl. Older Mentally Ill","REV","Revenue","R4385","OP Nursing","05-THIRD","Third Party Payments","05H","Private contractors","6909","Nursing Homes","91033653","201911",19/02/2019 00:00:00,7098.58,"24200","Day Centres","REDACTED DATA","GABLE COURT NH LTD","11498810","http://opencorporates.com/companies/gb/11498810",""
"London Borough of Redbridge","http://opendatacommunities.org/doc/london-borough-council/redbridge","6BADULTSOCIA","Adult Social Care","6COLDINCMENT","Older People (65 or over) incl. Older Mentally Ill","REV","Revenue","R4385","OP Nursing","09-INCOME","Income","09C","Customer and Client Receipts","8557","Nursing Home Charges","91033653","201911",19/02/2019 00:00:00,-1270.82,"24200","Day Centres","REDACTED DATA","GABLE COURT NH LTD","11498810","http://opencorporates.com/companies/gb/11498810",""
"London Borough of Redbridge","http://opendatacommunities.org/doc/london-borough-council/redbridge","3BNONSCHFUND","Non-School Funding","6CCHILLOOKED","Children Looked After","REV","Revenue","R2238","Looked After Children Placements LA","05-THIRD","Third Party Payments","05H","Private contractors","6917","Fostering Costs - Agency","60395956","201911",06/11/2018 00:00:00,5811.3,"17580","Childcare Services","REDACTED DATA","FOSTERING UK LTD","9975962","http://opencorporates.com/companies/gb/9975962",""
"London Borough of Redbridge","http://opendatacommunities.org/doc/london-borough-council/redbridge","3BOPTIONHLDG","Optional Holding Accounts","3CYOUTH","Youth Service","REV","Revenue","R3367","Health and Justice","07-SUPPORT","Support Services","07G","Corporate Services","7307","Other Support Services","60397232","201911",01/12/2018 00:00:00,5810,"42200","Health Authorities","REDACTED DATA","NORTH EAST LONDON NHS FOUNDATION TRUST","",,"654404447"
"London Borough of Redbridge","http://opendatacommunities.org/doc/london-borough-council/redbridge","3BOPTIONHLDG","Optional Holding Accounts","3CYOUTH","Youth Service","REV","Revenue","R3367","Health and Justice","07-SUPPORT","Support Services","07G","Corporate Services","7307","Other Support Services","60397233","201911",01/01/2019 00:00:00,5810,"42200","Health Authorities","REDACTED DATA","NORTH EAST LONDON NHS FOUNDATION TRUST","",,"654404447"
"London Borough of Redbridge","http://opendatacommunities.org/doc/london-borough-council/redbridge","3BOPTIONHLDG","Optional Holding Accounts","3CYOUTH","Youth Service","REV","Revenue","R3367","Health and Justice","07-SUPPORT","Support Services","07G","Corporate Services","7307","Other Support Services","60397234","201911",01/02/2019 00:00:00,5810,"42200","Health Authorities","REDACTED DATA","NORTH EAST LONDON NHS FOUNDATION TRUST","",,"654404447"
"London Borough of Redbridge","http://opendatacommunities.org/doc/london-borough-council/redbridge","5BGFHOUSING","General Fund Housing","5CHOMELESS","Homelessness","REV","Revenue","R5630","HAC Temporary Accomodation","05-THIRD","Third Party Payments","05H","Private contractors","6900","Nightly Let Plus Charges","3540732","201911",03/02/2019 00:00:00,1085,"31230","Employment and Recruitment Agencies","REDACTED DATA","ADAM HTT LIMITED T/A ADAM","7718565","http://opencorporates.com/companies/gb/7718565","198573349"
"London Borough of Redbridge","http://opendatacommunities.org/doc/london-borough-council/redbridge","5BGFHOUSING","General Fund Housing","5CHOMELESS","Homelessness","REV","Revenue","R5630","HAC Temporary Accomodation","05-THIRD","Third Party Payments","05H","Private contractors","6900","Nightly Let Plus Charges","3540732","201911",03/02/2019 00:00:00,1705,"31230","Employment and Recruitment Agencies","REDACTED DATA","ADAM HTT LIMITED T/A ADAM","7718565","http://opencorporates.com/companies/gb/7718565","198573349"
"London Borough of Redbridge","http://opendatacommunities.org/doc/london-borough-council/redbridge","5BGFHOUSING","General Fund Housing","5CHOMELESS","Homelessness","REV","Revenue","R5630","HAC Temporary Accomodation","05-THIRD","Third Party Payments","05H","Private contractors","6900","Nightly Let Plus Charges","3540732","201911",03/02/2019 00:00:00,1550,"31230","Employment and Recruitment Agencies","REDACTED DATA","ADAM HTT LIMITED T/A ADAM","7718565","http://opencorporates.com/companies/gb/7718565","198573349"
"London Borough of Redbridge","http://opendatacommunities.org/doc/london-borough-council/redbridge","5BGFHOUSING","General Fund Housing","5CHOMELESS","Homelessness","REV","Revenue","R5630","HAC Temporary Accomodation","05-THIRD","Third Party Payments","05H","Private contractors","6900","Nightly Let Plus Charges","3540732","201911",03/02/2019 00:00:00,930,"31230","Employment and Recruitment Agencies","REDACTED DATA","ADAM HTT LIMITED T/A ADAM","7718565","http://opencorporates.com/companies/gb/7718565","198573349"
"London Borough of Redbridge","http://opendatacommunities.org/doc/london-borough-council/redbridge","5BGFHOUSING","General Fund Housing","5CHOMELESS","Homelessness","REV","Revenue","R5630","HAC Temporary Accomodation","05-THIRD","Third Party Payments","05H","Private contractors","6900","Nightly Let Plus Charges","3540732","201911",03/02/2019 00:00:00,930,"31230","Employment and Recruitment Agencies","REDACTED DATA","ADAM HTT LIMITED T/A ADAM","7718565","http://opencorporates.com/companies/gb/7718565","198573349"
"London Borough of Redbridge","http://opendatacommunities.org/doc/london-borough-council/redbridge","5BGFHOUSING","General Fund Housing","5CHOMELESS","Homelessness","REV","Revenue","R5630","HAC Temporary Accomodation","05-THIRD","Third Party Payments","05H","Private contractors","6900","Nightly Let Plus Charges","3540732","201911",03/02/2019 00:00:00,1333,"31230","Employment and Recruitment Agencies","REDACTED DATA","ADAM HTT LIMITED T/A ADAM","7718565","http://opencorporates.com/companies/gb/7718565","198573349"
"London Borough of Redbridge","http://opendatacommunities.org/doc/london-borough-council/redbridge","5BGFHOUSING","General Fund Housing","5CHOMELESS","Homelessness","REV","Revenue","R5630","HAC Temporary Accomodation","05-THIRD","Third Party Payments","05H","Private contractors","6900","Nightly Let Plus Charges","3540732","201911",03/02/2019 00:00:00,930,"31230","Employment and Recruitment Agencies","REDACTED DATA","ADAM HTT LIMITED T/A ADAM","7718565","http://opencorporates.com/companies/gb/7718565","198573349"
"London Borough of Redbridge","http://opendatacommunities.org/doc/london-borough-council/redbridge","5BGFHOUSING","General Fund Housing","5CHOMELESS","Homelessness","REV","Revenue","R5630","HAC Temporary Accomodation","05-THIRD","Third Party Payments","05H","Private contractors","6900","Nightly Let Plus Charges","3540732","201911",03/02/2019 00:00:00,1550,"31230","Employment and Recruitment Agencies","REDACTED DATA","ADAM HTT LIMITED T/A ADAM","7718565","http://opencorporates.com/companies/gb/7718565","198573349"
"London Borough of Redbridge","http://opendatacommunities.org/doc/london-borough-council/redbridge","5BGFHOUSING","General Fund Housing","5CHOMELESS","Homelessness","REV","Revenue","R5630","HAC Temporary Accomodation","05-THIRD","Third Party Payments","05H","Private contractors","6900","Nightly Let Plus Charges","3540732","201911",03/02/2019 00:00:00,899,"31230","Employment and Recruitment Agencies","REDACTED DATA","ADAM HTT LIMITED T/A ADAM","7718565","http://opencorporates.com/companies/gb/7718565","198573349"
"London Borough of Redbridge","http://opendatacommunities.org/doc/london-borough-council/redbridge","5BGFHOUSING","General Fund Housing","5CHOMELESS","Homelessness","REV","Revenue","R5630","HAC Temporary Accomodation","05-THIRD","Third Party Payments","05H","Private contractors","6900","Nightly Let Plus Charges","3540732","201911",03/02/2019 00:00:00,1860,"31230","Employment and Recruitment Agencies","REDACTED DATA","ADAM HTT LIMITED T/A ADAM","7718565","http://opencorporates.com/companies/gb/7718565","198573349"
"London Borough of Redbridge","http://opendatacommunities.org/doc/london-borough-council/redbridge","5BGFHOUSING","General Fund Housing","5CHOMELESS","Homelessness","REV","Revenue","R5630","HAC Temporary Accomodation","05-THIRD","Third Party Payments","05H","Private contractors","6900","Nightly Let Plus Charges","3540732","201911",03/02/2019 00:00:00,930,"31230","Employment and Recruitment Agencies","REDACTED DATA","ADAM HTT LIMITED T/A ADAM","7718565","http://opencorporates.com/companies/gb/7718565","198573349"
"London Borough of Redbridge","http://opendatacommunities.org/doc/london-borough-council/redbridge","6BADULTSOCIA","Adult Social Care","6COLDINCMENT","Older People (65 or over) incl. Older Mentally Ill","REV","Revenue","R4385","OP Nursing","05-THIRD","Third Party Payments","05H","Private contractors","6909","Nursing Homes","91033559","201911",08/01/2019 00:00:00,8269.44,"53350","Nursing Homes","REDACTED DATA","HC ONE OVAL(SEABROOKE MANOR)","10257888","http://opencorporates.com/companies/gb/10257888","283937558"
"London Borough of Redbridge","http://opendatacommunities.org/doc/london-borough-council/redbridge","6BADULTSOCIA","Adult Social Care","6COLDINCMENT","Older People (65 or over) incl. Older Mentally Ill","REV","Revenue","R4385","OP Nursing","09-INCOME","Income","09C","Customer and Client Receipts","8557","Nursing Home Charges","91033559","201911",08/01/2019 00:00:00,-2460.64,"53350","Nursing Homes","REDACTED DATA","HC ONE OVAL(SEABROOKE MANOR)","10257888","http://opencorporates.com/companies/gb/10257888","283937558"
"London Borough of Redbridge","http://opendatacommunities.org/doc/london-borough-council/redbridge","9BNONBVO","Outside the BVACOP Objective Structure","9CNONBVO","Outside the BVACOP Objective Structure","CAP","Capital","C2107","Environmental Works","99-NONBV","Capital, Balance Sheet and Control","50E","Capital - Contract Payments","9150","Main Contract","60396335","201911",05/02/2019 00:00:00,1800,"50730","Metal Products - Fabricated","REDACTED DATA","ACE WELDING AND POWDER COATING SERVICES LIMITED","6117355232","http://opencorporates.com/companies/gb/6117355232","924642424"
"London Borough of Redbridge","http://opendatacommunities.org/doc/london-borough-council/redbridge","9BNONBVO","Outside the BVACOP Objective Structure","9CNONBVO","Outside the BVACOP Objective Structure","CAP","Capital","C2107","Environmental Works","99-NONBV","Capital, Balance Sheet and Control","50E","Capital - Contract Payments","9150","Main Contract","60396335","201911",05/02/2019 00:00:00,4835,"50730","Metal Products - Fabricated","REDACTED DATA","ACE WELDING AND POWDER COATING SERVICES LIMITED","6117355232","http://opencorporates.com/companies/gb/6117355232","924642424"
"London Borough of Redbridge","http://opendatacommunities.org/doc/london-borough-council/redbridge","9BNONBVO","Outside the BVACOP Objective Structure","9CNONBVO","Outside the BVACOP Objective Structure","CAP","Capital","C2107","Environmental Works","99-NONBV","Capital, Balance Sheet and Control","50E","Capital - Contract Payments","9150","Main Contract","60396335","201911",05/02/2019 00:00:00,-4835,"50730","Metal Products - Fabricated","REDACTED DATA","ACE WELDING AND POWDER COATING SERVICES LIMITED","6117355232","http://opencorporates.com/companies/gb/6117355232","924642424"
"London Borough of Redbridge","http://opendatacommunities.org/doc/london-borough-council/redbridge","9BNONBVO","Outside the BVACOP Objective Structure","9CNONBVO","Outside the BVACOP Objective Structure","CAP","Capital","C2107","Environmental Works","99-NONBV","Capital, Balance Sheet and Control","50E","Capital - Contract Payments","9150","Main Contract","60396335","201911",05/02/2019 00:00:00,3035,"50730","Metal Products - Fabricated","REDACTED DATA","ACE WELDING AND POWDER COATING SERVICES LIMITED","6117355232","http://opencorporates.com/companies/gb/6117355232","924642424"
"London Borough of Redbridge","http://opendatacommunities.org/doc/london-borough-council/redbridge","6BADULTSOCIA","Adult Social Care","6COLDINCMENT","Older People (65 or over) incl. Older Mentally Ill","REV","Revenue","R4385","OP Nursing","05-THIRD","Third Party Payments","05H","Private contractors","6909","Nursing Homes","91030497","201911",08/01/2019 00:00:00,8005.44,"64710","Residential Care Homes","REDACTED DATA","ACER HEALTHCARE OPERATIONS (CHESTNUT COURT CARE HOME)","10248411","http://opencorporates.com/companies/gb/10248411",""
"London Borough of Redbridge","http://opendatacommunities.org/doc/london-borough-council/redbridge","6BADULTSOCIA","Adult Social Care","6COLDINCMENT","Older People (65 or over) incl. Older Mentally Ill","REV","Revenue","R4385","OP Nursing","09-INCOME","Income","09C","Customer and Client Receipts","8557","Nursing Home Charges","91030497","201911",08/01/2019 00:00:00,-2209.6,"64710","Residential Care Homes","REDACTED DATA","ACER HEALTHCARE OPERATIONS (CHESTNUT COURT CARE HOME)","10248411","http://opencorporates.com/companies/gb/10248411",""
"London Borough of Redbridge","http://opendatacommunities.org/doc/london-borough-council/redbridge","3BNONSCHFUND","Non-School Funding","3CNONSCH","Non Schools","REV","Revenue","R3963","Early Years - 2 Year Olds - Statutory Place Funding","05-THIRD","Third Party Payments","05A","Independent units within the council","6517","Non-Maintained Schools","3541906","201911",28/02/2019 00:00:00,5786.78,"17580","Childcare Services","REDACTED DATA","KIDS IN CHARGE LTD","6095988","http://opencorporates.com/companies/gb/6095988",""
"London Borough of Redbridge","http://opendatacommunities.org/doc/london-borough-council/redbridge","1BOTHEROPI&E","Other Operating Income & Expenditure","1CTRADSURDEF","Trading Account Surpluses & Deficits","REV","Revenue","R9001","Customer Contact Centre","01-EMPLOYEES","Employees","01A","Direct employee expenses","4","Agency Staff - Pay","60396730","201911",31/01/2019 00:00:00,4786.08,"69240","Security Services","REDACTED DATA","CHARTER SECURITY PLC","1530957","http://opencorporates.com/companies/gb/1530957","342117968"
"London Borough of Redbridge","http://opendatacommunities.org/doc/london-borough-council/redbridge","3BINDSCHFUND","Individual School Funds","3CDELSECOND","Delegated Individual Secondary School Budgets","REV","Revenue","S2021","TRINITY : Energy","02-PREMISES","Premises","02B","Energy costs","4000","Electricity","80032791","201911",14/02/2019 00:00:00,4778.8,"39564","Gas Companies","REDACTED DATA","KENT COUNTY COUNCIL (GAS & ELECTRIC)","",,"204269191"
"London Borough of Redbridge","http://opendatacommunities.org/doc/london-borough-council/redbridge","6BPUBHEALTH","Public Health","6CSUBSTANCEM","Substance Misuse","REV","Revenue","R4816","Alcohol Misuse - Adults","04-SUPPLIES","Supplies And Services","04F","Communications and computing","5853","Computer Software","60397930","201911",20/02/2019 00:00:00,4775,"20703","Computer Systems and Software","REDACTED DATA","CYBER MEDIA SOLUTIONS LTD","3853761","http://opencorporates.com/companies/gb/3853761","747508901"
"London Borough of Redbridge","http://opendatacommunities.org/doc/london-borough-council/redbridge","5BGFHOUSING","General Fund Housing","5CHOMELESS","Homelessness","REV","Revenue","R5639","Rough Sleeping Initiatives","04-SUPPLIES","Supplies And Services","04K","Miscellaneous expenses","6258","Security Patrol Services","60397283","201911",31/01/2019 00:00:00,4773.6,"69240","Security Services","REDACTED DATA","CHARTER SECURITY PLC","1530957","http://opencorporates.com/companies/gb/1530957","342117968"
"London Borough of Redbridge","http://opendatacommunities.org/doc/london-borough-council/redbridge","6BADULTSOCIA","Adult Social Care","6COLDINCMENT","Older People (65 or over) incl. Older Mentally Ill","REV","Revenue","R4385","OP Nursing","05-THIRD","Third Party Payments","05H","Private contractors","6909","Nursing Homes","91033541","201911",08/01/2019 00:00:00,-8121.93,"53350","Nursing Homes","REDACTED DATA","HC ONE OVAL(SEABROOKE MANOR)","10257888","http://opencorporates.com/companies/gb/10257888","283937558"
"London Borough of Redbridge","http://opendatacommunities.org/doc/london-borough-council/redbridge","6BADULTSOCIA","Adult Social Care","6COLDINCMENT","Older People (65 or over) incl. Older Mentally Ill","REV","Revenue","R4385","OP Nursing","05-THIRD","Third Party Payments","05H","Private contractors","6909","Nursing Homes","91033541","201911",08/01/2019 00:00:00,16391.53,"53350","Nursing Homes","REDACTED DATA","HC ONE OVAL(SEABROOKE MANOR)","10257888","http://opencorporates.com/companies/gb/10257888","283937558"
"London Borough of Redbridge","http://opendatacommunities.org/doc/london-borough-council/redbridge","6BADULTSOCIA","Adult Social Care","6COLDINCMENT","Older People (65 or over) incl. Older Mentally Ill","REV","Revenue","R4385","OP Nursing","09-INCOME","Income","09C","Customer and Client Receipts","8557","Nursing Home Charges","91033541","201911",08/01/2019 00:00:00,2219.33,"53350","Nursing Homes","REDACTED DATA","HC ONE OVAL(SEABROOKE MANOR)","10257888","http://opencorporates.com/companies/gb/10257888","283937558"
"London Borough of Redbridge","http://opendatacommunities.org/doc/london-borough-council/redbridge","6BADULTSOCIA","Adult Social Care","6COLDINCMENT","Older People (65 or over) incl. Older Mentally Ill","REV","Revenue","R4385","OP Nursing","09-INCOME","Income","09C","Customer and Client Receipts","8557","Nursing Home Charges","91033541","201911",08/01/2019 00:00:00,-4773.95,"53350","Nursing Homes","REDACTED DATA","HC ONE OVAL(SEABROOKE MANOR)","10257888","http://opencorporates.com/companies/gb/10257888","283937558"
"London Borough of Redbridge","http://opendatacommunities.org/doc/london-borough-council/redbridge","1BCENTRALPUB","Central Services to the Public","1CLOCALTAXCO","Local Tax Collection","REV","Revenue","R5760","Local Tax Collection","04-SUPPLIES","Supplies And Services","04H","Grants and subscriptions","5957","Bailiff Fees","70105897","201911",26/01/2019 00:00:00,625.5,"24230","Debt Collection Agencies","REDACTED DATA","NEWLYN PLC","3770985","http://opencorporates.com/companies/gb/3770985","739828088"
"London Borough of Redbridge","http://opendatacommunities.org/doc/london-borough-council/redbridge","9BNONBVO","Outside the BVACOP Objective Structure","9CNONBVO","Outside the BVACOP Objective Structure","BAL","Balance Sheet","B0059","DUMMY VAT ACCOUNT","99-NONBV","Capital, Balance Sheet and Control","50L","Debtors","9359","VAT only invoices","70105897","201911",26/01/2019 00:00:00,5087.21,"24230","Debt Collection Agencies","REDACTED DATA","NEWLYN PLC","3770985","http://opencorporates.com/companies/gb/3770985","739828088"
"London Borough of Redbridge","http://opendatacommunities.org/doc/london-borough-council/redbridge","9BNONBVO","Outside the BVACOP Objective Structure","9CNONBVO","Outside the BVACOP Objective Structure","BAL","Balance Sheet","B0059","DUMMY VAT ACCOUNT","99-NONBV","Capital, Balance Sheet and Control","50L","Debtors","9359","VAT only invoices","70105897","201911",26/01/2019 00:00:00,-5087.21,"24230","Debt Collection Agencies","REDACTED DATA","NEWLYN PLC","3770985","http://opencorporates.com/companies/gb/3770985","739828088"
"London Borough of Redbridge","http://opendatacommunities.org/doc/london-borough-council/redbridge","6BADULTSOCIA","Adult Social Care","6COLDINCMENT","Older People (65 or over) incl. Older Mentally Ill","REV","Revenue","R4385","OP Nursing","05-THIRD","Third Party Payments","05H","Private contractors","6909","Nursing Homes","91033557","201911",08/01/2019 00:00:00,8269.44,"53350","Nursing Homes","REDACTED DATA","HC ONE OVAL(SEABROOKE MANOR)","10257888","http://opencorporates.com/companies/gb/10257888","283937558"
"London Borough of Redbridge","http://opendatacommunities.org/doc/london-borough-council/redbridge","6BADULTSOCIA","Adult Social Care","6COLDINCMENT","Older People (65 or over) incl. Older Mentally Ill","REV","Revenue","R4385","OP Nursing","09-INCOME","Income","09C","Customer and Client Receipts","8557","Nursing Home Charges","91033557","201911",08/01/2019 00:00:00,-2581.28,"53350","Nursing Homes","REDACTED DATA","HC ONE OVAL(SEABROOKE MANOR)","10257888","http://opencorporates.com/companies/gb/10257888","283937558"
"London Borough of Redbridge","http://opendatacommunities.org/doc/london-borough-council/redbridge","3BNONSCHFUND","Non-School Funding","3CNONSCH","Non Schools","REV","Revenue","R3962","Early Years - 3 and 4 Year Olds","05-THIRD","Third Party Payments","05A","Independent units within the council","6517","Non-Maintained Schools","3541719","201911",28/02/2019 00:00:00,5685.61,"59760","Playgroups, Nurseries and Creches","REDACTED DATA","KINDER DAY NURSERIES LTD T/A FAREACRES DAY NURSERY","4595757","http://opencorporates.com/companies/gb/4595757",""
"London Borough of Redbridge","http://opendatacommunities.org/doc/london-borough-council/redbridge","9BNONBVO","Outside the BVACOP Objective Structure","9CNONBVO","Outside the BVACOP Objective Structure","REV","Revenue","R7702","Vehicle Workshop","04-SUPPLIES","Supplies And Services","04A","Equipment, furniture and materials","5510","Materials","668682","201911",23/01/2019 00:00:00,4716.18,"20375","Commercial Vehicle Mnfrs","REDACTED DATA","HEIL EUROPE LTD","53003","http://opencorporates.com/companies/gb/53003","271085664"
"London Borough of Redbridge","http://opendatacommunities.org/doc/london-borough-council/redbridge","6BADULTSOCIA","Adult Social Care","6COLDINCMENT","Older People (65 or over) incl. Older Mentally Ill","REV","Revenue","R4385","OP Nursing","05-THIRD","Third Party Payments","05H","Private contractors","6909","Nursing Homes","91033566","201911",08/01/2019 00:00:00,8269.6,"53350","Nursing Homes","REDACTED DATA","HC ONE OVAL(SEABROOKE MANOR)","10257888","http://opencorporates.com/companies/gb/10257888","283937558"
"London Borough of Redbridge","http://opendatacommunities.org/doc/london-borough-council/redbridge","6BADULTSOCIA","Adult Social Care","6COLDINCMENT","Older People (65 or over) incl. Older Mentally Ill","REV","Revenue","R4385","OP Nursing","09-INCOME","Income","09C","Customer and Client Receipts","8557","Nursing Home Charges","91033566","201911",08/01/2019 00:00:00,-2617.92,"53350","Nursing Homes","REDACTED DATA","HC ONE OVAL(SEABROOKE MANOR)","10257888","http://opencorporates.com/companies/gb/10257888","283937558"
"London Borough of Redbridge","http://opendatacommunities.org/doc/london-borough-council/redbridge","6BADULTSOCIA","Adult Social Care","6COLDINCMENT","Older People (65 or over) incl. Older Mentally Ill","REV","Revenue","R4378","OP Residential","05-THIRD","Third Party Payments","05F","Voluntary associations","6802","Residential Homes","91033537","201911",08/01/2019 00:00:00,7996.8,"53350","Nursing Homes","REDACTED DATA","HC ONE OVAL(SEABROOKE MANOR)","10257888","http://opencorporates.com/companies/gb/10257888","283937558"
"London Borough of Redbridge","http://opendatacommunities.org/doc/london-borough-council/redbridge","6BADULTSOCIA","Adult Social Care","6COLDINCMENT","Older People (65 or over) incl. Older Mentally Ill","REV","Revenue","R4378","OP Residential","09-INCOME","Income","09C","Customer and Client Receipts","8555","Accommodation Charges","91033537","201911",08/01/2019 00:00:00,-2360,"53350","Nursing Homes","REDACTED DATA","HC ONE OVAL(SEABROOKE MANOR)","10257888","http://opencorporates.com/companies/gb/10257888","283937558"
"London Borough of Redbridge","http://opendatacommunities.org/doc/london-borough-council/redbridge","1BCENTRALPUB","Central Services to the Public","1CLOCALTAXCO","Local Tax Collection","REV","Revenue","R5760","Local Tax Collection","04-SUPPLIES","Supplies And Services","04K","Miscellaneous expenses","6204","Bankruptcy","60394710","201910",15/01/2019 00:00:00,4687,"72460","Solicitors","REDACTED DATA","WILKIN CHAPMAN SOLICITORS","",,"127942455"
"London Borough of Redbridge","http://opendatacommunities.org/doc/london-borough-council/redbridge","3BNONSCHFUND","Non-School Funding","3CNONSCH","Non Schools","REV","Revenue","R3969","EY Proposed SEN inclusion Fund","05-THIRD","Third Party Payments","05H","Private contractors","6908","Private Nurseries & Childminders","3540865","201911",11/02/2019 00:00:00,5610,"59760","Playgroups, Nurseries and Creches","REDACTED DATA","TAMBA DAY NURSERY LTD CHADWELL HEATH","",,""
"London Borough of Redbridge","http://opendatacommunities.org/doc/london-borough-council/redbridge","6BADULTSOCIA","Adult Social Care","6COLDINCMENT","Older People (65 or over) incl. Older Mentally Ill","REV","Revenue","R4385","OP Nursing","05-THIRD","Third Party Payments","05H","Private contractors","6909","Nursing Homes","91033542","201911",08/01/2019 00:00:00,8269.44,"53350","Nursing Homes","REDACTED DATA","HC ONE OVAL(SEABROOKE MANOR)","10257888","http://opencorporates.com/companies/gb/10257888","283937558"
"London Borough of Redbridge","http://opendatacommunities.org/doc/london-borough-council/redbridge","6BADULTSOCIA","Adult Social Care","6COLDINCMENT","Older People (65 or over) incl. Older Mentally Ill","REV","Revenue","R4385","OP Nursing","09-INCOME","Income","09C","Customer and Client Receipts","8557","Nursing Home Charges","91033542","201911",08/01/2019 00:00:00,-2664.8,"53350","Nursing Homes","REDACTED DATA","HC ONE OVAL(SEABROOKE MANOR)","10257888","http://opencorporates.com/companies/gb/10257888","283937558"
"London Borough of Redbridge","http://opendatacommunities.org/doc/london-borough-council/redbridge","9BNONBVO","Outside the BVACOP Objective Structure","9CNONBVO","Outside the BVACOP Objective Structure","REV","Revenue","R7702","Vehicle Workshop","04-SUPPLIES","Supplies And Services","04A","Equipment, furniture and materials","5502","Equipment Purchase","668813","201911",24/12/2018 00:00:00,4650.72,"39070","Garage Equipment","REDACTED DATA","V L TEST SYSTEMS LTD","2566304","http://opencorporates.com/companies/gb/2566304","581146935"
"London Borough of Redbridge","http://opendatacommunities.org/doc/london-borough-council/redbridge","3BINDSCHFUND","Individual School Funds","3CNONSCH","Non Schools","REV","Revenue","R2627","SEN Team","01-EMPLOYEES","Employees","01A","Direct employee expenses","4","Agency Staff - Pay","60396404","201911",27/11/2018 00:00:00,4640,"31230","Employment and Recruitment Agencies","REDACTED DATA","BALTIMORE CONSULTING LTD","8387222","http://opencorporates.com/companies/gb/8387222","156711312"
"London Borough of Redbridge","http://opendatacommunities.org/doc/london-borough-council/redbridge","3BNONSCHFUND","Non-School Funding","6CCHILLOOKED","Children Looked After","REV","Revenue","R2238","Looked After Children Placements LA","05-THIRD","Third Party Payments","05H","Private contractors","6917","Fostering Costs - Agency","60396762","201911",15/02/2019 00:00:00,5535.67,"1880","Adoption and Fostering","REDACTED DATA","SELECT FOSTERCARE SERVICES LTD","1656801796","http://opencorporates.com/companies/gb/1656801796",""
"London Borough of Redbridge","http://opendatacommunities.org/doc/london-borough-council/redbridge","3BNONSCHFUND","Non-School Funding","6CCHILLOOKED","Children Looked After","REV","Revenue","R2238","Looked After Children Placements LA","05-THIRD","Third Party Payments","05H","Private contractors","6917","Fostering Costs - Agency","60395425","201911",21/11/2018 00:00:00,5535.67,"1880","Adoption and Fostering","REDACTED DATA","SELECT FOSTERCARE SERVICES LTD","1656801796","http://opencorporates.com/companies/gb/1656801796",""
"London Borough of Redbridge","http://opendatacommunities.org/doc/london-borough-council/redbridge","3BNONSCHFUND","Non-School Funding","6CCHILLOOKED","Children Looked After","REV","Revenue","R2238","Looked After Children Placements LA","05-THIRD","Third Party Payments","05H","Private contractors","6907","Private Homes","60395732","201911",05/02/2019 00:00:00,5535,"64710","Residential Care Homes","REDACTED DATA","INCLUSIVE CARE SUPPORT LTD","6974487","http://opencorporates.com/companies/gb/6974487",""
"London Borough of Redbridge","http://opendatacommunities.org/doc/london-borough-council/redbridge","3BINDSCHFUND","Individual School Funds","3CNONSCH","Non Schools","REV","Revenue","R2000","Primary Schools SEN Top Up Fees","05-THIRD","Third Party Payments","05G","Other establishments","7432","OOB Pre 16 Top Up","60395685","201911",21/01/2019 00:00:00,5527.45,"67981","Schools - Local Authority","REDACTED DATA","CHIGWELL ROW INFANT SCHOOL","",,""
"London Borough of Redbridge","http://opendatacommunities.org/doc/london-borough-council/redbridge","5BGFHOUSING","General Fund Housing","5CPRIVSECREN","Private Sector Housing Renewal","REV","Revenue","R5624","ELRP Handy Person Scheme","05-THIRD","Third Party Payments","05H","Private contractors","6915","Contractor Payments","60396757","201911",31/01/2019 00:00:00,5520,"21555","Construction Contractors - General","REDACTED DATA","HEET (HOME ENERGY EFFICIENCY TRAINING LTD)","IP28988R","http://opencorporates.com/companies/gb/IP28988R",""
"London Borough of Redbridge","http://opendatacommunities.org/doc/london-borough-council/redbridge","3BNONSCHFUND","Non-School Funding","3CNONSCH","Non Schools","REV","Revenue","R3963","Early Years - 2 Year Olds - Statutory Place Funding","05-THIRD","Third Party Payments","05A","Independent units within the council","6517","Non-Maintained Schools","3541937","201911",28/02/2019 00:00:00,5504.92,"17580","Childcare Services","REDACTED DATA","2HM LTD T/A LOXFORD FIRST STEP PRE SCHOOL","10869044","http://opencorporates.com/companies/gb/10869044",""
"London Borough of Redbridge","http://opendatacommunities.org/doc/london-borough-council/redbridge","6BADULTSOCIA","Adult Social Care","6CADPHYSDIS","Adults Under 65 with Phys Disab or Sensory Impair","REV","Revenue","R4214","PD Direct Payments","06-TRANSFER","Transfer Payments","06B","Social Services Clients","7053","Direct Payments","3539117","201911",04/02/2019 00:00:00,5660.12,"90005","Home Care Services DP","REDACTED DATA","REDACTED DATA","",,""
"London Borough of Redbridge","http://opendatacommunities.org/doc/london-borough-council/redbridge","6BADULTSOCIA","Adult Social Care","6CADPHYSDIS","Adults Under 65 with Phys Disab or Sensory Impair","REV","Revenue","R4214","PD Direct Payments","09-INCOME","Income","09C","Customer and Client Receipts","8545","Direct Payments Income","3539117","201911",04/02/2019 00:00:00,-160.68,"90005","Home Care Services DP","REDACTED DATA","REDACTED DATA","",,""
"London Borough of Redbridge","http://opendatacommunities.org/doc/london-borough-council/redbridge","4BPUBLICTRAN","Public Transport","4CPARKING","Parking Services","REV","Revenue","R7037","Attendants Parking Enforcement","05-THIRD","Third Party Payments","05H","Private contractors","6911","Parking and Traffic Enforcement Contract","60397688","201911",14/01/2019 00:00:00,4576.31,"13750","Car Parking and Garaging","REDACTED DATA","APCOA PARKING (UK) LTD","2572947","http://opencorporates.com/companies/gb/2572947","674177607"
"London Borough of Redbridge","http://opendatacommunities.org/doc/london-borough-council/redbridge","9BNONBVO","Outside the BVACOP Objective Structure","9CNONBVO","Outside the BVACOP Objective Structure","CAP","Capital","C4331","Uphall Kitchen Diner - feasibility","99-NONBV","Capital, Balance Sheet and Control","50B","Capital - Contracted Works","9055","External - Consultants Fees","60395745","201911",28/01/2019 00:00:00,4566.22,"11400","Building Services","REDACTED DATA","JOHN ROWAN AND PARTNERS LLP","OC302030","http://opencorporates.com/companies/gb/OC302030","229079447"
"London Borough of Redbridge","http://opendatacommunities.org/doc/london-borough-council/redbridge","6BADULTSOCIA","Adult Social Care","6COLDINCMENT","Older People (65 or over) incl. Older Mentally Ill","REV","Revenue","R4385","OP Nursing","05-THIRD","Third Party Payments","05H","Private contractors","6909","Nursing Homes","91033535","201911",08/01/2019 00:00:00,8269.6,"53350","Nursing Homes","REDACTED DATA","HC ONE OVAL(SEABROOKE MANOR)","10257888","http://opencorporates.com/companies/gb/10257888","283937558"
"London Borough of Redbridge","http://opendatacommunities.org/doc/london-borough-council/redbridge","6BADULTSOCIA","Adult Social Care","6COLDINCMENT","Older People (65 or over) incl. Older Mentally Ill","REV","Revenue","R4385","OP Nursing","09-INCOME","Income","09C","Customer and Client Receipts","8557","Nursing Home Charges","91033535","201911",08/01/2019 00:00:00,-2790.88,"53350","Nursing Homes","REDACTED DATA","HC ONE OVAL(SEABROOKE MANOR)","10257888","http://opencorporates.com/companies/gb/10257888","283937558"
"London Borough of Redbridge","http://opendatacommunities.org/doc/london-borough-council/redbridge","6BADULTSOCIA","Adult Social Care","6COLDINCMENT","Older People (65 or over) incl. Older Mentally Ill","REV","Revenue","R4385","OP Nursing","05-THIRD","Third Party Payments","05H","Private contractors","6909","Nursing Homes","91033577","201911",08/01/2019 00:00:00,8269.6,"53350","Nursing Homes","REDACTED DATA","HC ONE OVAL(SEABROOKE MANOR)","10257888","http://opencorporates.com/companies/gb/10257888","283937558"
"London Borough of Redbridge","http://opendatacommunities.org/doc/london-borough-council/redbridge","6BADULTSOCIA","Adult Social Care","6COLDINCMENT","Older People (65 or over) incl. Older Mentally Ill","REV","Revenue","R4385","OP Nursing","09-INCOME","Income","09C","Customer and Client Receipts","8557","Nursing Home Charges","91033577","201911",08/01/2019 00:00:00,-2798.56,"53350","Nursing Homes","REDACTED DATA","HC ONE OVAL(SEABROOKE MANOR)","10257888","http://opencorporates.com/companies/gb/10257888","283937558"
"London Borough of Redbridge","http://opendatacommunities.org/doc/london-borough-council/redbridge","3BNONSCHFUND","Non-School Funding","3CNONSCH","Non Schools","REV","Revenue","R3963","Early Years - 2 Year Olds - Statutory Place Funding","05-THIRD","Third Party Payments","05A","Independent units within the council","6517","Non-Maintained Schools","3541905","201911",28/02/2019 00:00:00,5416.73,"59760","Playgroups, Nurseries and Creches","REDACTED DATA","TAMBA DAY NURSERY LTD CHADWELL HEATH","",,""
"London Borough of Redbridge","http://opendatacommunities.org/doc/london-borough-council/redbridge","6BADULTSOCIA","Adult Social Care","6COLDINCMENT","Older People (65 or over) incl. Older Mentally Ill","REV","Revenue","R4385","OP Nursing","05-THIRD","Third Party Payments","05H","Private contractors","6909","Nursing Homes","91033631","201911",01/02/2019 00:00:00,12256.02,"64710","Residential Care Homes","REDACTED DATA","RUNWOOD HOMES PLC (CROWSTONE HOUSE)","",,""
"London Borough of Redbridge","http://opendatacommunities.org/doc/london-borough-council/redbridge","6BADULTSOCIA","Adult Social Care","6COLDINCMENT","Older People (65 or over) incl. Older Mentally Ill","REV","Revenue","R4385","OP Nursing","05-THIRD","Third Party Payments","05H","Private contractors","6909","Nursing Homes","91033631","201911",01/02/2019 00:00:00,-9921.54,"64710","Residential Care Homes","REDACTED DATA","RUNWOOD HOMES PLC (CROWSTONE HOUSE)","",,""
"London Borough of Redbridge","http://opendatacommunities.org/doc/london-borough-council/redbridge","6BADULTSOCIA","Adult Social Care","6COLDINCMENT","Older People (65 or over) incl. Older Mentally Ill","REV","Revenue","R4385","OP Nursing","09-INCOME","Income","09C","Customer and Client Receipts","8557","Nursing Home Charges","91033631","201911",01/02/2019 00:00:00,3078.36,"64710","Residential Care Homes","REDACTED DATA","RUNWOOD HOMES PLC (CROWSTONE HOUSE)","",,""
"London Borough of Redbridge","http://opendatacommunities.org/doc/london-borough-council/redbridge","6BADULTSOCIA","Adult Social Care","6CADLEARNDIS","Adults Under 65 with Learning Disabilities","REV","Revenue","R4215","LD Direct Payments","06-TRANSFER","Transfer Payments","06B","Social Services Clients","7053","Direct Payments","3539096","201911",04/02/2019 00:00:00,5560.32,"90005","Home Care Services DP","REDACTED DATA","REDACTED DATA","",,""
"London Borough of Redbridge","http://opendatacommunities.org/doc/london-borough-council/redbridge","6BADULTSOCIA","Adult Social Care","6CADLEARNDIS","Adults Under 65 with Learning Disabilities","REV","Revenue","R4215","LD Direct Payments","09-INCOME","Income","09C","Customer and Client Receipts","8545","Direct Payments Income","3539096","201911",04/02/2019 00:00:00,-158.6,"90005","Home Care Services DP","REDACTED DATA","REDACTED DATA","",,""
"London Borough of Redbridge","http://opendatacommunities.org/doc/london-borough-council/redbridge","3BLEACENTFND","LEA Centrally Held School Funds","3CNONSCH","Non Schools","REV","Revenue","R2230","Local Offer","05-THIRD","Third Party Payments","05A","Independent units within the council","6513","Agency & Contracted Services","60395790","201911",01/02/2019 00:00:00,4500,"80100","Transport Consultants","REDACTED DATA","SJG CONSULTANCY LTD","9490889","http://opencorporates.com/companies/gb/9490889","233728507"
"London Borough of Redbridge","http://opendatacommunities.org/doc/london-borough-council/redbridge","3BNONSCHFUND","Non-School Funding","6CCHILLOOKED","Children Looked After","REV","Revenue","R2238","Looked After Children Placements LA","04-SUPPLIES","Supplies And Services","04K","Miscellaneous expenses","6289","Children Services Supportive Activities","60394629","201911",31/12/2018 00:00:00,5400,"31230","Employment and Recruitment Agencies","REDACTED DATA","SKYBLUE RESOURCES LTD","8760563","http://opencorporates.com/companies/gb/8760563",""
"London Borough of Redbridge","http://opendatacommunities.org/doc/london-borough-council/redbridge","3BNONSCHFUND","Non-School Funding","6CCHILLOOKED","Children Looked After","REV","Revenue","R2238","Looked After Children Placements LA","05-THIRD","Third Party Payments","05H","Private contractors","6917","Fostering Costs - Agency","60395548","201911",01/02/2019 00:00:00,5400,"1880","Adoption and Fostering","REDACTED DATA","BRIGHTER FUTURES FOSTER CARE LTD","8013526237","http://opencorporates.com/companies/gb/8013526237","6846257"
"London Borough of Redbridge","http://opendatacommunities.org/doc/london-borough-council/redbridge","9BNONBVO","Outside the BVACOP Objective Structure","9CNONBVO","Outside the BVACOP Objective Structure","CAP","Capital","C4295","Expansion of Hatton Special School","99-NONBV","Capital, Balance Sheet and Control","50A","Capital - Employee Costs","9000","Employee Costs Architects","60395476","201911",30/01/2019 00:00:00,4500,"4420","Architects","REDACTED DATA","JM ARCHITECTS LTD","SC172002","http://opencorporates.com/companies/gb/SC172002","683065719"
"London Borough of Redbridge","http://opendatacommunities.org/doc/london-borough-council/redbridge","6BADULTSOCIA","Adult Social Care","6CADLEARNDIS","Adults Under 65 with Learning Disabilities","REV","Revenue","R4215","LD Direct Payments","06-TRANSFER","Transfer Payments","06B","Social Services Clients","7053","Direct Payments","3538982","201911",04/02/2019 00:00:00,5395.24,"56800","Payroll Services","REDACTED DATA","INDEPENDENT LIVING AGENCY (PAYROLL PROVIDER)","3370858","http://opencorporates.com/companies/gb/3370858",""
"London Borough of Redbridge","http://opendatacommunities.org/doc/london-borough-council/redbridge","6BADULTSOCIA","Adult Social Care","6COLDINCMENT","Older People (65 or over) incl. Older Mentally Ill","REV","Revenue","R4378","OP Residential","05-THIRD","Third Party Payments","05F","Voluntary associations","6802","Residential Homes","91033554","201911",08/01/2019 00:00:00,7996.8,"53350","Nursing Homes","REDACTED DATA","HC ONE OVAL(SEABROOKE MANOR)","10257888","http://opencorporates.com/companies/gb/10257888","283937558"
"London Borough of Redbridge","http://opendatacommunities.org/doc/london-borough-council/redbridge","6BADULTSOCIA","Adult Social Care","6COLDINCMENT","Older People (65 or over) incl. Older Mentally Ill","REV","Revenue","R4378","OP Residential","09-INCOME","Income","09C","Customer and Client Receipts","8555","Accommodation Charges","91033554","201911",08/01/2019 00:00:00,-2606.4,"53350","Nursing Homes","REDACTED DATA","HC ONE OVAL(SEABROOKE MANOR)","10257888","http://opencorporates.com/companies/gb/10257888","283937558"
"London Borough of Redbridge","http://opendatacommunities.org/doc/london-borough-council/redbridge","4BMANGT&SUPP","Management & Support Services","4CHIGHRDROUT","Highways/Roads (Routine)","REV","Revenue","R7079","Highways and Transportation Management","01-EMPLOYEES","Employees","01A","Direct employee expenses","4","Agency Staff - Pay","3539967","201911",07/02/2019 00:00:00,4479.75,"18632","Civil Engineers","REDACTED DATA","KENSON CONTRACTORS BENINGTON LTD","1314691","http://opencorporates.com/companies/gb/1314691","301629589"
"London Borough of Redbridge","http://opendatacommunities.org/doc/london-borough-council/redbridge","6BADULTSOCIA","Adult Social Care","6COLDINCMENT","Older People (65 or over) incl. Older Mentally Ill","REV","Revenue","R4378","OP Residential","05-THIRD","Third Party Payments","05F","Voluntary associations","6802","Residential Homes","91033536","201911",08/01/2019 00:00:00,7996.8,"53350","Nursing Homes","REDACTED DATA","HC ONE OVAL(SEABROOKE MANOR)","10257888","http://opencorporates.com/companies/gb/10257888","283937558"
"London Borough of Redbridge","http://opendatacommunities.org/doc/london-borough-council/redbridge","6BADULTSOCIA","Adult Social Care","6COLDINCMENT","Older People (65 or over) incl. Older Mentally Ill","REV","Revenue","R4378","OP Residential","09-INCOME","Income","09C","Customer and Client Receipts","8555","Accommodation Charges","91033536","201911",08/01/2019 00:00:00,-2622.4,"53350","Nursing Homes","REDACTED DATA","HC ONE OVAL(SEABROOKE MANOR)","10257888","http://opencorporates.com/companies/gb/10257888","283937558"
"London Borough of Redbridge","http://opendatacommunities.org/doc/london-borough-council/redbridge","9BNONBVO","Outside the BVACOP Objective Structure","9CNONBVO","Outside the BVACOP Objective Structure","REV","Revenue","R7602","Street Cleansing","01-EMPLOYEES","Employees","01A","Direct employee expenses","409","Agency Staff Pay","60395980","201911",04/02/2019 00:00:00,4470.95,"31230","Employment and Recruitment Agencies","REDACTED DATA","AMBITIONS EMPLOYMENT AGENCY","6683811","http://opencorporates.com/companies/gb/6683811","542142969"
"London Borough of Redbridge","http://opendatacommunities.org/doc/london-borough-council/redbridge","3BNONSCHFUND","Non-School Funding","6CCHILLOOKED","Children Looked After","REV","Revenue","R2238","Looked After Children Placements LA","05-THIRD","Third Party Payments","05H","Private contractors","6917","Fostering Costs - Agency","60395884","201911",01/02/2019 00:00:00,5341,"1880","Adoption and Fostering","REDACTED DATA","HEATH FARM FOSTERING","5470925","http://opencorporates.com/companies/gb/5470925",""
"London Borough of Redbridge","http://opendatacommunities.org/doc/london-borough-council/redbridge","6BADULTSOCIA","Adult Social Care","6COLDINCMENT","Older People (65 or over) incl. Older Mentally Ill","REV","Revenue","R4211","Older People Direct Payments","04-SUPPLIES","Supplies And Services","04H","Grants and subscriptions","5954","Professional Fees","60396638","201911",08/02/2019 00:00:00,4439.25,"20703","Computer Systems and Software","REDACTED DATA","CIVICA  UK LTD","1628868","http://opencorporates.com/companies/gb/1628868","391171065"
"London Borough of Redbridge","http://opendatacommunities.org/doc/london-borough-council/redbridge","9BNONBVO","Outside the BVACOP Objective Structure","9CNONBVO","Outside the BVACOP Objective Structure","REV","Revenue","R5132","Repairs and Maintenance - Other","02-PREMISES","Premises","02A","Repairs, alteration and maintenance of buildings","3037","Service Contracts","60397076","201911",09/11/2018 00:00:00,4431.69,"30580","Electricians and Electrical Contractors","REDACTED DATA","PFL ELECTRICAL LTD","4790446","http://opencorporates.com/companies/gb/4790446","834037640"
"London Borough of Redbridge","http://opendatacommunities.org/doc/london-borough-council/redbridge","3BNONSCHFUND","Non-School Funding","3CNONSCH","Non Schools","REV","Revenue","R3962","Early Years - 3 and 4 Year Olds","05-THIRD","Third Party Payments","05A","Independent units within the council","6517","Non-Maintained Schools","3541754","201911",28/02/2019 00:00:00,5309.7,"53120","Nursery Schools","REDACTED DATA","LIBERTY PRESCHOOL & YOUNG CHILDREN CENTRE","CHARITY 1099911","http://opencorporates.com/companies/gb/CHARITY 1099911",""
"London Borough of Redbridge","http://opendatacommunities.org/doc/london-borough-council/redbridge","6BSOCIALSERV","Social Services","6CCHILLOOKED","Children Looked After","REV","Revenue","R2117","SEN and CD Care and Support Packages Social Care","06-TRANSFER","Transfer Payments","06B","Social Services Clients","7050","Agency Homecare","60394570","201911",01/01/2019 00:00:00,5297.81,"43419","Home Care Services","REDACTED DATA","CARE AVENUES LIMITED","",,""
"London Borough of Redbridge","http://opendatacommunities.org/doc/london-borough-council/redbridge","9BNONBVO","Outside the BVACOP Objective Structure","9CNONBVO","Outside the BVACOP Objective Structure","REV","Revenue","R7702","Vehicle Workshop","04-SUPPLIES","Supplies And Services","04A","Equipment, furniture and materials","5510","Materials","668899","201911",14/01/2019 00:00:00,4409.7,"20375","Commercial Vehicle Mnfrs","REDACTED DATA","HEIL EUROPE LTD","53003","http://opencorporates.com/companies/gb/53003","271085664"
"London Borough of Redbridge","http://opendatacommunities.org/doc/london-borough-council/redbridge","4BPUBLICTRAN","Public Transport","4CPARKING","Parking Services","REV","Revenue","R7012","Ley St MSCP","05-THIRD","Third Party Payments","05H","Private contractors","6915","Contractor Payments","60396041","201911",31/01/2019 00:00:00,4400,"69240","Security Services","REDACTED DATA","COVERDALE K9 SECURITY SERVICES LTD","5520509","http://opencorporates.com/companies/gb/5520509","888502190"
"London Borough of Redbridge","http://opendatacommunities.org/doc/london-borough-council/redbridge","3BINDSCHFUND","Individual School Funds","3CDELSECOND","Delegated Individual Secondary School Budgets","REV","Revenue","S2202","TRINITY: CAPITAL: Other","99-NONBV","Capital, Balance Sheet and Control","99B","Accounting & Control","7409","Schools Capital New Construction, Conversion and Renovation","60397859","201911",26/02/2019 00:00:00,5270.4,"11040","Builders","REDACTED DATA","M & G CONSTRUCTION LTD.","1918880","http://opencorporates.com/companies/gb/1918880","406392853"
"London Borough of Redbridge","http://opendatacommunities.org/doc/london-borough-council/redbridge","9BNONBVO","Outside the BVACOP Objective Structure","9CNONBVO","Outside the BVACOP Objective Structure","BAL","Balance Sheet","B0182","Union Deductions","99-NONBV","Capital, Balance Sheet and Control","50Q","Other Balances & Reserves","9910","Personal Account - Debtor","70105997","201911",01/02/2019 00:00:00,5260.8,"79530","Trade Unions","REDACTED DATA","UNISON","",,""
"London Borough of Redbridge","http://opendatacommunities.org/doc/london-borough-council/redbridge","6BADULTSOCIA","Adult Social Care","6COLDINCMENT","Older People (65 or over) incl. Older Mentally Ill","REV","Revenue","R4211","Older People Direct Payments","06-TRANSFER","Transfer Payments","06B","Social Services Clients","7053","Direct Payments","3538903","201911",04/02/2019 00:00:00,5485.24,"90005","Home Care Services DP","REDACTED DATA","REDACTED DATA","",,""
"London Borough of Redbridge","http://opendatacommunities.org/doc/london-borough-council/redbridge","6BADULTSOCIA","Adult Social Care","6COLDINCMENT","Older People (65 or over) incl. Older Mentally Ill","REV","Revenue","R4211","Older People Direct Payments","09-INCOME","Income","09C","Customer and Client Receipts","8545","Direct Payments Income","3538903","201911",04/02/2019 00:00:00,-726.48,"90005","Home Care Services DP","REDACTED DATA","REDACTED DATA","",,""
"London Borough of Redbridge","http://opendatacommunities.org/doc/london-borough-council/redbridge","6BADULTSOCIA","Adult Social Care","6COLDINCMENT","Older People (65 or over) incl. Older Mentally Ill","REV","Revenue","R4211","Older People Direct Payments","09-INCOME","Income","09C","Customer and Client Receipts","8545","Direct Payments Income","3538903","201911",04/02/2019 00:00:00,484.32,"90005","Home Care Services DP","REDACTED DATA","REDACTED DATA","",,""
"London Borough of Redbridge","http://opendatacommunities.org/doc/london-borough-council/redbridge","6BADULTSOCIA","Adult Social Care","6COLDINCMENT","Older People (65 or over) incl. Older Mentally Ill","REV","Revenue","R4385","OP Nursing","05-THIRD","Third Party Payments","05H","Private contractors","6909","Nursing Homes","91033576","201911",08/01/2019 00:00:00,8269.6,"53350","Nursing Homes","REDACTED DATA","HC ONE OVAL(SEABROOKE MANOR)","10257888","http://opencorporates.com/companies/gb/10257888","283937558"
"London Borough of Redbridge","http://opendatacommunities.org/doc/london-borough-council/redbridge","6BADULTSOCIA","Adult Social Care","6COLDINCMENT","Older People (65 or over) incl. Older Mentally Ill","REV","Revenue","R4385","OP Nursing","09-INCOME","Income","09C","Customer and Client Receipts","8557","Nursing Home Charges","91033576","201911",08/01/2019 00:00:00,-3027.84,"53350","Nursing Homes","REDACTED DATA","HC ONE OVAL(SEABROOKE MANOR)","10257888","http://opencorporates.com/companies/gb/10257888","283937558"
"London Borough of Redbridge","http://opendatacommunities.org/doc/london-borough-council/redbridge","9BNONBVO","Outside the BVACOP Objective Structure","9CNONBVO","Outside the BVACOP Objective Structure","BAL","Balance Sheet","B0350","Office Depot Barclaycard","99-NONBV","Capital, Balance Sheet and Control","50Q","Other Balances & Reserves","9912","Personal Account - Creditor","70106242","201911",12/02/2019 00:00:00,5240.17,"22910","Credit Cards and Discount Cards","REDACTED DATA","COMPANY BARCLAYCARD","1026167","http://opencorporates.com/companies/gb/1026167","673478594"
"London Borough of Redbridge","http://opendatacommunities.org/doc/london-borough-council/redbridge","3BNONSCHFUND","Non-School Funding","3CNONSCH","Non Schools","REV","Revenue","R3963","Early Years - 2 Year Olds - Statutory Place Funding","05-THIRD","Third Party Payments","05A","Independent units within the council","6517","Non-Maintained Schools","3541872","201911",28/02/2019 00:00:00,5205.52,"59760","Playgroups, Nurseries and Creches","REDACTED DATA","CLAYHALL NURSERY","",,""
"London Borough of Redbridge","http://opendatacommunities.org/doc/london-borough-council/redbridge","4BMANGT&SUPP","Management & Support Services","4CHIGHRDROUT","Highways/Roads (Routine)","REV","Revenue","R7079","Highways and Transportation Management","01-EMPLOYEES","Employees","01A","Direct employee expenses","4","Agency Staff - Pay","3540674","201911",14/02/2019 00:00:00,4328.5,"18632","Civil Engineers","REDACTED DATA","KENSON CONTRACTORS BENINGTON LTD","1314691","http://opencorporates.com/companies/gb/1314691","301629589"
"London Borough of Redbridge","http://opendatacommunities.org/doc/london-borough-council/redbridge","6BADULTSOCIA","Adult Social Care","6COLDINCMENT","Older People (65 or over) incl. Older Mentally Ill","REV","Revenue","R4385","OP Nursing","05-THIRD","Third Party Payments","05H","Private contractors","6909","Nursing Homes","91033594","201911",15/02/2019 00:00:00,2744.29,"53350","Nursing Homes","REDACTED DATA","HC ONE OVAL (HORNCHURCH CARE HOMES)","10257888","http://opencorporates.com/companies/gb/10257888","283937558"
"London Borough of Redbridge","http://opendatacommunities.org/doc/london-borough-council/redbridge","6BADULTSOCIA","Adult Social Care","6COLDINCMENT","Older People (65 or over) incl. Older Mentally Ill","REV","Revenue","R4385","OP Nursing","05-THIRD","Third Party Payments","05H","Private contractors","6909","Nursing Homes","91033594","201911",15/02/2019 00:00:00,4520,"53350","Nursing Homes","REDACTED DATA","HC ONE OVAL (HORNCHURCH CARE HOMES)","10257888","http://opencorporates.com/companies/gb/10257888","283937558"
"London Borough of Redbridge","http://opendatacommunities.org/doc/london-borough-council/redbridge","6BADULTSOCIA","Adult Social Care","6COLDINCMENT","Older People (65 or over) incl. Older Mentally Ill","REV","Revenue","R4385","OP Nursing","09-INCOME","Income","09C","Customer and Client Receipts","8557","Nursing Home Charges","91033594","201911",15/02/2019 00:00:00,-1296.16,"53350","Nursing Homes","REDACTED DATA","HC ONE OVAL (HORNCHURCH CARE HOMES)","10257888","http://opencorporates.com/companies/gb/10257888","283937558"
"London Borough of Redbridge","http://opendatacommunities.org/doc/london-borough-council/redbridge","6BADULTSOCIA","Adult Social Care","6COLDINCMENT","Older People (65 or over) incl. Older Mentally Ill","REV","Revenue","R4385","OP Nursing","09-INCOME","Income","09C","Customer and Client Receipts","8557","Nursing Home Charges","91033594","201911",15/02/2019 00:00:00,-777.68,"53350","Nursing Homes","REDACTED DATA","HC ONE OVAL (HORNCHURCH CARE HOMES)","10257888","http://opencorporates.com/companies/gb/10257888","283937558"
"London Borough of Redbridge","http://opendatacommunities.org/doc/london-borough-council/redbridge","4BMANGT&SUPP","Management & Support Services","4CHIGHRDROUT","Highways/Roads (Routine)","REV","Revenue","R7079","Highways and Transportation Management","01-EMPLOYEES","Employees","01A","Direct employee expenses","4","Agency Staff - Pay","3539966","201911",07/02/2019 00:00:00,4318.05,"18632","Civil Engineers","REDACTED DATA","KENSON CONTRACTORS BENINGTON LTD","1314691","http://opencorporates.com/companies/gb/1314691","301629589"
"London Borough of Redbridge","http://opendatacommunities.org/doc/london-borough-council/redbridge","6BADULTSOCIA","Adult Social Care","6COLDINCMENT","Older People (65 or over) incl. Older Mentally Ill","REV","Revenue","R4378","OP Residential","05-THIRD","Third Party Payments","05F","Voluntary associations","6802","Residential Homes","91033650","201911",19/02/2019 00:00:00,7004.74,"24200","Day Centres","REDACTED DATA","GABLE COURT NH LTD","11498810","http://opencorporates.com/companies/gb/11498810",""
"London Borough of Redbridge","http://opendatacommunities.org/doc/london-borough-council/redbridge","6BADULTSOCIA","Adult Social Care","6COLDINCMENT","Older People (65 or over) incl. Older Mentally Ill","REV","Revenue","R4378","OP Residential","09-INCOME","Income","09C","Customer and Client Receipts","8555","Accommodation Charges","91033650","201911",19/02/2019 00:00:00,-1828.24,"24200","Day Centres","REDACTED DATA","GABLE COURT NH LTD","11498810","http://opencorporates.com/companies/gb/11498810",""
"London Borough of Redbridge","http://opendatacommunities.org/doc/london-borough-council/redbridge","4BMANGT&SUPP","Management & Support Services","4CHIGHRDROUT","Highways/Roads (Routine)","REV","Revenue","R7079","Highways and Transportation Management","01-EMPLOYEES","Employees","01A","Direct employee expenses","4","Agency Staff - Pay","3541052","201911",21/02/2019 00:00:00,4305.95,"18632","Civil Engineers","REDACTED DATA","KENSON CONTRACTORS BENINGTON LTD","1314691","http://opencorporates.com/companies/gb/1314691","301629589"
"London Borough of Redbridge","http://opendatacommunities.org/doc/london-borough-council/redbridge","4BPUBLICTRAN","Public Transport","4CPARKING","Parking Services","REV","Revenue","R7015","Other Surface Car Pks","05-THIRD","Third Party Payments","05H","Private contractors","6915","Contractor Payments","3540693","201911",14/02/2019 00:00:00,4304.22,"21555","Construction Contractors - General","REDACTED DATA","SKANSKA CONSTRUCTION UK LTD","191408","http://opencorporates.com/companies/gb/191408","378403142"
"London Borough of Redbridge","http://opendatacommunities.org/doc/london-borough-council/redbridge","5BGFHOUSING","General Fund Housing","5CHOMELESS","Homelessness","REV","Revenue","R5622","The Foyer","02-PREMISES","Premises","02E","Water services","4005","Heating and Hot Water","70106318","201911",08/02/2019 00:00:00,4916.38,"30586","Electricity Companies","REDACTED DATA","CORONA ENERGY RETAIL 4 LIMITED","2798334","http://opencorporates.com/companies/gb/2798334","577704800"
"London Borough of Redbridge","http://opendatacommunities.org/doc/london-borough-council/redbridge","4BMANGT&SUPP","Management & Support Services","4CHIGHRDROUT","Highways/Roads (Routine)","REV","Revenue","R7079","Highways and Transportation Management","01-EMPLOYEES","Employees","01A","Direct employee expenses","4","Agency Staff - Pay","3541947","201911",28/02/2019 00:00:00,4299.35,"18632","Civil Engineers","REDACTED DATA","KENSON CONTRACTORS BENINGTON LTD","1314691","http://opencorporates.com/companies/gb/1314691","301629589"
"London Borough of Redbridge","http://opendatacommunities.org/doc/london-borough-council/redbridge","6BSOCIALSERV","Social Services","6CCHILLOOKED","Children Looked After","REV","Revenue","R2158","CSW Service","04-SUPPLIES","Supplies And Services","04E","Services","5760","Interpreters","60397409","201911",25/11/2018 00:00:00,4295.57,"48583","Local Government","REDACTED DATA","LONDON BOROUGH OF NEWHAM","",,"248481537"
"London Borough of Redbridge","http://opendatacommunities.org/doc/london-borough-council/redbridge","6BSOCIALSERV","Social Services","6CCHILLOOKED","Children Looked After","REV","Revenue","R2177","Public Law Outline","04-SUPPLIES","Supplies And Services","04H","Grants and subscriptions","5954","Professional Fees","60397865","201911",07/12/2018 00:00:00,4291.67,"6700","Barristers","REDACTED DATA","SAMANTHA KING","9024472722","http://opencorporates.com/companies/gb/9024472722","564498302"
"London Borough of Redbridge","http://opendatacommunities.org/doc/london-borough-council/redbridge","6BADULTSOCIA","Adult Social Care","6CADLEARNDIS","Adults Under 65 with Learning Disabilities","REV","Revenue","R4215","LD Direct Payments","06-TRANSFER","Transfer Payments","06B","Social Services Clients","7053","Direct Payments","3539315","201911",04/02/2019 00:00:00,5149.36,"90005","Home Care Services DP","REDACTED DATA","REDACTED DATA","",,""
"London Borough of Redbridge","http://opendatacommunities.org/doc/london-borough-council/redbridge","5BGFHOUSING","General Fund Housing","5CHOUMGTSUPP","Housing Management & Support Services","REV","Revenue","R5606","Housing IT","04-SUPPLIES","Supplies And Services","04F","Communications and computing","5853","Computer Software","60396940","201911",18/02/2019 00:00:00,4284.32,"20703","Computer Systems and Software","REDACTED DATA","NORTHGATE PUBLIC SERVICES (UK) LTD","968498","http://opencorporates.com/companies/gb/968498","202159745"
"London Borough of Redbridge","http://opendatacommunities.org/doc/london-borough-council/redbridge","3BNONSCHFUND","Non-School Funding","6CCHILLOOKED","Children Looked After","REV","Revenue","R2238","Looked After Children Placements LA","05-THIRD","Third Party Payments","05H","Private contractors","6917","Fostering Costs - Agency","60396763","201911",15/02/2019 00:00:00,5119.65,"1880","Adoption and Fostering","REDACTED DATA","SELECT FOSTERCARE SERVICES LTD","1656801796","http://opencorporates.com/companies/gb/1656801796",""
"London Borough of Redbridge","http://opendatacommunities.org/doc/london-borough-council/redbridge","6BSOCIALSERV","Social Services","6CCHILLOOKED","Children Looked After","REV","Revenue","R2117","SEN and CD Care and Support Packages Social Care","06-TRANSFER","Transfer Payments","06B","Social Services Clients","7053","Direct Payments","3539685","201911",04/02/2019 00:00:00,5101.79,"98758","Statutory Payments to Individuals","REDACTED DATA","REDACTED DATA","",,""
"London Borough of Redbridge","http://opendatacommunities.org/doc/london-borough-council/redbridge","5BGFHOUSING","General Fund Housing","5CWELFARE","Welfare Services","REV","Revenue","R4111","Supporting People - CPB","05-THIRD","Third Party Payments","05G","Other establishments","6851","Housing Association Payments","60396010","201911",01/02/2019 00:00:00,5101.05,"17020","Charities and Voluntary Organisations","REDACTED DATA","OUTWARD","2151434","http://opencorporates.com/companies/gb/2151434",""
"London Borough of Redbridge","http://opendatacommunities.org/doc/london-borough-council/redbridge","3BNONSCHFUND","Non-School Funding","6CCHILLOOKED","Children Looked After","REV","Revenue","R2238","Looked After Children Placements LA","05-THIRD","Third Party Payments","05H","Private contractors","6917","Fostering Costs - Agency","60395874","201911",01/02/2019 00:00:00,5099.92,"1880","Adoption and Fostering","REDACTED DATA","ANCHOR FOSTER CARE SERVICES LTD","4348277","http://opencorporates.com/companies/gb/4348277",""
"London Borough of Redbridge","http://opendatacommunities.org/doc/london-borough-council/redbridge","6BADULTSOCIA","Adult Social Care","6CADLEARNDIS","Adults Under 65 with Learning Disabilities","REV","Revenue","R4218","LD Individual Budgets","06-TRANSFER","Transfer Payments","06B","Social Services Clients","7053","Direct Payments","3539250","201911",04/02/2019 00:00:00,5293.92,"90005","Home Care Services DP","REDACTED DATA","REDACTED DATA","",,""
"London Borough of Redbridge","http://opendatacommunities.org/doc/london-borough-council/redbridge","6BADULTSOCIA","Adult Social Care","6CADLEARNDIS","Adults Under 65 with Learning Disabilities","REV","Revenue","R4218","LD Individual Budgets","09-INCOME","Income","09C","Customer and Client Receipts","8545","Direct Payments Income","3539250","201911",04/02/2019 00:00:00,-228,"90005","Home Care Services DP","REDACTED DATA","REDACTED DATA","",,""
"London Borough of Redbridge","http://opendatacommunities.org/doc/london-borough-council/redbridge","3BNONSCHFUND","Non-School Funding","3CNONSCH","Non Schools","REV","Revenue","R3963","Early Years - 2 Year Olds - Statutory Place Funding","05-THIRD","Third Party Payments","05A","Independent units within the council","6517","Non-Maintained Schools","3541917","201911",28/02/2019 00:00:00,5065.31,"17580","Childcare Services","REDACTED DATA","DIZZY DUCKS DAY NURSERY LTD","5120112","http://opencorporates.com/companies/gb/5120112",""
"London Borough of Redbridge","http://opendatacommunities.org/doc/london-borough-council/redbridge","6BSOCIALSERV","Social Services","6CCHILLOOKED","Children Looked After","REV","Revenue","R2117","SEN and CD Care and Support Packages Social Care","06-TRANSFER","Transfer Payments","06B","Social Services Clients","7053","Direct Payments","3540896","201911",15/02/2019 00:00:00,5062.5,"90005","Home Care Services DP","REDACTED DATA","REDACTED DATA","",,""
"London Borough of Redbridge","http://opendatacommunities.org/doc/london-borough-council/redbridge","3BINDSCHFUND","Individual School Funds","3CDELSECOND","Delegated Individual Secondary School Budgets","REV","Revenue","S2095","TRINITY : Exams general","04-SUPPLIES","Supplies And Services","04H","Grants and subscriptions","5955","Fees","60397544","201911",11/02/2019 00:00:00,5060.8,"62725","Quality Procedures Processes and Assessment","REDACTED DATA","ASSESSMENT & QUALIFICATION ALLIANCE AQA (GUILDFORD)","3644723","http://opencorporates.com/companies/gb/3644723","709227045"
"London Borough of Redbridge","http://opendatacommunities.org/doc/london-borough-council/redbridge","6BSOCIALSERV","Social Services","6CASYLUMSEEK","Asylum Seekers","REV","Revenue","R2129","Unaccompanied Asylum Seekers","04-SUPPLIES","Supplies And Services","04K","Miscellaneous expenses","6930","Transitional (Under 18)","60397684","201911",04/02/2019 00:00:00,4207.32,"1266","Accommodation Agencies - Residential","REDACTED DATA","NETPEX  LTD","3140728","http://opencorporates.com/companies/gb/3140728","821068356"
"London Borough of Redbridge","http://opendatacommunities.org/doc/london-borough-council/redbridge","6BADULTSOCIA","Adult Social Care","6CADPHYSDIS","Adults Under 65 with Phys Disab or Sensory Impair","REV","Revenue","R4214","PD Direct Payments","06-TRANSFER","Transfer Payments","06B","Social Services Clients","7053","Direct Payments","3538906","201911",04/02/2019 00:00:00,5342.44,"90005","Home Care Services DP","REDACTED DATA","REDACTED DATA","",,""
"London Borough of Redbridge","http://opendatacommunities.org/doc/london-borough-council/redbridge","6BADULTSOCIA","Adult Social Care","6CADPHYSDIS","Adults Under 65 with Phys Disab or Sensory Impair","REV","Revenue","R4214","PD Direct Payments","09-INCOME","Income","09C","Customer and Client Receipts","8545","Direct Payments Income","3538906","201911",04/02/2019 00:00:00,-313.24,"90005","Home Care Services DP","REDACTED DATA","REDACTED DATA","",,""
"London Borough of Redbridge","http://opendatacommunities.org/doc/london-borough-council/redbridge","6BADULTSOCIA","Adult Social Care","6CADLEARNDIS","Adults Under 65 with Learning Disabilities","REV","Revenue","R4215","LD Direct Payments","06-TRANSFER","Transfer Payments","06B","Social Services Clients","7053","Direct Payments","3539535","201911",04/02/2019 00:00:00,5028.28,"90005","Home Care Services DP","REDACTED DATA","REDACTED DATA","",,""
"London Borough of Redbridge","http://opendatacommunities.org/doc/london-borough-council/redbridge","6BADULTSOCIA","Adult Social Care","6CADLEARNDIS","Adults Under 65 with Learning Disabilities","REV","Revenue","R4215","LD Direct Payments","06-TRANSFER","Transfer Payments","06B","Social Services Clients","7053","Direct Payments","3538977","201911",04/02/2019 00:00:00,5043.52,"90005","Home Care Services DP","REDACTED DATA","REDACTED DATA","",,""
"London Borough of Redbridge","http://opendatacommunities.org/doc/london-borough-council/redbridge","6BADULTSOCIA","Adult Social Care","6CADLEARNDIS","Adults Under 65 with Learning Disabilities","REV","Revenue","R4215","LD Direct Payments","09-INCOME","Income","09C","Customer and Client Receipts","8545","Direct Payments Income","3538977","201911",04/02/2019 00:00:00,-37.4,"90005","Home Care Services DP","REDACTED DATA","REDACTED DATA","",,""
"London Borough of Redbridge","http://opendatacommunities.org/doc/london-borough-council/redbridge","3BLEACENTFND","LEA Centrally Held School Funds","3CNONSCH","Non Schools","REV","Revenue","R2231","Special School Top Up Fees","05-THIRD","Third Party Payments","05G","Other establishments","7432","OOB Pre 16 Top Up","60395229","201911",31/01/2019 00:00:00,5000,"67981","Schools - Local Authority","REDACTED DATA","WHITEFIELD ACADEMY TRUST- JOSEPH CLARKE SCHOOL","8878604","http://opencorporates.com/companies/gb/8878604",""
"London Borough of Redbridge","http://opendatacommunities.org/doc/london-borough-council/redbridge","5BGFHOUSING","General Fund Housing","5CHOMELESS","Homelessness","REV","Revenue","R5629","HAC Assessment","04-SUPPLIES","Supplies And Services","04K","Miscellaneous expenses","6282","Prevention & Procurement","70106488","201911",19/02/2019 00:00:00,5000,"47846","Letting Agents","REDACTED DATA","AYANN CONSULTANTS LTD","11025790","http://opencorporates.com/companies/gb/11025790",""
"London Borough of Redbridge","http://opendatacommunities.org/doc/london-borough-council/redbridge","5BGFHOUSING","General Fund Housing","5CHOMELESS","Homelessness","REV","Revenue","R5629","HAC Assessment","04-SUPPLIES","Supplies And Services","04K","Miscellaneous expenses","6282","Prevention & Procurement","70106339","201911",05/02/2019 00:00:00,5000,"32695","Estate Agents and Property Buyers","REDACTED DATA","BAKER ESTATES (COLLIER ROW)","7562938","http://opencorporates.com/companies/gb/7562938","795679057"
"London Borough of Redbridge","http://opendatacommunities.org/doc/london-borough-council/redbridge","9BNONBVO","Outside the BVACOP Objective Structure","9CNONBVO","Outside the BVACOP Objective Structure","BAL","Balance Sheet","B0196","Old Monovians Fishing Lake","99-NONBV","Capital, Balance Sheet and Control","50Q","Other Balances & Reserves","9912","Personal Account - Creditor","40515231","201911",20/02/2019 00:00:00,5000,"4080","Angling and Sports Fishing","REDACTED DATA","REDBRIDGE LAKES LTD","5677459","http://opencorporates.com/companies/gb/5677459",""
"London Borough of Redbridge","http://opendatacommunities.org/doc/london-borough-council/redbridge","9BNONBVO","Outside the BVACOP Objective Structure","9CNONBVO","Outside the BVACOP Objective Structure","BAL","Balance Sheet","B0128","NHS Pensions","99-NONBV","Capital, Balance Sheet and Control","50Q","Other Balances & Reserves","9910","Personal Account - Debtor","70106151","201911",06/02/2019 00:00:00,4960.87,"56860","Pensions","REDACTED DATA","NHS PENSIONS SCHEME ACCOUNT","",,""
"London Borough of Redbridge","http://opendatacommunities.org/doc/london-borough-council/redbridge","6BSOCIALSERV","Social Services","6CCHILLOOKED","Children Looked After","REV","Revenue","R2117","SEN and CD Care and Support Packages Social Care","06-TRANSFER","Transfer Payments","06B","Social Services Clients","7053","Direct Payments","3540898","201911",15/02/2019 00:00:00,4950,"56800","Payroll Services","REDACTED DATA","DAVID HOWARD FUNDING ACCOUNT","3345093","http://opencorporates.com/companies/gb/3345093","788554956"
"London Borough of Redbridge","http://opendatacommunities.org/doc/london-borough-council/redbridge","6BADULTSOCIA","Adult Social Care","6CADLEARNDIS","Adults Under 65 with Learning Disabilities","REV","Revenue","R4215","LD Direct Payments","06-TRANSFER","Transfer Payments","06B","Social Services Clients","7053","Direct Payments","3539270","201911",04/02/2019 00:00:00,4940.16,"90005","Home Care Services DP","REDACTED DATA","REDACTED DATA","",,""
"London Borough of Redbridge","http://opendatacommunities.org/doc/london-borough-council/redbridge","6BADULTSOCIA","Adult Social Care","6CADLEARNDIS","Adults Under 65 with Learning Disabilities","REV","Revenue","R4215","LD Direct Payments","06-TRANSFER","Transfer Payments","06B","Social Services Clients","7053","Direct Payments","3538901","201911",04/02/2019 00:00:00,5071.6,"90005","Home Care Services DP","REDACTED DATA","REDACTED DATA","",,""
"London Borough of Redbridge","http://opendatacommunities.org/doc/london-borough-council/redbridge","6BADULTSOCIA","Adult Social Care","6CADLEARNDIS","Adults Under 65 with Learning Disabilities","REV","Revenue","R4215","LD Direct Payments","09-INCOME","Income","09C","Customer and Client Receipts","8545","Direct Payments Income","3538901","201911",04/02/2019 00:00:00,-142.6,"90005","Home Care Services DP","REDACTED DATA","REDACTED DATA","",,""
"London Borough of Redbridge","http://opendatacommunities.org/doc/london-borough-council/redbridge","9BNONBVO","Outside the BVACOP Objective Structure","9CNONBVO","Outside the BVACOP Objective Structure","CAP","Capital","C2107","Environmental Works","99-NONBV","Capital, Balance Sheet and Control","50E","Capital - Contract Payments","9150","Main Contract","60395865","201911",01/02/2019 00:00:00,2000,"11400","Building Services","REDACTED DATA","M SALSBURY","",,""
"London Borough of Redbridge","http://opendatacommunities.org/doc/london-borough-council/redbridge","9BNONBVO","Outside the BVACOP Objective Structure","9CNONBVO","Outside the BVACOP Objective Structure","CAP","Capital","C2107","Environmental Works","99-NONBV","Capital, Balance Sheet and Control","50E","Capital - Contract Payments","9150","Main Contract","60395865","201911",01/02/2019 00:00:00,4100,"11400","Building Services","REDACTED DATA","M SALSBURY","",,""
"London Borough of Redbridge","http://opendatacommunities.org/doc/london-borough-council/redbridge","9BNONBVO","Outside the BVACOP Objective Structure","9CNONBVO","Outside the BVACOP Objective Structure","CAP","Capital","C2107","Environmental Works","99-NONBV","Capital, Balance Sheet and Control","50E","Capital - Contract Payments","9150","Main Contract","60395865","201911",01/02/2019 00:00:00,-4100,"11400","Building Services","REDACTED DATA","M SALSBURY","",,""
"London Borough of Redbridge","http://opendatacommunities.org/doc/london-borough-council/redbridge","9BNONBVO","Outside the BVACOP Objective Structure","9CNONBVO","Outside the BVACOP Objective Structure","CAP","Capital","C2107","Environmental Works","99-NONBV","Capital, Balance Sheet and Control","50E","Capital - Contract Payments","9150","Main Contract","60395865","201911",01/02/2019 00:00:00,2100,"11400","Building Services","REDACTED DATA","M SALSBURY","",,""
"London Borough of Redbridge","http://opendatacommunities.org/doc/london-borough-council/redbridge","6BADULTSOCIA","Adult Social Care","6CADPHYSDIS","Adults Under 65 with Phys Disab or Sensory Impair","REV","Revenue","R4061","PD Section 5 and 6 Direct Payments","06-TRANSFER","Transfer Payments","06B","Social Services Clients","7053","Direct Payments","3538889","201911",04/02/2019 00:00:00,4920,"90005","Home Care Services DP","REDACTED DATA","REDACTED DATA","",,""
"London Borough of Redbridge","http://opendatacommunities.org/doc/london-borough-council/redbridge","3BINDSCHFUND","Individual School Funds","3CNONSCH","Non Schools","REV","Revenue","R2000","Primary Schools SEN Top Up Fees","05-THIRD","Third Party Payments","05G","Other establishments","7432","OOB Pre 16 Top Up","60396377","201911",12/02/2019 00:00:00,4905,"67981","Schools - Local Authority","REDACTED DATA","CHIGWELL ROW INFANT SCHOOL","",,""
"London Borough of Redbridge","http://opendatacommunities.org/doc/london-borough-council/redbridge","3BLEACENTFND","LEA Centrally Held School Funds","3CNONSCH","Non Schools","REV","Revenue","R3257","ISS Investment Programme","04-SUPPLIES","Supplies And Services","04A","Equipment, furniture and materials","5502","Equipment Purchase","60395966","201911",07/02/2019 00:00:00,4900,"67981","Schools - Local Authority","REDACTED DATA","DOWNSHALL PRIMARY SCHOOL A/C","",,""
"London Borough of Redbridge","http://opendatacommunities.org/doc/london-borough-council/redbridge","3BNONSCHFUND","Non-School Funding","6CCHILLOOKED","Children Looked After","REV","Revenue","R2238","Looked After Children Placements LA","04-SUPPLIES","Supplies And Services","04K","Miscellaneous expenses","6289","Children Services Supportive Activities","60396706","201911",31/01/2019 00:00:00,4900,"43419","Home Care Services","REDACTED DATA","JOHNATHAN KABAMBA","4304846720","http://opencorporates.com/companies/gb/4304846720",""
"London Borough of Redbridge","http://opendatacommunities.org/doc/london-borough-council/redbridge","6BADULTSOCIA","Adult Social Care","6COLDINCMENT","Older People (65 or over) incl. Older Mentally Ill","REV","Revenue","R4378","OP Residential","05-THIRD","Third Party Payments","05F","Voluntary associations","6802","Residential Homes","91030501","201911",08/01/2019 00:00:00,6483.96,"53350","Nursing Homes","REDACTED DATA","CARE UK COMMUNITY PARTNERSHIPS LTD","1668247","http://opencorporates.com/companies/gb/1668247",""
"London Borough of Redbridge","http://opendatacommunities.org/doc/london-borough-council/redbridge","6BADULTSOCIA","Adult Social Care","6COLDINCMENT","Older People (65 or over) incl. Older Mentally Ill","REV","Revenue","R4378","OP Residential","05-THIRD","Third Party Payments","05F","Voluntary associations","6802","Residential Homes","91030501","201911",08/01/2019 00:00:00,2636.04,"53350","Nursing Homes","REDACTED DATA","CARE UK COMMUNITY PARTNERSHIPS LTD","1668247","http://opencorporates.com/companies/gb/1668247",""
"London Borough of Redbridge","http://opendatacommunities.org/doc/london-borough-council/redbridge","6BADULTSOCIA","Adult Social Care","6COLDINCMENT","Older People (65 or over) incl. Older Mentally Ill","REV","Revenue","R4378","OP Residential","09-INCOME","Income","09C","Customer and Client Receipts","8555","Accommodation Charges","91030501","201911",08/01/2019 00:00:00,-2636.04,"53350","Nursing Homes","REDACTED DATA","CARE UK COMMUNITY PARTNERSHIPS LTD","1668247","http://opencorporates.com/companies/gb/1668247",""
"London Borough of Redbridge","http://opendatacommunities.org/doc/london-borough-council/redbridge","6BADULTSOCIA","Adult Social Care","6COLDINCMENT","Older People (65 or over) incl. Older Mentally Ill","REV","Revenue","R4378","OP Residential","09-INCOME","Income","09C","Customer and Client Receipts","8555","Accommodation Charges","91030501","201911",08/01/2019 00:00:00,-1597.2,"53350","Nursing Homes","REDACTED DATA","CARE UK COMMUNITY PARTNERSHIPS LTD","1668247","http://opencorporates.com/companies/gb/1668247",""
"London Borough of Redbridge","http://opendatacommunities.org/doc/london-borough-council/redbridge","3BNONSCHFUND","Non-School Funding","6CCHILLOOKED","Children Looked After","REV","Revenue","R2238","Looked After Children Placements LA","05-THIRD","Third Party Payments","05H","Private contractors","6917","Fostering Costs - Agency","60395788","201911",01/01/2019 00:00:00,4871.34,"17580","Childcare Services","REDACTED DATA","FAMILY WORKS FOSTERING AGENCY","9441899","http://opencorporates.com/companies/gb/9441899","266177480"
"London Borough of Redbridge","http://opendatacommunities.org/doc/london-borough-council/redbridge","3BNONSCHFUND","Non-School Funding","6CCHILLOOKED","Children Looked After","REV","Revenue","R2238","Looked After Children Placements LA","05-THIRD","Third Party Payments","05H","Private contractors","6917","Fostering Costs - Agency","60395444","201910",01/02/2019 00:00:00,4867.8,"1880","Adoption and Fostering","REDACTED DATA","ORANGE GROVE FOSTERCARE LTD","7027421","http://opencorporates.com/companies/gb/7027421",""
"London Borough of Redbridge","http://opendatacommunities.org/doc/london-borough-council/redbridge","6BADULTSOCIA","Adult Social Care","6CADLEARNDIS","Adults Under 65 with Learning Disabilities","REV","Revenue","R4215","LD Direct Payments","06-TRANSFER","Transfer Payments","06B","Social Services Clients","7053","Direct Payments","3538907","201911",04/02/2019 00:00:00,4867.72,"90005","Home Care Services DP","REDACTED DATA","REDACTED DATA","",,""
"London Borough of Redbridge","http://opendatacommunities.org/doc/london-borough-council/redbridge","9BNONBVO","Outside the BVACOP Objective Structure","9CNONBVO","Outside the BVACOP Objective Structure","REV","Revenue","R7702","Vehicle Workshop","01-EMPLOYEES","Employees","01A","Direct employee expenses","450","General Weekly Paid Staff - Pay","669008","201911",28/01/2019 00:00:00,4050,"50275","Mechanical Engineers","REDACTED DATA","RAM FLEET SOLUTIONS LTD","10680521","http://opencorporates.com/companies/gb/10680521",""
"London Borough of Redbridge","http://opendatacommunities.org/doc/london-borough-council/redbridge","2BENVIRONMEN","Environmental Services","2CWASTECOLLN","Waste Collection","REV","Revenue","R6152","Commercial Waste","04-SUPPLIES","Supplies And Services","04A","Equipment, furniture and materials","5508","General Consumables","60397654","201911",16/01/2019 00:00:00,4039.5,"21760","Container Mnfrs","REDACTED DATA","EGBERT H TAYLOR & COMPANY LIMITED","718441","http://opencorporates.com/companies/gb/718441","695267487"
"London Borough of Redbridge","http://opendatacommunities.org/doc/london-borough-council/redbridge","6BADULTSOCIA","Adult Social Care","6COLDINCMENT","Older People (65 or over) incl. Older Mentally Ill","REV","Revenue","R4385","OP Nursing","05-THIRD","Third Party Payments","05H","Private contractors","6909","Nursing Homes","91033655","201911",19/02/2019 00:00:00,7288.73,"24200","Day Centres","REDACTED DATA","GABLE COURT NH LTD","11498810","http://opencorporates.com/companies/gb/11498810",""
"London Borough of Redbridge","http://opendatacommunities.org/doc/london-borough-council/redbridge","6BADULTSOCIA","Adult Social Care","6COLDINCMENT","Older People (65 or over) incl. Older Mentally Ill","REV","Revenue","R4385","OP Nursing","09-INCOME","Income","09C","Customer and Client Receipts","8557","Nursing Home Charges","91033655","201911",19/02/2019 00:00:00,-2444.82,"24200","Day Centres","REDACTED DATA","GABLE COURT NH LTD","11498810","http://opencorporates.com/companies/gb/11498810",""
"London Borough of Redbridge","http://opendatacommunities.org/doc/london-borough-council/redbridge","9BNONBVO","Outside the BVACOP Objective Structure","9CNONBVO","Outside the BVACOP Objective Structure","REV","Revenue","R7602","Street Cleansing","01-EMPLOYEES","Employees","01A","Direct employee expenses","409","Agency Staff Pay","60396623","201911",11/02/2019 00:00:00,4018.34,"31230","Employment and Recruitment Agencies","REDACTED DATA","AMBITIONS EMPLOYMENT AGENCY","6683811","http://opencorporates.com/companies/gb/6683811","542142969"
"London Borough of Redbridge","http://opendatacommunities.org/doc/london-borough-council/redbridge","9BNONBVO","Outside the BVACOP Objective Structure","9CNONBVO","Outside the BVACOP Objective Structure","BAL","Balance Sheet","B0182","Union Deductions","99-NONBV","Capital, Balance Sheet and Control","50Q","Other Balances & Reserves","9910","Personal Account - Debtor","70106162","201911",06/02/2019 00:00:00,4818.55,"79530","Trade Unions","REDACTED DATA","UNISON","",,""
"London Borough of Redbridge","http://opendatacommunities.org/doc/london-borough-council/redbridge","6BADULTSOCIA","Adult Social Care","6CADLEARNDIS","Adults Under 65 with Learning Disabilities","REV","Revenue","R4215","LD Direct Payments","06-TRANSFER","Transfer Payments","06B","Social Services Clients","7053","Direct Payments","3539043","201911",04/02/2019 00:00:00,4880,"90005","Home Care Services DP","REDACTED DATA","REDACTED DATA","",,""
"London Borough of Redbridge","http://opendatacommunities.org/doc/london-borough-council/redbridge","6BADULTSOCIA","Adult Social Care","6CADLEARNDIS","Adults Under 65 with Learning Disabilities","REV","Revenue","R4215","LD Direct Payments","09-INCOME","Income","09C","Customer and Client Receipts","8545","Direct Payments Income","3539043","201911",04/02/2019 00:00:00,-62.56,"90005","Home Care Services DP","REDACTED DATA","REDACTED DATA","",,""
"London Borough of Redbridge","http://opendatacommunities.org/doc/london-borough-council/redbridge","4BMANGT&SUPP","Management & Support Services","4CHIGHRDROUT","Highways/Roads (Routine)","REV","Revenue","R7002","Festive Lights","05-THIRD","Third Party Payments","05H","Private contractors","6915","Contractor Payments","3540040","201911",07/02/2019 00:00:00,4010.65,"21555","Construction Contractors - General","REDACTED DATA","SKANSKA CONSTRUCTION UK LTD","191408","http://opencorporates.com/companies/gb/191408","378403142"
"London Borough of Redbridge","http://opendatacommunities.org/doc/london-borough-council/redbridge","9BNONBVO","Outside the BVACOP Objective Structure","9CNONBVO","Outside the BVACOP Objective Structure","REV","Revenue","R7702","Vehicle Workshop","01-EMPLOYEES","Employees","01A","Direct employee expenses","450","General Weekly Paid Staff - Pay","669007","201911",04/02/2019 00:00:00,4005,"50275","Mechanical Engineers","REDACTED DATA","RAM FLEET SOLUTIONS LTD","10680521","http://opencorporates.com/companies/gb/10680521",""
"London Borough of Redbridge","http://opendatacommunities.org/doc/london-borough-council/redbridge","1BOTHEROPI&E","Other Operating Income & Expenditure","1CTRADSURDEF","Trading Account Surpluses & Deficits","REV","Revenue","R9001","Customer Contact Centre","04-SUPPLIES","Supplies And Services","04F","Communications and computing","5853","Computer Software","60395157","201911",29/01/2019 00:00:00,4000,"20703","Computer Systems and Software","REDACTED DATA","NORTHGATE PUBLIC SERVICES (UK) LTD","968498","http://opencorporates.com/companies/gb/968498","202159745"
"London Borough of Redbridge","http://opendatacommunities.org/doc/london-borough-council/redbridge","2BCULTUR&REL","Cultural & Related Services","2CREC&SPORT","Recreation & Sport","REV","Revenue","R6999","Leisure Client","04-SUPPLIES","Supplies And Services","04H","Grants and subscriptions","5954","Professional Fees","60395734","201911",25/10/2018 00:00:00,4000,"12100","Business and Management Consultants","REDACTED DATA","FATHOM CONSULTANCY SOLUTIONS LTD","10590055","http://opencorporates.com/companies/gb/10590055","261507225"
"London Borough of Redbridge","http://opendatacommunities.org/doc/london-borough-council/redbridge","2BPLANPOL","Planning Policy","","","REV","Revenue","R6509","Head of Delivery","04-SUPPLIES","Supplies And Services","04H","Grants and subscriptions","5956","Subscriptions","60396239","201911",31/01/2019 00:00:00,4000,"61893","Promotional Items","REDACTED DATA","PIPERS PROJECT LTD","2924619","http://opencorporates.com/companies/gb/2924619","649938766"
"London Borough of Redbridge","http://opendatacommunities.org/doc/london-borough-council/redbridge","6BADULTSOCIA","Adult Social Care","6CSUPPSERMGT","Support Service & Management Costs","REV","Revenue","R4468","Contracts Team","01-EMPLOYEES","Employees","01A","Direct employee expenses","4","Agency Staff - Pay","60397067","201911",28/01/2019 00:00:00,4000,"48583","Local Government","REDACTED DATA","HERTFORDSHIRE COUNTY COUNCIL","",,"214527877"
"London Borough of Redbridge","http://opendatacommunities.org/doc/london-borough-council/redbridge","6BSOCIALSERV","Social Services","6CCHILCOMSNG","Children's Services - Commissioning & Social Work","REV","Revenue","R2186","F&A - Leaving Care Team","04-SUPPLIES","Supplies And Services","04K","Miscellaneous expenses","6289","Children Services Supportive Activities","60395602","201911",30/01/2019 00:00:00,4793.79,"74100","Storage Services","REDACTED DATA","BIG YELLOW SELF STORAGE CO LTD","5166173","http://opencorporates.com/companies/gb/5166173","915892884"
"London Borough of Redbridge","http://opendatacommunities.org/doc/london-borough-council/redbridge","3BNONSCHFUND","Non-School Funding","3CNONSCH","Non Schools","REV","Revenue","R3963","Early Years - 2 Year Olds - Statutory Place Funding","05-THIRD","Third Party Payments","05A","Independent units within the council","6517","Non-Maintained Schools","3541915","201911",28/02/2019 00:00:00,4778.17,"17580","Childcare Services","REDACTED DATA","BARNEY BEARS NURSERY LTD","4793063","http://opencorporates.com/companies/gb/4793063",""
"London Borough of Redbridge","http://opendatacommunities.org/doc/london-borough-council/redbridge","3BINDSCHFUND","Individual School Funds","3CDELPRIMARY","Delegated Individual Primary School Budgets","REV","Revenue","S1047","CHRISTCHURCH : ICT","04-SUPPLIES","Supplies And Services","04F","Communications and computing","5868","IT Support Contract","60396520","201911",09/01/2019 00:00:00,3980.1,"20703","Computer Systems and Software","REDACTED DATA","CAPITA IT SERVICES(BSF) LTD","1855936","http://opencorporates.com/companies/gb/1855936","618184140"
"London Borough of Redbridge","http://opendatacommunities.org/doc/london-borough-council/redbridge","9BNONBVO","Outside the BVACOP Objective Structure","9CNONBVO","Outside the BVACOP Objective Structure","REV","Revenue","R7701","Fleet Management","04-SUPPLIES","Supplies And Services","04E","Services","5754","Consultancy","668761","201911",14/12/2018 00:00:00,3977.5,"20703","Computer Systems and Software","REDACTED DATA","CIVICA  UK LTD","1628868","http://opencorporates.com/companies/gb/1628868","391171065"
"London Borough of Redbridge","http://opendatacommunities.org/doc/london-borough-council/redbridge","1BOTHEROPI&E","Other Operating Income & Expenditure","1CTRADSURDEF","Trading Account Surpluses & Deficits","REV","Revenue","R9556","CLM Cleaning","02-PREMISES","Premises","02H","Cleaning and domestic supplies","4620","Cleaning Contract Payments","3540108","201911",04/12/2018 00:00:00,584.92,"79180","Towel Supply and Washroom Services","REDACTED DATA","INITIAL WASHROOM SOLUTIONS","293397","http://opencorporates.com/companies/gb/293397","190621474"
"London Borough of Redbridge","http://opendatacommunities.org/doc/london-borough-council/redbridge","1BOTHEROPI&E","Other Operating Income & Expenditure","1CTRADSURDEF","Trading Account Surpluses & Deficits","REV","Revenue","R9556","CLM Cleaning","02-PREMISES","Premises","02H","Cleaning and domestic supplies","4620","Cleaning Contract Payments","3540108","201911",04/12/2018 00:00:00,2109.64,"79180","Towel Supply and Washroom Services","REDACTED DATA","INITIAL WASHROOM SOLUTIONS","293397","http://opencorporates.com/companies/gb/293397","190621474"
"London Borough of Redbridge","http://opendatacommunities.org/doc/london-borough-council/redbridge","1BOTHEROPI&E","Other Operating Income & Expenditure","1CTRADSURDEF","Trading Account Surpluses & Deficits","REV","Revenue","R9556","CLM Cleaning","02-PREMISES","Premises","02H","Cleaning and domestic supplies","4620","Cleaning Contract Payments","3540108","201911",04/12/2018 00:00:00,154.44,"79180","Towel Supply and Washroom Services","REDACTED DATA","INITIAL WASHROOM SOLUTIONS","293397","http://opencorporates.com/companies/gb/293397","190621474"
"London Borough of Redbridge","http://opendatacommunities.org/doc/london-borough-council/redbridge","1BOTHEROPI&E","Other Operating Income & Expenditure","1CTRADSURDEF","Trading Account Surpluses & Deficits","REV","Revenue","R9556","CLM Cleaning","02-PREMISES","Premises","02H","Cleaning and domestic supplies","4620","Cleaning Contract Payments","3540108","201911",04/12/2018 00:00:00,338.52,"79180","Towel Supply and Washroom Services","REDACTED DATA","INITIAL WASHROOM SOLUTIONS","293397","http://opencorporates.com/companies/gb/293397","190621474"
"London Borough of Redbridge","http://opendatacommunities.org/doc/london-borough-council/redbridge","1BOTHEROPI&E","Other Operating Income & Expenditure","1CTRADSURDEF","Trading Account Surpluses & Deficits","REV","Revenue","R9556","CLM Cleaning","02-PREMISES","Premises","02H","Cleaning and domestic supplies","4620","Cleaning Contract Payments","3540108","201911",04/12/2018 00:00:00,141.96,"79180","Towel Supply and Washroom Services","REDACTED DATA","INITIAL WASHROOM SOLUTIONS","293397","http://opencorporates.com/companies/gb/293397","190621474"
"London Borough of Redbridge","http://opendatacommunities.org/doc/london-borough-council/redbridge","1BOTHEROPI&E","Other Operating Income & Expenditure","1CTRADSURDEF","Trading Account Surpluses & Deficits","REV","Revenue","R9556","CLM Cleaning","02-PREMISES","Premises","02H","Cleaning and domestic supplies","4620","Cleaning Contract Payments","3540108","201911",04/12/2018 00:00:00,81.12,"79180","Towel Supply and Washroom Services","REDACTED DATA","INITIAL WASHROOM SOLUTIONS","293397","http://opencorporates.com/companies/gb/293397","190621474"
"London Borough of Redbridge","http://opendatacommunities.org/doc/london-borough-council/redbridge","1BOTHEROPI&E","Other Operating Income & Expenditure","1CTRADSURDEF","Trading Account Surpluses & Deficits","REV","Revenue","R9556","CLM Cleaning","02-PREMISES","Premises","02H","Cleaning and domestic supplies","4620","Cleaning Contract Payments","3540108","201911",04/12/2018 00:00:00,565.04,"79180","Towel Supply and Washroom Services","REDACTED DATA","INITIAL WASHROOM SOLUTIONS","293397","http://opencorporates.com/companies/gb/293397","190621474"
"London Borough of Redbridge","http://opendatacommunities.org/doc/london-borough-council/redbridge","1BOTHEROPI&E","Other Operating Income & Expenditure","1CTRADSURDEF","Trading Account Surpluses & Deficits","REV","Revenue","R9148","Tree Holding Account","02-PREMISES","Premises","02I","Grounds maintenance costs","4753","Trees / Recreational","60395805","201911",05/02/2019 00:00:00,3975,"80228","Tree Work and Forestry Services","REDACTED DATA","DEAN TUCKER LTD","9178711","http://opencorporates.com/companies/gb/9178711","193245792"
"London Borough of Redbridge","http://opendatacommunities.org/doc/london-borough-council/redbridge","9BNONBVO","Outside the BVACOP Objective Structure","9CNONBVO","Outside the BVACOP Objective Structure","REV","Revenue","R7702","Vehicle Workshop","04-SUPPLIES","Supplies And Services","04A","Equipment, furniture and materials","5510","Materials","668795","201911",26/10/2018 00:00:00,3962.7,"13240","Car Accessories and Parts","REDACTED DATA","SPARSHATTS OF KENT LTD","1196089","http://opencorporates.com/companies/gb/1196089","204538975"
"London Borough of Redbridge","http://opendatacommunities.org/doc/london-borough-council/redbridge","3BNONSCHFUND","Non-School Funding","3CNONSCH","Non Schools","REV","Revenue","R3963","Early Years - 2 Year Olds - Statutory Place Funding","05-THIRD","Third Party Payments","05A","Independent units within the council","6517","Non-Maintained Schools","3541945","201911",28/02/2019 00:00:00,4754.4,"17580","Childcare Services","REDACTED DATA","KOOL KIDZE LTD","7096733","http://opencorporates.com/companies/gb/7096733",""
"London Borough of Redbridge","http://opendatacommunities.org/doc/london-borough-council/redbridge","3BLEACENTFND","LEA Centrally Held School Funds","3CNONSCH","Non Schools","REV","Revenue","R2234","Colleges and ISP Top up fees","05-THIRD","Third Party Payments","05G","Other establishments","7432","OOB Pre 16 Top Up","60395398","201911",31/01/2019 00:00:00,3960,"31230","Employment and Recruitment Agencies","REDACTED DATA","REMEDY RECRUITMENT GROUP LTD","4651426","http://opencorporates.com/companies/gb/4651426","820791924"
"London Borough of Redbridge","http://opendatacommunities.org/doc/london-borough-council/redbridge","9BNONBVO","Outside the BVACOP Objective Structure","9CNONBVO","Outside the BVACOP Objective Structure","REV","Revenue","R7702","Vehicle Workshop","01-EMPLOYEES","Employees","01A","Direct employee expenses","450","General Weekly Paid Staff - Pay","669006","201911",21/01/2019 00:00:00,3960,"50275","Mechanical Engineers","REDACTED DATA","RAM FLEET SOLUTIONS LTD","10680521","http://opencorporates.com/companies/gb/10680521",""
"London Borough of Redbridge","http://opendatacommunities.org/doc/london-borough-council/redbridge","9BNONBVO","Outside the BVACOP Objective Structure","9CNONBVO","Outside the BVACOP Objective Structure","REV","Revenue","R7702","Vehicle Workshop","01-EMPLOYEES","Employees","01A","Direct employee expenses","450","General Weekly Paid Staff - Pay","668754","201911",14/01/2019 00:00:00,3960,"50275","Mechanical Engineers","REDACTED DATA","RAM FLEET SOLUTIONS LTD","10680521","http://opencorporates.com/companies/gb/10680521",""
"London Borough of Redbridge","http://opendatacommunities.org/doc/london-borough-council/redbridge","4BPUBLICTRAN","Public Transport","4CPARKING","Parking Services","REV","Revenue","R7005","Parking Management and Admin","01-EMPLOYEES","Employees","01B","Indirect employee expenses","2403","External Training","60395249","201911",17/01/2019 00:00:00,3950,"79980","Training Services","REDACTED DATA","ALPHA PARKING LTD","5246532","http://opencorporates.com/companies/gb/5246532","853212841"
"London Borough of Redbridge","http://opendatacommunities.org/doc/london-borough-council/redbridge","4BPUBLICTRAN","Public Transport","4CPARKING","Parking Services","REV","Revenue","R7005","Parking Management and Admin","01-EMPLOYEES","Employees","01B","Indirect employee expenses","2403","External Training","60395243","201910",24/01/2019 00:00:00,3950,"79980","Training Services","REDACTED DATA","ALPHA PARKING LTD","5246532","http://opencorporates.com/companies/gb/5246532","853212841"
"London Borough of Redbridge","http://opendatacommunities.org/doc/london-borough-council/redbridge","4BMANGT&SUPP","Management & Support Services","4CHIGHRDROUT","Highways/Roads (Routine)","REV","Revenue","R7002","Festive Lights","05-THIRD","Third Party Payments","05H","Private contractors","6915","Contractor Payments","3540041","201911",07/02/2019 00:00:00,3939.9,"21555","Construction Contractors - General","REDACTED DATA","SKANSKA CONSTRUCTION UK LTD","191408","http://opencorporates.com/companies/gb/191408","378403142"
"London Borough of Redbridge","http://opendatacommunities.org/doc/london-borough-council/redbridge","9BNONBVO","Outside the BVACOP Objective Structure","9CNONBVO","Outside the BVACOP Objective Structure","BAL","Balance Sheet","B0059","DUMMY VAT ACCOUNT","99-NONBV","Capital, Balance Sheet and Control","50L","Debtors","9359","VAT only invoices","70106358","201911",08/01/2019 00:00:00,4727.35,"6130","Bailiffs","REDACTED DATA","CONFERO COLLECTIONS LTD","7045498","http://opencorporates.com/companies/gb/7045498","980095896"
"London Borough of Redbridge","http://opendatacommunities.org/doc/london-borough-council/redbridge","9BNONBVO","Outside the BVACOP Objective Structure","9CNONBVO","Outside the BVACOP Objective Structure","BAL","Balance Sheet","B0059","DUMMY VAT ACCOUNT","99-NONBV","Capital, Balance Sheet and Control","50L","Debtors","9359","VAT only invoices","70106358","201911",08/01/2019 00:00:00,-4727.35,"6130","Bailiffs","REDACTED DATA","CONFERO COLLECTIONS LTD","7045498","http://opencorporates.com/companies/gb/7045498","980095896"
"London Borough of Redbridge","http://opendatacommunities.org/doc/london-borough-council/redbridge","3BNONSCHFUND","Non-School Funding","3CNONSCH","Non Schools","REV","Revenue","R3962","Early Years - 3 and 4 Year Olds","05-THIRD","Third Party Payments","05A","Independent units within the council","6517","Non-Maintained Schools","3541767","201911",28/02/2019 00:00:00,4719.33,"59760","Playgroups, Nurseries and Creches","REDACTED DATA","CRANBROOK CASTLE MONTESSORI LTD","8596592","http://opencorporates.com/companies/gb/8596592",""
"London Borough of Redbridge","http://opendatacommunities.org/doc/london-borough-council/redbridge","6BADULTSOCIA","Adult Social Care","6COLDINCMENT","Older People (65 or over) incl. Older Mentally Ill","REV","Revenue","R4385","OP Nursing","05-THIRD","Third Party Payments","05H","Private contractors","6909","Nursing Homes","91033652","201911",19/02/2019 00:00:00,6423.71,"24200","Day Centres","REDACTED DATA","GABLE COURT NH LTD","11498810","http://opencorporates.com/companies/gb/11498810",""
"London Borough of Redbridge","http://opendatacommunities.org/doc/london-borough-council/redbridge","6BADULTSOCIA","Adult Social Care","6COLDINCMENT","Older People (65 or over) incl. Older Mentally Ill","REV","Revenue","R4385","OP Nursing","09-INCOME","Income","09C","Customer and Client Receipts","8557","Nursing Home Charges","91033652","201911",19/02/2019 00:00:00,-1716.39,"24200","Day Centres","REDACTED DATA","GABLE COURT NH LTD","11498810","http://opencorporates.com/companies/gb/11498810",""
"London Borough of Redbridge","http://opendatacommunities.org/doc/london-borough-council/redbridge","9BNONBVO","Outside the BVACOP Objective Structure","9CNONBVO","Outside the BVACOP Objective Structure","CAP","Capital","C4299","Mayfield School - New Design Technology Block","99-NONBV","Capital, Balance Sheet and Control","50B","Capital - Contracted Works","9055","External - Consultants Fees","60394275","201911",20/12/2018 00:00:00,3920,"42230","Health and Safety Consultants","REDACTED DATA","PELLINGS LLP","OC326178","http://opencorporates.com/companies/gb/OC326178","299349688"
"London Borough of Redbridge","http://opendatacommunities.org/doc/london-borough-council/redbridge","3BNONSCHFUND","Non-School Funding","3CNONSCH","Non Schools","REV","Revenue","R3963","Early Years - 2 Year Olds - Statutory Place Funding","05-THIRD","Third Party Payments","05A","Independent units within the council","6517","Non-Maintained Schools","3541884","201911",28/02/2019 00:00:00,4703.46,"59760","Playgroups, Nurseries and Creches","REDACTED DATA","PLAYDAYS NURSERY","",,""
"London Borough of Redbridge","http://opendatacommunities.org/doc/london-borough-council/redbridge","6BSOCIALSERV","Social Services","6CCHILLOOKED","Children Looked After","REV","Revenue","R2177","Public Law Outline","04-SUPPLIES","Supplies And Services","04H","Grants and subscriptions","5954","Professional Fees","60395720","201911",01/02/2019 00:00:00,4690,"1266","Accommodation Agencies - Residential","REDACTED DATA","BRITANNIA RESIDENTIALS LTD","8398758","http://opencorporates.com/companies/gb/8398758",""
"London Borough of Redbridge","http://opendatacommunities.org/doc/london-borough-council/redbridge","6BADULTSOCIA","Adult Social Care","6CADLEARNDIS","Adults Under 65 with Learning Disabilities","REV","Revenue","R4188","LD - Residential Care","05-THIRD","Third Party Payments","05F","Voluntary associations","6802","Residential Homes","91030574","201911",08/01/2019 00:00:00,5079.12,"64710","Residential Care Homes","REDACTED DATA","CAREONE LTD (RUSSELL LODGE)","4270516","http://opencorporates.com/companies/gb/4270516",""
"London Borough of Redbridge","http://opendatacommunities.org/doc/london-borough-council/redbridge","6BADULTSOCIA","Adult Social Care","6CADLEARNDIS","Adults Under 65 with Learning Disabilities","REV","Revenue","R4188","LD - Residential Care","09-INCOME","Income","09C","Customer and Client Receipts","8555","Accommodation Charges","91030574","201911",08/01/2019 00:00:00,-409,"64710","Residential Care Homes","REDACTED DATA","CAREONE LTD (RUSSELL LODGE)","4270516","http://opencorporates.com/companies/gb/4270516",""
"London Borough of Redbridge","http://opendatacommunities.org/doc/london-borough-council/redbridge","1BOTHEROPI&E","Other Operating Income & Expenditure","1CTRADSURDEF","Trading Account Surpluses & Deficits","REV","Revenue","R9252","IT Applications","04-SUPPLIES","Supplies And Services","04F","Communications and computing","5853","Computer Software","60393006","201911",28/12/2018 00:00:00,3888.95,"76510","Telecommunication Services","REDACTED DATA","MAINTEL EUROPE LIMITED","2665837","http://opencorporates.com/companies/gb/2665837","744336531"
"London Borough of Redbridge","http://opendatacommunities.org/doc/london-borough-council/redbridge","4BMANGT&SUPP","Management & Support Services","4CHIGHRDROUT","Highways/Roads (Routine)","REV","Revenue","R7059","Winter Maintenance","04-SUPPLIES","Supplies And Services","04A","Equipment, furniture and materials","5510","Materials","60397391","201911",20/02/2019 00:00:00,3884.06,"66340","Salt Suppliers","REDACTED DATA","COMPASS MINERALS UK LTD","2654529","http://opencorporates.com/companies/gb/2654529","595803600"
"London Borough of Redbridge","http://opendatacommunities.org/doc/london-borough-council/redbridge","3BNONSCHFUND","Non-School Funding","3CNONSCH","Non Schools","REV","Revenue","R3962","Early Years - 3 and 4 Year Olds","05-THIRD","Third Party Payments","05A","Independent units within the council","6517","Non-Maintained Schools","3541701","201911",28/02/2019 00:00:00,4646.16,"59760","Playgroups, Nurseries and Creches","REDACTED DATA","DOWNSHALL PRE-SCHOOL PLAYGROUP","",,""
"London Borough of Redbridge","http://opendatacommunities.org/doc/london-borough-council/redbridge","3BINDSCHFUND","Individual School Funds","3CDELSECOND","Delegated Individual Secondary School Budgets","REV","Revenue","S3571","KING SOLOMON - Exams","04-SUPPLIES","Supplies And Services","04H","Grants and subscriptions","5955","Fees","60397756","201911",15/02/2019 00:00:00,4645.8,"62725","Quality Procedures Processes and Assessment","REDACTED DATA","ASSESSMENT & QUALIFICATION ALLIANCE AQA (GUILDFORD)","3644723","http://opencorporates.com/companies/gb/3644723","709227045"
"London Borough of Redbridge","http://opendatacommunities.org/doc/london-borough-council/redbridge","6BSOCIALSERV","Social Services","6CCHILLOOKED","Children Looked After","REV","Revenue","R2117","SEN and CD Care and Support Packages Social Care","06-TRANSFER","Transfer Payments","06B","Social Services Clients","7050","Agency Homecare","60395695","201911",03/02/2019 00:00:00,4636.8,"17580","Childcare Services","REDACTED DATA","LORABLOOMS CARE SERVICES LIMITED","",,""
"London Borough of Redbridge","http://opendatacommunities.org/doc/london-borough-council/redbridge","3BINDSCHFUND","Individual School Funds","3CDELPRIMARY","Delegated Individual Primary School Budgets","REV","Revenue","S1047","CHRISTCHURCH : ICT","04-SUPPLIES","Supplies And Services","04F","Communications and computing","5869","IT Consumable toners, bulbs etc","60396076","201911",25/01/2019 00:00:00,3860,"67845","Printer Repairs","REDACTED DATA","VITESSE PLC T/A LASER LIFE","3873327","http://opencorporates.com/companies/gb/3873327","752654911"
"London Borough of Redbridge","http://opendatacommunities.org/doc/london-borough-council/redbridge","3BNONSCHFUND","Non-School Funding","3CNONSCH","Non Schools","REV","Revenue","R3963","Early Years - 2 Year Olds - Statutory Place Funding","05-THIRD","Third Party Payments","05A","Independent units within the council","6517","Non-Maintained Schools","3541926","201911",28/02/2019 00:00:00,4628.75,"17580","Childcare Services","REDACTED DATA","AA ADAS LIMITED","9133648","http://opencorporates.com/companies/gb/9133648",""
"London Borough of Redbridge","http://opendatacommunities.org/doc/london-borough-council/redbridge","3BLEACENTFND","LEA Centrally Held School Funds","3CNONSCH","Non Schools","REV","Revenue","R2231","Special School Top Up Fees","05-THIRD","Third Party Payments","05G","Other establishments","7432","OOB Pre 16 Top Up","60394822","201910",25/01/2019 00:00:00,4625,"67981","Schools - Local Authority","REDACTED DATA","WHITEFIELD ACADEMY TRUST- JOSEPH CLARKE SCHOOL","8878604","http://opencorporates.com/companies/gb/8878604",""
"London Borough of Redbridge","http://opendatacommunities.org/doc/london-borough-council/redbridge","3BNONSCHFUND","Non-School Funding","6CCHILLOOKED","Children Looked After","REV","Revenue","R2238","Looked After Children Placements LA","05-THIRD","Third Party Payments","05H","Private contractors","6917","Fostering Costs - Agency","60397658","201911",18/01/2019 00:00:00,4624.2,"1880","Adoption and Fostering","REDACTED DATA","SELECT FOSTERCARE SERVICES LTD","1656801796","http://opencorporates.com/companies/gb/1656801796",""
"London Borough of Redbridge","http://opendatacommunities.org/doc/london-borough-council/redbridge","9BNONBVO","Outside the BVACOP Objective Structure","9CNONBVO","Outside the BVACOP Objective Structure","BAL","Balance Sheet","B0059","DUMMY VAT ACCOUNT","99-NONBV","Capital, Balance Sheet and Control","50L","Debtors","9359","VAT only invoices","70106359","201911",31/01/2019 00:00:00,4623.98,"6130","Bailiffs","REDACTED DATA","CONFERO COLLECTIONS LTD","7045498","http://opencorporates.com/companies/gb/7045498","980095896"
"London Borough of Redbridge","http://opendatacommunities.org/doc/london-borough-council/redbridge","9BNONBVO","Outside the BVACOP Objective Structure","9CNONBVO","Outside the BVACOP Objective Structure","BAL","Balance Sheet","B0059","DUMMY VAT ACCOUNT","99-NONBV","Capital, Balance Sheet and Control","50L","Debtors","9359","VAT only invoices","70106359","201911",31/01/2019 00:00:00,-4623.98,"6130","Bailiffs","REDACTED DATA","CONFERO COLLECTIONS LTD","7045498","http://opencorporates.com/companies/gb/7045498","980095896"
"London Borough of Redbridge","http://opendatacommunities.org/doc/london-borough-council/redbridge","6BADULTSOCIA","Adult Social Care","6CADPHYSDIS","Adults Under 65 with Phys Disab or Sensory Impair","REV","Revenue","R4387","PD Nursing","05-THIRD","Third Party Payments","05H","Private contractors","6909","Nursing Homes","91033548","201911",08/01/2019 00:00:00,8269.6,"53350","Nursing Homes","REDACTED DATA","HC ONE OVAL(SEABROOKE MANOR)","10257888","http://opencorporates.com/companies/gb/10257888","283937558"
"London Borough of Redbridge","http://opendatacommunities.org/doc/london-borough-council/redbridge","6BADULTSOCIA","Adult Social Care","6CADPHYSDIS","Adults Under 65 with Phys Disab or Sensory Impair","REV","Revenue","R4387","PD Nursing","09-INCOME","Income","09C","Customer and Client Receipts","8557","Nursing Home Charges","91033548","201911",08/01/2019 00:00:00,-3653.28,"53350","Nursing Homes","REDACTED DATA","HC ONE OVAL(SEABROOKE MANOR)","10257888","http://opencorporates.com/companies/gb/10257888","283937558"
"London Borough of Redbridge","http://opendatacommunities.org/doc/london-borough-council/redbridge","6BADULTSOCIA","Adult Social Care","6CADPHYSDIS","Adults Under 65 with Phys Disab or Sensory Impair","REV","Revenue","R4387","PD Nursing","09-INCOME","Income","09C","Customer and Client Receipts","8557","Nursing Home Charges","91033548","201911",08/01/2019 00:00:00,6.9,"53350","Nursing Homes","REDACTED DATA","HC ONE OVAL(SEABROOKE MANOR)","10257888","http://opencorporates.com/companies/gb/10257888","283937558"
"London Borough of Redbridge","http://opendatacommunities.org/doc/london-borough-council/redbridge","3BOPTIONHLDG","Optional Holding Accounts","3CADULT","Adult Education","REV","Revenue","R3483","RIAE   Exams","04-SUPPLIES","Supplies And Services","04H","Grants and subscriptions","5955","Fees","3539648","201911",31/01/2019 00:00:00,4621,"32960","Examination Boards","REDACTED DATA","NCFE","2896700","http://opencorporates.com/companies/gb/2896700",""
"London Borough of Redbridge","http://opendatacommunities.org/doc/london-borough-council/redbridge","3BNONSCHFUND","Non-School Funding","6CCHILLOOKED","Children Looked After","REV","Revenue","R2238","Looked After Children Placements LA","05-THIRD","Third Party Payments","05H","Private contractors","6907","Private Homes","60394374","201911",25/11/2018 00:00:00,4616.6,"1880","Adoption and Fostering","REDACTED DATA","POTTON KARE SERVICES LTD","8077041","http://opencorporates.com/companies/gb/8077041",""
"London Borough of Redbridge","http://opendatacommunities.org/doc/london-borough-council/redbridge","6BADULTSOCIA","Adult Social Care","6COLDINCMENT","Older People (65 or over) incl. Older Mentally Ill","REV","Revenue","R4378","OP Residential","05-THIRD","Third Party Payments","05F","Voluntary associations","6802","Residential Homes","91033588","201911",08/01/2019 00:00:00,6809.88,"53350","Nursing Homes","REDACTED DATA","FOUR SEASONS (NO 11) LTD- SPRINGBANK CARE HOME","5165301","http://opencorporates.com/companies/gb/5165301",""
"London Borough of Redbridge","http://opendatacommunities.org/doc/london-borough-council/redbridge","6BADULTSOCIA","Adult Social Care","6COLDINCMENT","Older People (65 or over) incl. Older Mentally Ill","REV","Revenue","R4378","OP Residential","09-INCOME","Income","09C","Customer and Client Receipts","8555","Accommodation Charges","91033588","201911",08/01/2019 00:00:00,-2195.16,"53350","Nursing Homes","REDACTED DATA","FOUR SEASONS (NO 11) LTD- SPRINGBANK CARE HOME","5165301","http://opencorporates.com/companies/gb/5165301",""
"London Borough of Redbridge","http://opendatacommunities.org/doc/london-borough-council/redbridge","9BNONBVO","Outside the BVACOP Objective Structure","9CNONBVO","Outside the BVACOP Objective Structure","CAP","Capital","C9036","R&R Fund Slippage 228k","99-NONBV","Capital, Balance Sheet and Control","50F","Capital - Equipment, Furniture & Fittings","9172","Vehicles","668759","201911",14/12/2018 00:00:00,3844.5,"20703","Computer Systems and Software","REDACTED DATA","CIVICA  UK LTD","1628868","http://opencorporates.com/companies/gb/1628868","391171065"
"London Borough of Redbridge","http://opendatacommunities.org/doc/london-borough-council/redbridge","5BHRAINCOME","HRA Income","5CWELFARE","Welfare Services","REV","Revenue","R6754","Lifelines","04-SUPPLIES","Supplies And Services","04H","Grants and subscriptions","5956","Subscriptions","60395582","201911",25/01/2019 00:00:00,4612.08,"48583","Local Government","REDACTED DATA","LONDON BOROUGH OF CAMDEN","",,"232316403"
"London Borough of Redbridge","http://opendatacommunities.org/doc/london-borough-council/redbridge","3BNONSCHFUND","Non-School Funding","3CNONSCH","Non Schools","REV","Revenue","R3962","Early Years - 3 and 4 Year Olds","05-THIRD","Third Party Payments","05A","Independent units within the council","6517","Non-Maintained Schools","3541783","201911",28/02/2019 00:00:00,4611.42,"17580","Childcare Services","REDACTED DATA","SPECTACULARKIDZ DAY NURSERY LTD","7213824","http://opencorporates.com/companies/gb/7213824",""
"London Borough of Redbridge","http://opendatacommunities.org/doc/london-borough-council/redbridge","6BADULTSOCIA","Adult Social Care","6COLDINCMENT","Older People (65 or over) incl. Older Mentally Ill","REV","Revenue","R4378","OP Residential","05-THIRD","Third Party Payments","05F","Voluntary associations","6802","Residential Homes","91033656","201911",19/02/2019 00:00:00,6273.94,"24200","Day Centres","REDACTED DATA","GABLE COURT NH LTD","11498810","http://opencorporates.com/companies/gb/11498810",""
"London Borough of Redbridge","http://opendatacommunities.org/doc/london-borough-council/redbridge","6BADULTSOCIA","Adult Social Care","6COLDINCMENT","Older People (65 or over) incl. Older Mentally Ill","REV","Revenue","R4378","OP Residential","09-INCOME","Income","09C","Customer and Client Receipts","8555","Accommodation Charges","91033656","201911",19/02/2019 00:00:00,-1691.53,"24200","Day Centres","REDACTED DATA","GABLE COURT NH LTD","11498810","http://opencorporates.com/companies/gb/11498810",""
"London Borough of Redbridge","http://opendatacommunities.org/doc/london-borough-council/redbridge","6BADULTSOCIA","Adult Social Care","6CADLEARNDIS","Adults Under 65 with Learning Disabilities","REV","Revenue","R4188","LD - Residential Care","05-THIRD","Third Party Payments","05F","Voluntary associations","6802","Residential Homes","91030575","201911",08/01/2019 00:00:00,4882.08,"64710","Residential Care Homes","REDACTED DATA","CAREONE LTD (RUSSELL LODGE)","4270516","http://opencorporates.com/companies/gb/4270516",""
"London Borough of Redbridge","http://opendatacommunities.org/doc/london-borough-council/redbridge","6BADULTSOCIA","Adult Social Care","6CADLEARNDIS","Adults Under 65 with Learning Disabilities","REV","Revenue","R4188","LD - Residential Care","09-INCOME","Income","09C","Customer and Client Receipts","8555","Accommodation Charges","91030575","201911",08/01/2019 00:00:00,-327,"64710","Residential Care Homes","REDACTED DATA","CAREONE LTD (RUSSELL LODGE)","4270516","http://opencorporates.com/companies/gb/4270516",""
"London Borough of Redbridge","http://opendatacommunities.org/doc/london-borough-council/redbridge","6BADULTSOCIA","Adult Social Care","6CADLEARNDIS","Adults Under 65 with Learning Disabilities","REV","Revenue","R4215","LD Direct Payments","06-TRANSFER","Transfer Payments","06B","Social Services Clients","7053","Direct Payments","3539158","201911",04/02/2019 00:00:00,4551.32,"90005","Home Care Services DP","REDACTED DATA","REDACTED DATA","",,""
"London Borough of Redbridge","http://opendatacommunities.org/doc/london-borough-council/redbridge","1BCENTRALPUB","Central Services to the Public","1CLOCALTAXCO","Local Tax Collection","REV","Revenue","R9005","Registrar Service","04-SUPPLIES","Supplies And Services","04F","Communications and computing","5858","Phones","3540939","201911",03/02/2019 00:00:00,0,"51500","Mobile Phones - Personal Numbers","REDACTED DATA","EE LTD (AIRTIME PAYMENTS)","2382161","http://opencorporates.com/companies/gb/2382161","771592016"
"London Borough of Redbridge","http://opendatacommunities.org/doc/london-borough-council/redbridge","1BCENTRALPUB","Central Services to the Public","1CREGBDM","Reg. of Births, Deaths & Marriages","REV","Revenue","R3970","Corporate Policy and Performance","04-SUPPLIES","Supplies And Services","04F","Communications and computing","5858","Phones","3540939","201911",03/02/2019 00:00:00,11,"51500","Mobile Phones - Personal Numbers","REDACTED DATA","EE LTD (AIRTIME PAYMENTS)","2382161","http://opencorporates.com/companies/gb/2382161","771592016"
"London Borough of Redbridge","http://opendatacommunities.org/doc/london-borough-council/redbridge","1BCENTRALPUB","Central Services to the Public","1CREGBDM","Reg. of Births, Deaths & Marriages","REV","Revenue","R3970","Corporate Policy and Performance","04-SUPPLIES","Supplies And Services","04F","Communications and computing","5858","Phones","3540939","201911",03/02/2019 00:00:00,11,"51500","Mobile Phones - Personal Numbers","REDACTED DATA","EE LTD (AIRTIME PAYMENTS)","2382161","http://opencorporates.com/companies/gb/2382161","771592016"
"London Borough of Redbridge","http://opendatacommunities.org/doc/london-borough-council/redbridge","1BCENTRALPUB","Central Services to the Public","1CREGBDM","Reg. of Births, Deaths & Marriages","REV","Revenue","R3974","Strategy Director","04-SUPPLIES","Supplies And Services","04F","Communications and computing","5858","Phones","3540939","201911",03/02/2019 00:00:00,61.69,"51500","Mobile Phones - Personal Numbers","REDACTED DATA","EE LTD (AIRTIME PAYMENTS)","2382161","http://opencorporates.com/companies/gb/2382161","771592016"
"London Borough of Redbridge","http://opendatacommunities.org/doc/london-borough-council/redbridge","1BCENTRALPUB","Central Services to the Public","1CTRADSURDEF","Trading Account Surpluses & Deficits","REV","Revenue","R3971","Local London Director","04-SUPPLIES","Supplies And Services","04F","Communications and computing","5858","Phones","3540939","201911",03/02/2019 00:00:00,12.5,"51500","Mobile Phones - Personal Numbers","REDACTED DATA","EE LTD (AIRTIME PAYMENTS)","2382161","http://opencorporates.com/companies/gb/2382161","771592016"
"London Borough of Redbridge","http://opendatacommunities.org/doc/london-borough-council/redbridge","1BCENTRALPUB","Central Services to the Public","1CTRADSURDEF","Trading Account Surpluses & Deficits","REV","Revenue","R3971","Local London Director","04-SUPPLIES","Supplies And Services","04F","Communications and computing","5858","Phones","3540939","201911",03/02/2019 00:00:00,12.5,"51500","Mobile Phones - Personal Numbers","REDACTED DATA","EE LTD (AIRTIME PAYMENTS)","2382161","http://opencorporates.com/companies/gb/2382161","771592016"
"London Borough of Redbridge","http://opendatacommunities.org/doc/london-borough-council/redbridge","1BCENTRALPUB","Central Services to the Public","1CTRADSURDEF","Trading Account Surpluses & Deficits","REV","Revenue","R5753","Cashiers","04-SUPPLIES","Supplies And Services","04F","Communications and computing","5858","Phones","3540939","201911",03/02/2019 00:00:00,0,"51500","Mobile Phones - Personal Numbers","REDACTED DATA","EE LTD (AIRTIME PAYMENTS)","2382161","http://opencorporates.com/companies/gb/2382161","771592016"
"London Borough of Redbridge","http://opendatacommunities.org/doc/london-borough-council/redbridge","1BCENTRALPUB","Central Services to the Public","1CTRADSURDEF","Trading Account Surpluses & Deficits","REV","Revenue","R5753","Cashiers","04-SUPPLIES","Supplies And Services","04F","Communications and computing","5858","Phones","3540939","201911",03/02/2019 00:00:00,0.03,"51500","Mobile Phones - Personal Numbers","REDACTED DATA","EE LTD (AIRTIME PAYMENTS)","2382161","http://opencorporates.com/companies/gb/2382161","771592016"
"London Borough of Redbridge","http://opendatacommunities.org/doc/london-borough-council/redbridge","1BCENTRALPUB","Central Services to the Public","1CTRADSURDEF","Trading Account Surpluses & Deficits","REV","Revenue","R5821","Welfare Benefits","04-SUPPLIES","Supplies And Services","04F","Communications and computing","5858","Phones","3540939","201911",03/02/2019 00:00:00,0,"51500","Mobile Phones - Personal Numbers","REDACTED DATA","EE LTD (AIRTIME PAYMENTS)","2382161","http://opencorporates.com/companies/gb/2382161","771592016"
"London Borough of Redbridge","http://opendatacommunities.org/doc/london-borough-council/redbridge","1BCENTRALPUB","Central Services to the Public","1CTRADSURDEF","Trading Account Surpluses & Deficits","REV","Revenue","R5821","Welfare Benefits","04-SUPPLIES","Supplies And Services","04F","Communications and computing","5858","Phones","3540939","201911",03/02/2019 00:00:00,0,"51500","Mobile Phones - Personal Numbers","REDACTED DATA","EE LTD (AIRTIME PAYMENTS)","2382161","http://opencorporates.com/companies/gb/2382161","771592016"
"London Borough of Redbridge","http://opendatacommunities.org/doc/london-borough-council/redbridge","1BCENTRALPUB","Central Services to the Public","1CTRADSURDEF","Trading Account Surpluses & Deficits","REV","Revenue","R6755","Emergency Plan Stratgy","04-SUPPLIES","Supplies And Services","04F","Communications and computing","5858","Phones","3540939","201911",03/02/2019 00:00:00,0,"51500","Mobile Phones - Personal Numbers","REDACTED DATA","EE LTD (AIRTIME PAYMENTS)","2382161","http://opencorporates.com/companies/gb/2382161","771592016"
"London Borough of Redbridge","http://opendatacommunities.org/doc/london-borough-council/redbridge","1BCORPDEM","Corporate & Democratic Core","1CCORPMGT","Corporate Management","REV","Revenue","R0029","Chief Executive","04-SUPPLIES","Supplies And Services","04F","Communications and computing","5858","Phones","3540939","201911",03/02/2019 00:00:00,0,"51500","Mobile Phones - Personal Numbers","REDACTED DATA","EE LTD (AIRTIME PAYMENTS)","2382161","http://opencorporates.com/companies/gb/2382161","771592016"
"London Borough of Redbridge","http://opendatacommunities.org/doc/london-borough-council/redbridge","1BCORPDEM","Corporate & Democratic Core","1CCORPMGT","Corporate Management","REV","Revenue","R0029","Chief Executive","04-SUPPLIES","Supplies And Services","04F","Communications and computing","5858","Phones","3540939","201911",03/02/2019 00:00:00,0,"51500","Mobile Phones - Personal Numbers","REDACTED DATA","EE LTD (AIRTIME PAYMENTS)","2382161","http://opencorporates.com/companies/gb/2382161","771592016"
"London Borough of Redbridge","http://opendatacommunities.org/doc/london-borough-council/redbridge","1BCORPDEM","Corporate & Democratic Core","1CCORPMGT","Corporate Management","REV","Revenue","R0029","Chief Executive","04-SUPPLIES","Supplies And Services","04F","Communications and computing","5858","Phones","3540939","201911",03/02/2019 00:00:00,21.7,"51500","Mobile Phones - Personal Numbers","REDACTED DATA","EE LTD (AIRTIME PAYMENTS)","2382161","http://opencorporates.com/companies/gb/2382161","771592016"
"London Borough of Redbridge","http://opendatacommunities.org/doc/london-borough-council/redbridge","1BCORPDEM","Corporate & Democratic Core","1CCORPMGT","Corporate Management","REV","Revenue","R8517","Customer Services Improvement Programme","04-SUPPLIES","Supplies And Services","04F","Communications and computing","5858","Phones","3540939","201911",03/02/2019 00:00:00,0,"51500","Mobile Phones - Personal Numbers","REDACTED DATA","EE LTD (AIRTIME PAYMENTS)","2382161","http://opencorporates.com/companies/gb/2382161","771592016"
"London Borough of Redbridge","http://opendatacommunities.org/doc/london-borough-council/redbridge","1BOTHEROPI&E","Other Operating Income & Expenditure","1CTRADSURDEF","Trading Account Surpluses & Deficits","REV","Revenue","R7207","Capital Team Staffing","04-SUPPLIES","Supplies And Services","04F","Communications and computing","5858","Phones","3540939","201911",03/02/2019 00:00:00,0,"51500","Mobile Phones - Personal Numbers","REDACTED DATA","EE LTD (AIRTIME PAYMENTS)","2382161","http://opencorporates.com/companies/gb/2382161","771592016"
"London Borough of Redbridge","http://opendatacommunities.org/doc/london-borough-council/redbridge","1BOTHEROPI&E","Other Operating Income & Expenditure","1CTRADSURDEF","Trading Account Surpluses & Deficits","REV","Revenue","R7207","Capital Team Staffing","04-SUPPLIES","Supplies And Services","04F","Communications and computing","5858","Phones","3540939","201911",03/02/2019 00:00:00,11,"51500","Mobile Phones - Personal Numbers","REDACTED DATA","EE LTD (AIRTIME PAYMENTS)","2382161","http://opencorporates.com/companies/gb/2382161","771592016"
"London Borough of Redbridge","http://opendatacommunities.org/doc/london-borough-council/redbridge","1BOTHEROPI&E","Other Operating Income & Expenditure","1CTRADSURDEF","Trading Account Surpluses & Deficits","REV","Revenue","R7207","Capital Team Staffing","04-SUPPLIES","Supplies And Services","04F","Communications and computing","5858","Phones","3540939","201911",03/02/2019 00:00:00,4.37,"51500","Mobile Phones - Personal Numbers","REDACTED DATA","EE LTD (AIRTIME PAYMENTS)","2382161","http://opencorporates.com/companies/gb/2382161","771592016"
"London Borough of Redbridge","http://opendatacommunities.org/doc/london-borough-council/redbridge","1BOTHEROPI&E","Other Operating Income & Expenditure","1CTRADSURDEF","Trading Account Surpluses & Deficits","REV","Revenue","R7207","Capital Team Staffing","04-SUPPLIES","Supplies And Services","04F","Communications and computing","5858","Phones","3540939","201911",03/02/2019 00:00:00,11,"51500","Mobile Phones - Personal Numbers","REDACTED DATA","EE LTD (AIRTIME PAYMENTS)","2382161","http://opencorporates.com/companies/gb/2382161","771592016"
"London Borough of Redbridge","http://opendatacommunities.org/doc/london-borough-council/redbridge","1BOTHEROPI&E","Other Operating Income & Expenditure","1CTRADSURDEF","Trading Account Surpluses & Deficits","REV","Revenue","R7207","Capital Team Staffing","04-SUPPLIES","Supplies And Services","04F","Communications and computing","5858","Phones","3540939","201911",03/02/2019 00:00:00,11,"51500","Mobile Phones - Personal Numbers","REDACTED DATA","EE LTD (AIRTIME PAYMENTS)","2382161","http://opencorporates.com/companies/gb/2382161","771592016"
"London Borough of Redbridge","http://opendatacommunities.org/doc/london-borough-council/redbridge","1BOTHEROPI&E","Other Operating Income & Expenditure","1CTRADSURDEF","Trading Account Surpluses & Deficits","REV","Revenue","R7207","Capital Team Staffing","04-SUPPLIES","Supplies And Services","04F","Communications and computing","5858","Phones","3540939","201911",03/02/2019 00:00:00,0,"51500","Mobile Phones - Personal Numbers","REDACTED DATA","EE LTD (AIRTIME PAYMENTS)","2382161","http://opencorporates.com/companies/gb/2382161","771592016"
"London Borough of Redbridge","http://opendatacommunities.org/doc/london-borough-council/redbridge","1BOTHEROPI&E","Other Operating Income & Expenditure","1CTRADSURDEF","Trading Account Surpluses & Deficits","REV","Revenue","R9051","Strategic Procurement","04-SUPPLIES","Supplies And Services","04F","Communications and computing","5858","Phones","3540939","201911",03/02/2019 00:00:00,11,"51500","Mobile Phones - Personal Numbers","REDACTED DATA","EE LTD (AIRTIME PAYMENTS)","2382161","http://opencorporates.com/companies/gb/2382161","771592016"
"London Borough of Redbridge","http://opendatacommunities.org/doc/london-borough-council/redbridge","1BOTHEROPI&E","Other Operating Income & Expenditure","1CTRADSURDEF","Trading Account Surpluses & Deficits","REV","Revenue","R9051","Strategic Procurement","04-SUPPLIES","Supplies And Services","04F","Communications and computing","5858","Phones","3540939","201911",03/02/2019 00:00:00,11,"51500","Mobile Phones - Personal Numbers","REDACTED DATA","EE LTD (AIRTIME PAYMENTS)","2382161","http://opencorporates.com/companies/gb/2382161","771592016"
"London Borough of Redbridge","http://opendatacommunities.org/doc/london-borough-council/redbridge","1BOTHEROPI&E","Other Operating Income & Expenditure","1CTRADSURDEF","Trading Account Surpluses & Deficits","REV","Revenue","R9051","Strategic Procurement","04-SUPPLIES","Supplies And Services","04F","Communications and computing","5858","Phones","3540939","201911",03/02/2019 00:00:00,0,"51500","Mobile Phones - Personal Numbers","REDACTED DATA","EE LTD (AIRTIME PAYMENTS)","2382161","http://opencorporates.com/companies/gb/2382161","771592016"
"London Borough of Redbridge","http://opendatacommunities.org/doc/london-borough-council/redbridge","1BOTHEROPI&E","Other Operating Income & Expenditure","1CTRADSURDEF","Trading Account Surpluses & Deficits","REV","Revenue","R9051","Strategic Procurement","04-SUPPLIES","Supplies And Services","04F","Communications and computing","5858","Phones","3540939","201911",03/02/2019 00:00:00,0.15,"51500","Mobile Phones - Personal Numbers","REDACTED DATA","EE LTD (AIRTIME PAYMENTS)","2382161","http://opencorporates.com/companies/gb/2382161","771592016"
"London Borough of Redbridge","http://opendatacommunities.org/doc/london-borough-council/redbridge","1BOTHEROPI&E","Other Operating Income & Expenditure","1CTRADSURDEF","Trading Account Surpluses & Deficits","REV","Revenue","R9053","Tree Management","04-SUPPLIES","Supplies And Services","04F","Communications and computing","5858","Phones","3540939","201911",03/02/2019 00:00:00,15.5,"51500","Mobile Phones - Personal Numbers","REDACTED DATA","EE LTD (AIRTIME PAYMENTS)","2382161","http://opencorporates.com/companies/gb/2382161","771592016"
"London Borough of Redbridge","http://opendatacommunities.org/doc/london-borough-council/redbridge","1BOTHEROPI&E","Other Operating Income & Expenditure","1CTRADSURDEF","Trading Account Surpluses & Deficits","REV","Revenue","R9053","Tree Management","04-SUPPLIES","Supplies And Services","04F","Communications and computing","5858","Phones","3540939","201911",03/02/2019 00:00:00,11,"51500","Mobile Phones - Personal Numbers","REDACTED DATA","EE LTD (AIRTIME PAYMENTS)","2382161","http://opencorporates.com/companies/gb/2382161","771592016"
"London Borough of Redbridge","http://opendatacommunities.org/doc/london-borough-council/redbridge","1BOTHEROPI&E","Other Operating Income & Expenditure","1CTRADSURDEF","Trading Account Surpluses & Deficits","REV","Revenue","R9152","Operational Accounting","04-SUPPLIES","Supplies And Services","04F","Communications and computing","5858","Phones","3540939","201911",03/02/2019 00:00:00,11,"51500","Mobile Phones - Personal Numbers","REDACTED DATA","EE LTD (AIRTIME PAYMENTS)","2382161","http://opencorporates.com/companies/gb/2382161","771592016"
"London Borough of Redbridge","http://opendatacommunities.org/doc/london-borough-council/redbridge","1BOTHEROPI&E","Other Operating Income & Expenditure","1CTRADSURDEF","Trading Account Surpluses & Deficits","REV","Revenue","R9152","Operational Accounting","04-SUPPLIES","Supplies And Services","04F","Communications and computing","5858","Phones","3540939","201911",03/02/2019 00:00:00,11,"51500","Mobile Phones - Personal Numbers","REDACTED DATA","EE LTD (AIRTIME PAYMENTS)","2382161","http://opencorporates.com/companies/gb/2382161","771592016"
"London Borough of Redbridge","http://opendatacommunities.org/doc/london-borough-council/redbridge","1BOTHEROPI&E","Other Operating Income & Expenditure","1CTRADSURDEF","Trading Account Surpluses & Deficits","REV","Revenue","R9157","Counter Fraud","04-SUPPLIES","Supplies And Services","04F","Communications and computing","5858","Phones","3540939","201911",03/02/2019 00:00:00,0,"51500","Mobile Phones - Personal Numbers","REDACTED DATA","EE LTD (AIRTIME PAYMENTS)","2382161","http://opencorporates.com/companies/gb/2382161","771592016"
"London Borough of Redbridge","http://opendatacommunities.org/doc/london-borough-council/redbridge","1BOTHEROPI&E","Other Operating Income & Expenditure","1CTRADSURDEF","Trading Account Surpluses & Deficits","REV","Revenue","R9252","IT Applications","04-SUPPLIES","Supplies And Services","04F","Communications and computing","5858","Phones","3540939","201911",03/02/2019 00:00:00,0,"51500","Mobile Phones - Personal Numbers","REDACTED DATA","EE LTD (AIRTIME PAYMENTS)","2382161","http://opencorporates.com/companies/gb/2382161","771592016"
"London Borough of Redbridge","http://opendatacommunities.org/doc/london-borough-council/redbridge","1BOTHEROPI&E","Other Operating Income & Expenditure","1CTRADSURDEF","Trading Account Surpluses & Deficits","REV","Revenue","R9252","IT Applications","04-SUPPLIES","Supplies And Services","04F","Communications and computing","5858","Phones","3540939","201911",03/02/2019 00:00:00,0,"51500","Mobile Phones - Personal Numbers","REDACTED DATA","EE LTD (AIRTIME PAYMENTS)","2382161","http://opencorporates.com/companies/gb/2382161","771592016"
"London Borough of Redbridge","http://opendatacommunities.org/doc/london-borough-council/redbridge","1BOTHEROPI&E","Other Operating Income & Expenditure","1CTRADSURDEF","Trading Account Surpluses & Deficits","REV","Revenue","R9252","IT Applications","04-SUPPLIES","Supplies And Services","04F","Communications and computing","5858","Phones","3540939","201911",03/02/2019 00:00:00,15.5,"51500","Mobile Phones - Personal Numbers","REDACTED DATA","EE LTD (AIRTIME PAYMENTS)","2382161","http://opencorporates.com/companies/gb/2382161","771592016"
"London Borough of Redbridge","http://opendatacommunities.org/doc/london-borough-council/redbridge","1BOTHEROPI&E","Other Operating Income & Expenditure","1CTRADSURDEF","Trading Account Surpluses & Deficits","REV","Revenue","R9252","IT Applications","04-SUPPLIES","Supplies And Services","04F","Communications and computing","5858","Phones","3540939","201911",03/02/2019 00:00:00,0,"51500","Mobile Phones - Personal Numbers","REDACTED DATA","EE LTD (AIRTIME PAYMENTS)","2382161","http://opencorporates.com/companies/gb/2382161","771592016"
"London Borough of Redbridge","http://opendatacommunities.org/doc/london-borough-council/redbridge","1BOTHEROPI&E","Other Operating Income & Expenditure","1CTRADSURDEF","Trading Account Surpluses & Deficits","REV","Revenue","R9252","IT Applications","04-SUPPLIES","Supplies And Services","04F","Communications and computing","5858","Phones","3540939","201911",03/02/2019 00:00:00,0,"51500","Mobile Phones - Personal Numbers","REDACTED DATA","EE LTD (AIRTIME PAYMENTS)","2382161","http://opencorporates.com/companies/gb/2382161","771592016"
"London Borough of Redbridge","http://opendatacommunities.org/doc/london-borough-council/redbridge","1BOTHEROPI&E","Other Operating Income & Expenditure","1CTRADSURDEF","Trading Account Surpluses & Deficits","REV","Revenue","R9252","IT Applications","04-SUPPLIES","Supplies And Services","04F","Communications and computing","5858","Phones","3540939","201911",03/02/2019 00:00:00,0,"51500","Mobile Phones - Personal Numbers","REDACTED DATA","EE LTD (AIRTIME PAYMENTS)","2382161","http://opencorporates.com/companies/gb/2382161","771592016"
"London Borough of Redbridge","http://opendatacommunities.org/doc/london-borough-council/redbridge","1BOTHEROPI&E","Other Operating Income & Expenditure","1CTRADSURDEF","Trading Account Surpluses & Deficits","REV","Revenue","R9252","IT Applications","04-SUPPLIES","Supplies And Services","04F","Communications and computing","5858","Phones","3540939","201911",03/02/2019 00:00:00,0,"51500","Mobile Phones - Personal Numbers","REDACTED DATA","EE LTD (AIRTIME PAYMENTS)","2382161","http://opencorporates.com/companies/gb/2382161","771592016"
"London Borough of Redbridge","http://opendatacommunities.org/doc/london-borough-council/redbridge","1BOTHEROPI&E","Other Operating Income & Expenditure","1CTRADSURDEF","Trading Account Surpluses & Deficits","REV","Revenue","R9252","IT Applications","04-SUPPLIES","Supplies And Services","04F","Communications and computing","5858","Phones","3540939","201911",03/02/2019 00:00:00,0,"51500","Mobile Phones - Personal Numbers","REDACTED DATA","EE LTD (AIRTIME PAYMENTS)","2382161","http://opencorporates.com/companies/gb/2382161","771592016"
"London Borough of Redbridge","http://opendatacommunities.org/doc/london-borough-council/redbridge","1BOTHEROPI&E","Other Operating Income & Expenditure","1CTRADSURDEF","Trading Account Surpluses & Deficits","REV","Revenue","R9252","IT Applications","04-SUPPLIES","Supplies And Services","04F","Communications and computing","5858","Phones","3540939","201911",03/02/2019 00:00:00,0,"51500","Mobile Phones - Personal Numbers","REDACTED DATA","EE LTD (AIRTIME PAYMENTS)","2382161","http://opencorporates.com/companies/gb/2382161","771592016"
"London Borough of Redbridge","http://opendatacommunities.org/doc/london-borough-council/redbridge","1BOTHEROPI&E","Other Operating Income & Expenditure","1CTRADSURDEF","Trading Account Surpluses & Deficits","REV","Revenue","R9252","IT Applications","04-SUPPLIES","Supplies And Services","04F","Communications and computing","5858","Phones","3540939","201911",03/02/2019 00:00:00,15.5,"51500","Mobile Phones - Personal Numbers","REDACTED DATA","EE LTD (AIRTIME PAYMENTS)","2382161","http://opencorporates.com/companies/gb/2382161","771592016"
"London Borough of Redbridge","http://opendatacommunities.org/doc/london-borough-council/redbridge","1BOTHEROPI&E","Other Operating Income & Expenditure","1CTRADSURDEF","Trading Account Surpluses & Deficits","REV","Revenue","R9252","IT Applications","04-SUPPLIES","Supplies And Services","04F","Communications and computing","5858","Phones","3540939","201911",03/02/2019 00:00:00,12.39,"51500","Mobile Phones - Personal Numbers","REDACTED DATA","EE LTD (AIRTIME PAYMENTS)","2382161","http://opencorporates.com/companies/gb/2382161","771592016"
"London Borough of Redbridge","http://opendatacommunities.org/doc/london-borough-council/redbridge","1BOTHEROPI&E","Other Operating Income & Expenditure","1CTRADSURDEF","Trading Account Surpluses & Deficits","REV","Revenue","R9252","IT Applications","04-SUPPLIES","Supplies And Services","04F","Communications and computing","5858","Phones","3540939","201911",03/02/2019 00:00:00,15.5,"51500","Mobile Phones - Personal Numbers","REDACTED DATA","EE LTD (AIRTIME PAYMENTS)","2382161","http://opencorporates.com/companies/gb/2382161","771592016"
"London Borough of Redbridge","http://opendatacommunities.org/doc/london-borough-council/redbridge","1BOTHEROPI&E","Other Operating Income & Expenditure","1CTRADSURDEF","Trading Account Surpluses & Deficits","REV","Revenue","R9252","IT Applications","04-SUPPLIES","Supplies And Services","04F","Communications and computing","5858","Phones","3540939","201911",03/02/2019 00:00:00,0,"51500","Mobile Phones - Personal Numbers","REDACTED DATA","EE LTD (AIRTIME PAYMENTS)","2382161","http://opencorporates.com/companies/gb/2382161","771592016"
"London Borough of Redbridge","http://opendatacommunities.org/doc/london-borough-council/redbridge","1BOTHEROPI&E","Other Operating Income & Expenditure","1CTRADSURDEF","Trading Account Surpluses & Deficits","REV","Revenue","R9252","IT Applications","04-SUPPLIES","Supplies And Services","04F","Communications and computing","5858","Phones","3540939","201911",03/02/2019 00:00:00,0,"51500","Mobile Phones - Personal Numbers","REDACTED DATA","EE LTD (AIRTIME PAYMENTS)","2382161","http://opencorporates.com/companies/gb/2382161","771592016"
"London Borough of Redbridge","http://opendatacommunities.org/doc/london-borough-council/redbridge","1BOTHEROPI&E","Other Operating Income & Expenditure","1CTRADSURDEF","Trading Account Surpluses & Deficits","REV","Revenue","R9252","IT Applications","04-SUPPLIES","Supplies And Services","04F","Communications and computing","5858","Phones","3540939","201911",03/02/2019 00:00:00,0,"51500","Mobile Phones - Personal Numbers","REDACTED DATA","EE LTD (AIRTIME PAYMENTS)","2382161","http://opencorporates.com/companies/gb/2382161","771592016"
"London Borough of Redbridge","http://opendatacommunities.org/doc/london-borough-council/redbridge","1BOTHEROPI&E","Other Operating Income & Expenditure","1CTRADSURDEF","Trading Account Surpluses & Deficits","REV","Revenue","R9252","IT Applications","04-SUPPLIES","Supplies And Services","04F","Communications and computing","5858","Phones","3540939","201911",03/02/2019 00:00:00,0,"51500","Mobile Phones - Personal Numbers","REDACTED DATA","EE LTD (AIRTIME PAYMENTS)","2382161","http://opencorporates.com/companies/gb/2382161","771592016"
"London Borough of Redbridge","http://opendatacommunities.org/doc/london-borough-council/redbridge","1BOTHEROPI&E","Other Operating Income & Expenditure","1CTRADSURDEF","Trading Account Surpluses & Deficits","REV","Revenue","R9252","IT Applications","04-SUPPLIES","Supplies And Services","04F","Communications and computing","5858","Phones","3540939","201911",03/02/2019 00:00:00,15.5,"51500","Mobile Phones - Personal Numbers","REDACTED DATA","EE LTD (AIRTIME PAYMENTS)","2382161","http://opencorporates.com/companies/gb/2382161","771592016"
"London Borough of Redbridge","http://opendatacommunities.org/doc/london-borough-council/redbridge","1BOTHEROPI&E","Other Operating Income & Expenditure","1CTRADSURDEF","Trading Account Surpluses & Deficits","REV","Revenue","R9252","IT Applications","04-SUPPLIES","Supplies And Services","04F","Communications and computing","5858","Phones","3540939","201911",03/02/2019 00:00:00,0,"51500","Mobile Phones - Personal Numbers","REDACTED DATA","EE LTD (AIRTIME PAYMENTS)","2382161","http://opencorporates.com/companies/gb/2382161","771592016"
"London Borough of Redbridge","http://opendatacommunities.org/doc/london-borough-council/redbridge","1BOTHEROPI&E","Other Operating Income & Expenditure","1CTRADSURDEF","Trading Account Surpluses & Deficits","REV","Revenue","R9252","IT Applications","04-SUPPLIES","Supplies And Services","04F","Communications and computing","5858","Phones","3540939","201911",03/02/2019 00:00:00,0,"51500","Mobile Phones - Personal Numbers","REDACTED DATA","EE LTD (AIRTIME PAYMENTS)","2382161","http://opencorporates.com/companies/gb/2382161","771592016"
"London Borough of Redbridge","http://opendatacommunities.org/doc/london-borough-council/redbridge","1BOTHEROPI&E","Other Operating Income & Expenditure","1CTRADSURDEF","Trading Account Surpluses & Deficits","REV","Revenue","R9252","IT Applications","04-SUPPLIES","Supplies And Services","04F","Communications and computing","5858","Phones","3540939","201911",03/02/2019 00:00:00,15.5,"51500","Mobile Phones - Personal Numbers","REDACTED DATA","EE LTD (AIRTIME PAYMENTS)","2382161","http://opencorporates.com/companies/gb/2382161","771592016"
"London Borough of Redbridge","http://opendatacommunities.org/doc/london-borough-council/redbridge","1BOTHEROPI&E","Other Operating Income & Expenditure","1CTRADSURDEF","Trading Account Surpluses & Deficits","REV","Revenue","R9352","Legal Supplies & Services","04-SUPPLIES","Supplies And Services","04F","Communications and computing","5858","Phones","3540939","201911",03/02/2019 00:00:00,11,"51500","Mobile Phones - Personal Numbers","REDACTED DATA","EE LTD (AIRTIME PAYMENTS)","2382161","http://opencorporates.com/companies/gb/2382161","771592016"
"London Borough of Redbridge","http://opendatacommunities.org/doc/london-borough-council/redbridge","1BOTHEROPI&E","Other Operating Income & Expenditure","1CTRADSURDEF","Trading Account Surpluses & Deficits","REV","Revenue","R9352","Legal Supplies & Services","04-SUPPLIES","Supplies And Services","04F","Communications and computing","5858","Phones","3540939","201911",03/02/2019 00:00:00,15.5,"51500","Mobile Phones - Personal Numbers","REDACTED DATA","EE LTD (AIRTIME PAYMENTS)","2382161","http://opencorporates.com/companies/gb/2382161","771592016"
"London Borough of Redbridge","http://opendatacommunities.org/doc/london-borough-council/redbridge","1BOTHEROPI&E","Other Operating Income & Expenditure","1CTRADSURDEF","Trading Account Surpluses & Deficits","REV","Revenue","R9352","Legal Supplies & Services","04-SUPPLIES","Supplies And Services","04F","Communications and computing","5858","Phones","3540939","201911",03/02/2019 00:00:00,0,"51500","Mobile Phones - Personal Numbers","REDACTED DATA","EE LTD (AIRTIME PAYMENTS)","2382161","http://opencorporates.com/companies/gb/2382161","771592016"
"London Borough of Redbridge","http://opendatacommunities.org/doc/london-borough-council/redbridge","1BOTHEROPI&E","Other Operating Income & Expenditure","1CTRADSURDEF","Trading Account Surpluses & Deficits","REV","Revenue","R9460","Pay, Contracts & HRD","04-SUPPLIES","Supplies And Services","04F","Communications and computing","5858","Phones","3540939","201911",03/02/2019 00:00:00,11,"51500","Mobile Phones - Personal Numbers","REDACTED DATA","EE LTD (AIRTIME PAYMENTS)","2382161","http://opencorporates.com/companies/gb/2382161","771592016"
"London Borough of Redbridge","http://opendatacommunities.org/doc/london-borough-council/redbridge","1BOTHEROPI&E","Other Operating Income & Expenditure","1CTRADSURDEF","Trading Account Surpluses & Deficits","REV","Revenue","R9560","Facilities Management","04-SUPPLIES","Supplies And Services","04F","Communications and computing","5858","Phones","3540939","201911",03/02/2019 00:00:00,0,"51500","Mobile Phones - Personal Numbers","REDACTED DATA","EE LTD (AIRTIME PAYMENTS)","2382161","http://opencorporates.com/companies/gb/2382161","771592016"
"London Borough of Redbridge","http://opendatacommunities.org/doc/london-borough-council/redbridge","1BOTHEROPI&E","Other Operating Income & Expenditure","1CTRADSURDEF","Trading Account Surpluses & Deficits","REV","Revenue","R9560","Facilities Management","04-SUPPLIES","Supplies And Services","04F","Communications and computing","5858","Phones","3540939","201911",03/02/2019 00:00:00,0,"51500","Mobile Phones - Personal Numbers","REDACTED DATA","EE LTD (AIRTIME PAYMENTS)","2382161","http://opencorporates.com/companies/gb/2382161","771592016"
"London Borough of Redbridge","http://opendatacommunities.org/doc/london-borough-council/redbridge","1BOTHEROPI&E","Other Operating Income & Expenditure","1CTRADSURDEF","Trading Account Surpluses & Deficits","REV","Revenue","R9560","Facilities Management","04-SUPPLIES","Supplies And Services","04F","Communications and computing","5858","Phones","3540939","201911",03/02/2019 00:00:00,0,"51500","Mobile Phones - Personal Numbers","REDACTED DATA","EE LTD (AIRTIME PAYMENTS)","2382161","http://opencorporates.com/companies/gb/2382161","771592016"
"London Borough of Redbridge","http://opendatacommunities.org/doc/london-borough-council/redbridge","1BOTHEROPI&E","Other Operating Income & Expenditure","1CTRADSURDEF","Trading Account Surpluses & Deficits","REV","Revenue","R9560","Facilities Management","04-SUPPLIES","Supplies And Services","04F","Communications and computing","5858","Phones","3540939","201911",03/02/2019 00:00:00,0,"51500","Mobile Phones - Personal Numbers","REDACTED DATA","EE LTD (AIRTIME PAYMENTS)","2382161","http://opencorporates.com/companies/gb/2382161","771592016"
"London Borough of Redbridge","http://opendatacommunities.org/doc/london-borough-council/redbridge","1BOTHEROPI&E","Other Operating Income & Expenditure","1CTRADSURDEF","Trading Account Surpluses & Deficits","REV","Revenue","R9560","Facilities Management","04-SUPPLIES","Supplies And Services","04F","Communications and computing","5858","Phones","3540939","201911",03/02/2019 00:00:00,0,"51500","Mobile Phones - Personal Numbers","REDACTED DATA","EE LTD (AIRTIME PAYMENTS)","2382161","http://opencorporates.com/companies/gb/2382161","771592016"
"London Borough of Redbridge","http://opendatacommunities.org/doc/london-borough-council/redbridge","1BOTHEROPI&E","Other Operating Income & Expenditure","1CTRADSURDEF","Trading Account Surpluses & Deficits","REV","Revenue","R9568","Corporate Landlord Property Strategy / Review","04-SUPPLIES","Supplies And Services","04F","Communications and computing","5858","Phones","3540939","201911",03/02/2019 00:00:00,12.53,"51500","Mobile Phones - Personal Numbers","REDACTED DATA","EE LTD (AIRTIME PAYMENTS)","2382161","http://opencorporates.com/companies/gb/2382161","771592016"
"London Borough of Redbridge","http://opendatacommunities.org/doc/london-borough-council/redbridge","1BOTHEROPI&E","Other Operating Income & Expenditure","1CTRADSURDEF","Trading Account Surpluses & Deficits","REV","Revenue","R9568","Corporate Landlord Property Strategy / Review","04-SUPPLIES","Supplies And Services","04F","Communications and computing","5858","Phones","3540939","201911",03/02/2019 00:00:00,12.5,"51500","Mobile Phones - Personal Numbers","REDACTED DATA","EE LTD (AIRTIME PAYMENTS)","2382161","http://opencorporates.com/companies/gb/2382161","771592016"
"London Borough of Redbridge","http://opendatacommunities.org/doc/london-borough-council/redbridge","1BOTHEROPI&E","Other Operating Income & Expenditure","1CTRADSURDEF","Trading Account Surpluses & Deficits","REV","Revenue","R9568","Corporate Landlord Property Strategy / Review","04-SUPPLIES","Supplies And Services","04F","Communications and computing","5858","Phones","3540939","201911",03/02/2019 00:00:00,15.18,"51500","Mobile Phones - Personal Numbers","REDACTED DATA","EE LTD (AIRTIME PAYMENTS)","2382161","http://opencorporates.com/companies/gb/2382161","771592016"
"London Borough of Redbridge","http://opendatacommunities.org/doc/london-borough-council/redbridge","1BOTHEROPI&E","Other Operating Income & Expenditure","1CTRADSURDEF","Trading Account Surpluses & Deficits","REV","Revenue","R9568","Corporate Landlord Property Strategy / Review","04-SUPPLIES","Supplies And Services","04F","Communications and computing","5858","Phones","3540939","201911",03/02/2019 00:00:00,12.5,"51500","Mobile Phones - Personal Numbers","REDACTED DATA","EE LTD (AIRTIME PAYMENTS)","2382161","http://opencorporates.com/companies/gb/2382161","771592016"
"London Borough of Redbridge","http://opendatacommunities.org/doc/london-borough-council/redbridge","1BOTHEROPI&E","Other Operating Income & Expenditure","1CTRADSURDEF","Trading Account Surpluses & Deficits","REV","Revenue","R9568","Corporate Landlord Property Strategy / Review","04-SUPPLIES","Supplies And Services","04F","Communications and computing","5858","Phones","3540939","201911",03/02/2019 00:00:00,12.72,"51500","Mobile Phones - Personal Numbers","REDACTED DATA","EE LTD (AIRTIME PAYMENTS)","2382161","http://opencorporates.com/companies/gb/2382161","771592016"
"London Borough of Redbridge","http://opendatacommunities.org/doc/london-borough-council/redbridge","1BOTHEROPI&E","Other Operating Income & Expenditure","1CTRADSURDEF","Trading Account Surpluses & Deficits","REV","Revenue","R9576","Broadway Chambers Service Charge Account","04-SUPPLIES","Supplies And Services","04F","Communications and computing","5858","Phones","3540939","201911",03/02/2019 00:00:00,0,"51500","Mobile Phones - Personal Numbers","REDACTED DATA","EE LTD (AIRTIME PAYMENTS)","2382161","http://opencorporates.com/companies/gb/2382161","771592016"
"London Borough of Redbridge","http://opendatacommunities.org/doc/london-borough-council/redbridge","1BOTHEROPI&E","Other Operating Income & Expenditure","1CTRADSURDEF","Trading Account Surpluses & Deficits","REV","Revenue","R9596","Corporate Facilities Team Staffing","04-SUPPLIES","Supplies And Services","04F","Communications and computing","5858","Phones","3540939","201911",03/02/2019 00:00:00,0,"51500","Mobile Phones - Personal Numbers","REDACTED DATA","EE LTD (AIRTIME PAYMENTS)","2382161","http://opencorporates.com/companies/gb/2382161","771592016"
"London Borough of Redbridge","http://opendatacommunities.org/doc/london-borough-council/redbridge","2BBUILDCONT","Building Control","","","REV","Revenue","R6503","Building Control Chargeable Trading Account","04-SUPPLIES","Supplies And Services","04F","Communications and computing","5858","Phones","3540939","201911",03/02/2019 00:00:00,0,"51500","Mobile Phones - Personal Numbers","REDACTED DATA","EE LTD (AIRTIME PAYMENTS)","2382161","http://opencorporates.com/companies/gb/2382161","771592016"
"London Borough of Redbridge","http://opendatacommunities.org/doc/london-borough-council/redbridge","2BBUILDCONT","Building Control","","","REV","Revenue","R6503","Building Control Chargeable Trading Account","04-SUPPLIES","Supplies And Services","04F","Communications and computing","5858","Phones","3540939","201911",03/02/2019 00:00:00,9.63,"51500","Mobile Phones - Personal Numbers","REDACTED DATA","EE LTD (AIRTIME PAYMENTS)","2382161","http://opencorporates.com/companies/gb/2382161","771592016"
"London Borough of Redbridge","http://opendatacommunities.org/doc/london-borough-council/redbridge","2BBUILDCONT","Building Control","","","REV","Revenue","R6503","Building Control Chargeable Trading Account","04-SUPPLIES","Supplies And Services","04F","Communications and computing","5858","Phones","3540939","201911",03/02/2019 00:00:00,0,"51500","Mobile Phones - Personal Numbers","REDACTED DATA","EE LTD (AIRTIME PAYMENTS)","2382161","http://opencorporates.com/companies/gb/2382161","771592016"
"London Borough of Redbridge","http://opendatacommunities.org/doc/london-borough-council/redbridge","2BBUILDCONT","Building Control","","","REV","Revenue","R6503","Building Control Chargeable Trading Account","04-SUPPLIES","Supplies And Services","04F","Communications and computing","5858","Phones","3540939","201911",03/02/2019 00:00:00,0.14,"51500","Mobile Phones - Personal Numbers","REDACTED DATA","EE LTD (AIRTIME PAYMENTS)","2382161","http://opencorporates.com/companies/gb/2382161","771592016"
"London Borough of Redbridge","http://opendatacommunities.org/doc/london-borough-council/redbridge","2BBUSISUP","Business Support","","","REV","Revenue","R6534","P & BC General Services","04-SUPPLIES","Supplies And Services","04F","Communications and computing","5858","Phones","3540939","201911",03/02/2019 00:00:00,11,"51500","Mobile Phones - Personal Numbers","REDACTED DATA","EE LTD (AIRTIME PAYMENTS)","2382161","http://opencorporates.com/companies/gb/2382161","771592016"
"London Borough of Redbridge","http://opendatacommunities.org/doc/london-borough-council/redbridge","2BBUSISUP","Business Support","","","REV","Revenue","R6534","P & BC General Services","04-SUPPLIES","Supplies And Services","04F","Communications and computing","5858","Phones","3540939","201911",03/02/2019 00:00:00,0,"51500","Mobile Phones - Personal Numbers","REDACTED DATA","EE LTD (AIRTIME PAYMENTS)","2382161","http://opencorporates.com/companies/gb/2382161","771592016"
"London Borough of Redbridge","http://opendatacommunities.org/doc/london-borough-council/redbridge","2BBUSISUP","Business Support","","","REV","Revenue","R6534","P & BC General Services","04-SUPPLIES","Supplies And Services","04F","Communications and computing","5858","Phones","3540939","201911",03/02/2019 00:00:00,12.5,"51500","Mobile Phones - Personal Numbers","REDACTED DATA","EE LTD (AIRTIME PAYMENTS)","2382161","http://opencorporates.com/companies/gb/2382161","771592016"
"London Borough of Redbridge","http://opendatacommunities.org/doc/london-borough-council/redbridge","2BBUSISUP","Business Support","","","REV","Revenue","R6534","P & BC General Services","04-SUPPLIES","Supplies And Services","04F","Communications and computing","5858","Phones","3540939","201911",03/02/2019 00:00:00,11,"51500","Mobile Phones - Personal Numbers","REDACTED DATA","EE LTD (AIRTIME PAYMENTS)","2382161","http://opencorporates.com/companies/gb/2382161","771592016"
"London Borough of Redbridge","http://opendatacommunities.org/doc/london-borough-council/redbridge","2BBUSISUP","Business Support","","","REV","Revenue","R6534","P & BC General Services","04-SUPPLIES","Supplies And Services","04F","Communications and computing","5858","Phones","3540939","201911",03/02/2019 00:00:00,11,"51500","Mobile Phones - Personal Numbers","REDACTED DATA","EE LTD (AIRTIME PAYMENTS)","2382161","http://opencorporates.com/companies/gb/2382161","771592016"
"London Borough of Redbridge","http://opendatacommunities.org/doc/london-borough-council/redbridge","2BBUSISUP","Business Support","","","REV","Revenue","R6534","P & BC General Services","04-SUPPLIES","Supplies And Services","04F","Communications and computing","5858","Phones","3540939","201911",03/02/2019 00:00:00,11,"51500","Mobile Phones - Personal Numbers","REDACTED DATA","EE LTD (AIRTIME PAYMENTS)","2382161","http://opencorporates.com/companies/gb/2382161","771592016"
"London Borough of Redbridge","http://opendatacommunities.org/doc/london-borough-council/redbridge","2BBUSISUP","Business Support","","","REV","Revenue","R6534","P & BC General Services","04-SUPPLIES","Supplies And Services","04F","Communications and computing","5858","Phones","3540939","201911",03/02/2019 00:00:00,11,"51500","Mobile Phones - Personal Numbers","REDACTED DATA","EE LTD (AIRTIME PAYMENTS)","2382161","http://opencorporates.com/companies/gb/2382161","771592016"
"London Borough of Redbridge","http://opendatacommunities.org/doc/london-borough-council/redbridge","2BDEVCON","Development Control","","","REV","Revenue","R6510","Development Management","04-SUPPLIES","Supplies And Services","04F","Communications and computing","5858","Phones","3540939","201911",03/02/2019 00:00:00,10,"51500","Mobile Phones - Personal Numbers","REDACTED DATA","EE LTD (AIRTIME PAYMENTS)","2382161","http://opencorporates.com/companies/gb/2382161","771592016"
"London Borough of Redbridge","http://opendatacommunities.org/doc/london-borough-council/redbridge","2BDEVCON","Development Control","","","REV","Revenue","R6510","Development Management","04-SUPPLIES","Supplies And Services","04F","Communications and computing","5858","Phones","3540939","201911",03/02/2019 00:00:00,0.33,"51500","Mobile Phones - Personal Numbers","REDACTED DATA","EE LTD (AIRTIME PAYMENTS)","2382161","http://opencorporates.com/companies/gb/2382161","771592016"
"London Borough of Redbridge","http://opendatacommunities.org/doc/london-borough-council/redbridge","2BECODEV","Economic Development","","","REV","Revenue","R9866","Employment and Skills Regen","04-SUPPLIES","Supplies And Services","04F","Communications and computing","5858","Phones","3540939","201911",03/02/2019 00:00:00,15.5,"51500","Mobile Phones - Personal Numbers","REDACTED DATA","EE LTD (AIRTIME PAYMENTS)","2382161","http://opencorporates.com/companies/gb/2382161","771592016"
"London Borough of Redbridge","http://opendatacommunities.org/doc/london-borough-council/redbridge","2BECODEV","Economic Development","","","REV","Revenue","R9866","Employment and Skills Regen","04-SUPPLIES","Supplies And Services","04F","Communications and computing","5858","Phones","3540939","201911",03/02/2019 00:00:00,0,"51500","Mobile Phones - Personal Numbers","REDACTED DATA","EE LTD (AIRTIME PAYMENTS)","2382161","http://opencorporates.com/companies/gb/2382161","771592016"
"London Borough of Redbridge","http://opendatacommunities.org/doc/london-borough-council/redbridge","2BECODEV","Economic Development","","","REV","Revenue","R9866","Employment and Skills Regen","04-SUPPLIES","Supplies And Services","04F","Communications and computing","5858","Phones","3540939","201911",03/02/2019 00:00:00,11,"51500","Mobile Phones - Personal Numbers","REDACTED DATA","EE LTD (AIRTIME PAYMENTS)","2382161","http://opencorporates.com/companies/gb/2382161","771592016"
"London Borough of Redbridge","http://opendatacommunities.org/doc/london-borough-council/redbridge","2BECODEV","Economic Development","","","REV","Revenue","R9866","Employment and Skills Regen","04-SUPPLIES","Supplies And Services","04F","Communications and computing","5858","Phones","3540939","201911",03/02/2019 00:00:00,0,"51500","Mobile Phones - Personal Numbers","REDACTED DATA","EE LTD (AIRTIME PAYMENTS)","2382161","http://opencorporates.com/companies/gb/2382161","771592016"
"London Borough of Redbridge","http://opendatacommunities.org/doc/london-borough-council/redbridge","2BENVIRONMEN","Environmental Services","2CCOMSAFCRIM","Community Safety (Crime Reduction)","REV","Revenue","R6753","CCTV","04-SUPPLIES","Supplies And Services","04F","Communications and computing","5858","Phones","3540939","201911",03/02/2019 00:00:00,0,"51500","Mobile Phones - Personal Numbers","REDACTED DATA","EE LTD (AIRTIME PAYMENTS)","2382161","http://opencorporates.com/companies/gb/2382161","771592016"
"London Borough of Redbridge","http://opendatacommunities.org/doc/london-borough-council/redbridge","2BENVIRONMEN","Environmental Services","2CCOMSAFCRIM","Community Safety (Crime Reduction)","REV","Revenue","R6753","CCTV","04-SUPPLIES","Supplies And Services","04F","Communications and computing","5858","Phones","3540939","201911",03/02/2019 00:00:00,19.14,"51500","Mobile Phones - Personal Numbers","REDACTED DATA","EE LTD (AIRTIME PAYMENTS)","2382161","http://opencorporates.com/companies/gb/2382161","771592016"
"London Borough of Redbridge","http://opendatacommunities.org/doc/london-borough-council/redbridge","2BENVIRONMEN","Environmental Services","2CCOMSAFCRIM","Community Safety (Crime Reduction)","REV","Revenue","R9880","Prevent","04-SUPPLIES","Supplies And Services","04F","Communications and computing","5858","Phones","3540939","201911",03/02/2019 00:00:00,0,"51500","Mobile Phones - Personal Numbers","REDACTED DATA","EE LTD (AIRTIME PAYMENTS)","2382161","http://opencorporates.com/companies/gb/2382161","771592016"
"London Borough of Redbridge","http://opendatacommunities.org/doc/london-borough-council/redbridge","2BENVIRONMEN","Environmental Services","2CCONSPROT","Consumer Protection","REV","Revenue","R6752","Food Safety","04-SUPPLIES","Supplies And Services","04F","Communications and computing","5858","Phones","3540939","201911",03/02/2019 00:00:00,11,"51500","Mobile Phones - Personal Numbers","REDACTED DATA","EE LTD (AIRTIME PAYMENTS)","2382161","http://opencorporates.com/companies/gb/2382161","771592016"
"London Borough of Redbridge","http://opendatacommunities.org/doc/london-borough-council/redbridge","2BENVIRONMEN","Environmental Services","2CCONSPROT","Consumer Protection","REV","Revenue","R6752","Food Safety","04-SUPPLIES","Supplies And Services","04F","Communications and computing","5858","Phones","3540939","201911",03/02/2019 00:00:00,0,"51500","Mobile Phones - Personal Numbers","REDACTED DATA","EE LTD (AIRTIME PAYMENTS)","2382161","http://opencorporates.com/companies/gb/2382161","771592016"
"London Borough of Redbridge","http://opendatacommunities.org/doc/london-borough-council/redbridge","2BENVIRONMEN","Environmental Services","2CCONSPROT","Consumer Protection","REV","Revenue","R6752","Food Safety","04-SUPPLIES","Supplies And Services","04F","Communications and computing","5858","Phones","3540939","201911",03/02/2019 00:00:00,0,"51500","Mobile Phones - Personal Numbers","REDACTED DATA","EE LTD (AIRTIME PAYMENTS)","2382161","http://opencorporates.com/companies/gb/2382161","771592016"
"London Borough of Redbridge","http://opendatacommunities.org/doc/london-borough-council/redbridge","2BENVIRONMEN","Environmental Services","2CCONSPROT","Consumer Protection","REV","Revenue","R6752","Food Safety","04-SUPPLIES","Supplies And Services","04F","Communications and computing","5858","Phones","3540939","201911",03/02/2019 00:00:00,0,"51500","Mobile Phones - Personal Numbers","REDACTED DATA","EE LTD (AIRTIME PAYMENTS)","2382161","http://opencorporates.com/companies/gb/2382161","771592016"
"London Borough of Redbridge","http://opendatacommunities.org/doc/london-borough-council/redbridge","2BENVIRONMEN","Environmental Services","2CCONSPROT","Consumer Protection","REV","Revenue","R6752","Food Safety","04-SUPPLIES","Supplies And Services","04F","Communications and computing","5858","Phones","3540939","201911",03/02/2019 00:00:00,0,"51500","Mobile Phones - Personal Numbers","REDACTED DATA","EE LTD (AIRTIME PAYMENTS)","2382161","http://opencorporates.com/companies/gb/2382161","771592016"
"London Borough of Redbridge","http://opendatacommunities.org/doc/london-borough-council/redbridge","2BENVIRONMEN","Environmental Services","2CCONSPROT","Consumer Protection","REV","Revenue","R6771","Trading Standards","04-SUPPLIES","Supplies And Services","04F","Communications and computing","5858","Phones","3540939","201911",03/02/2019 00:00:00,11,"51500","Mobile Phones - Personal Numbers","REDACTED DATA","EE LTD (AIRTIME PAYMENTS)","2382161","http://opencorporates.com/companies/gb/2382161","771592016"
"London Borough of Redbridge","http://opendatacommunities.org/doc/london-borough-council/redbridge","2BENVIRONMEN","Environmental Services","2CCONSPROT","Consumer Protection","REV","Revenue","R6771","Trading Standards","04-SUPPLIES","Supplies And Services","04F","Communications and computing","5858","Phones","3540939","201911",03/02/2019 00:00:00,0,"51500","Mobile Phones - Personal Numbers","REDACTED DATA","EE LTD (AIRTIME PAYMENTS)","2382161","http://opencorporates.com/companies/gb/2382161","771592016"
"London Borough of Redbridge","http://opendatacommunities.org/doc/london-borough-council/redbridge","2BENVIRONMEN","Environmental Services","2CCONSPROT","Consumer Protection","REV","Revenue","R6771","Trading Standards","04-SUPPLIES","Supplies And Services","04F","Communications and computing","5858","Phones","3540939","201911",03/02/2019 00:00:00,0,"51500","Mobile Phones - Personal Numbers","REDACTED DATA","EE LTD (AIRTIME PAYMENTS)","2382161","http://opencorporates.com/companies/gb/2382161","771592016"
"London Borough of Redbridge","http://opendatacommunities.org/doc/london-borough-council/redbridge","2BENVIRONMEN","Environmental Services","2CCONSPROT","Consumer Protection","REV","Revenue","R6771","Trading Standards","04-SUPPLIES","Supplies And Services","04F","Communications and computing","5858","Phones","3540939","201911",03/02/2019 00:00:00,0,"51500","Mobile Phones - Personal Numbers","REDACTED DATA","EE LTD (AIRTIME PAYMENTS)","2382161","http://opencorporates.com/companies/gb/2382161","771592016"
"London Borough of Redbridge","http://opendatacommunities.org/doc/london-borough-council/redbridge","2BENVIRONMEN","Environmental Services","2CCONSPROT","Consumer Protection","REV","Revenue","R6771","Trading Standards","04-SUPPLIES","Supplies And Services","04F","Communications and computing","5858","Phones","3540939","201911",03/02/2019 00:00:00,-0.15,"51500","Mobile Phones - Personal Numbers","REDACTED DATA","EE LTD (AIRTIME PAYMENTS)","2382161","http://opencorporates.com/companies/gb/2382161","771592016"
"London Borough of Redbridge","http://opendatacommunities.org/doc/london-borough-council/redbridge","2BENVIRONMEN","Environmental Services","2CCONSPROT","Consumer Protection","REV","Revenue","R6771","Trading Standards","04-SUPPLIES","Supplies And Services","04F","Communications and computing","5858","Phones","3540939","201911",03/02/2019 00:00:00,0,"51500","Mobile Phones - Personal Numbers","REDACTED DATA","EE LTD (AIRTIME PAYMENTS)","2382161","http://opencorporates.com/companies/gb/2382161","771592016"
"London Borough of Redbridge","http://opendatacommunities.org/doc/london-borough-council/redbridge","2BENVIRONMEN","Environmental Services","2CCONSPROT","Consumer Protection","REV","Revenue","R6771","Trading Standards","04-SUPPLIES","Supplies And Services","04F","Communications and computing","5858","Phones","3540939","201911",03/02/2019 00:00:00,0,"51500","Mobile Phones - Personal Numbers","REDACTED DATA","EE LTD (AIRTIME PAYMENTS)","2382161","http://opencorporates.com/companies/gb/2382161","771592016"
"London Borough of Redbridge","http://opendatacommunities.org/doc/london-borough-council/redbridge","2BENVIRONMEN","Environmental Services","2CCONSPROT","Consumer Protection","REV","Revenue","R6771","Trading Standards","04-SUPPLIES","Supplies And Services","04F","Communications and computing","5858","Phones","3540939","201911",03/02/2019 00:00:00,0,"51500","Mobile Phones - Personal Numbers","REDACTED DATA","EE LTD (AIRTIME PAYMENTS)","2382161","http://opencorporates.com/companies/gb/2382161","771592016"
"London Borough of Redbridge","http://opendatacommunities.org/doc/london-borough-council/redbridge","2BENVIRONMEN","Environmental Services","2CCONSPROT","Consumer Protection","REV","Revenue","R6772","Licensing Authority","04-SUPPLIES","Supplies And Services","04F","Communications and computing","5858","Phones","3540939","201911",03/02/2019 00:00:00,32.5,"51500","Mobile Phones - Personal Numbers","REDACTED DATA","EE LTD (AIRTIME PAYMENTS)","2382161","http://opencorporates.com/companies/gb/2382161","771592016"
"London Borough of Redbridge","http://opendatacommunities.org/doc/london-borough-council/redbridge","2BENVIRONMEN","Environmental Services","2CCONSPROT","Consumer Protection","REV","Revenue","R6772","Licensing Authority","04-SUPPLIES","Supplies And Services","04F","Communications and computing","5858","Phones","3540939","201911",03/02/2019 00:00:00,0,"51500","Mobile Phones - Personal Numbers","REDACTED DATA","EE LTD (AIRTIME PAYMENTS)","2382161","http://opencorporates.com/companies/gb/2382161","771592016"
"London Borough of Redbridge","http://opendatacommunities.org/doc/london-borough-council/redbridge","2BENVIRONMEN","Environmental Services","2CCONSPROT","Consumer Protection","REV","Revenue","R6772","Licensing Authority","04-SUPPLIES","Supplies And Services","04F","Communications and computing","5858","Phones","3540939","201911",03/02/2019 00:00:00,8.44,"51500","Mobile Phones - Personal Numbers","REDACTED DATA","EE LTD (AIRTIME PAYMENTS)","2382161","http://opencorporates.com/companies/gb/2382161","771592016"
"London Borough of Redbridge","http://opendatacommunities.org/doc/london-borough-council/redbridge","2BENVIRONMEN","Environmental Services","2CCONSPROT","Consumer Protection","REV","Revenue","R6772","Licensing Authority","04-SUPPLIES","Supplies And Services","04F","Communications and computing","5858","Phones","3540939","201911",03/02/2019 00:00:00,0.35,"51500","Mobile Phones - Personal Numbers","REDACTED DATA","EE LTD (AIRTIME PAYMENTS)","2382161","http://opencorporates.com/companies/gb/2382161","771592016"
"London Borough of Redbridge","http://opendatacommunities.org/doc/london-borough-council/redbridge","2BENVIRONMEN","Environmental Services","2CCONSPROT","Consumer Protection","REV","Revenue","R6772","Licensing Authority","04-SUPPLIES","Supplies And Services","04F","Communications and computing","5858","Phones","3540939","201911",03/02/2019 00:00:00,11,"51500","Mobile Phones - Personal Numbers","REDACTED DATA","EE LTD (AIRTIME PAYMENTS)","2382161","http://opencorporates.com/companies/gb/2382161","771592016"
"London Borough of Redbridge","http://opendatacommunities.org/doc/london-borough-council/redbridge","2BENVIRONMEN","Environmental Services","2CENVTLHEALT","Environmental Health","REV","Revenue","R6750","Pollution","04-SUPPLIES","Supplies And Services","04F","Communications and computing","5858","Phones","3540939","201911",03/02/2019 00:00:00,0,"51500","Mobile Phones - Personal Numbers","REDACTED DATA","EE LTD (AIRTIME PAYMENTS)","2382161","http://opencorporates.com/companies/gb/2382161","771592016"
"London Borough of Redbridge","http://opendatacommunities.org/doc/london-borough-council/redbridge","2BENVIRONMEN","Environmental Services","2CENVTLHEALT","Environmental Health","REV","Revenue","R6759","Redbridge Enforcement Officers","04-SUPPLIES","Supplies And Services","04F","Communications and computing","5858","Phones","3540939","201911",03/02/2019 00:00:00,0,"51500","Mobile Phones - Personal Numbers","REDACTED DATA","EE LTD (AIRTIME PAYMENTS)","2382161","http://opencorporates.com/companies/gb/2382161","771592016"
"London Borough of Redbridge","http://opendatacommunities.org/doc/london-borough-council/redbridge","2BENVIRONMEN","Environmental Services","2CENVTLHEALT","Environmental Health","REV","Revenue","R6759","Redbridge Enforcement Officers","04-SUPPLIES","Supplies And Services","04F","Communications and computing","5858","Phones","3540939","201911",03/02/2019 00:00:00,0,"51500","Mobile Phones - Personal Numbers","REDACTED DATA","EE LTD (AIRTIME PAYMENTS)","2382161","http://opencorporates.com/companies/gb/2382161","771592016"
"London Borough of Redbridge","http://opendatacommunities.org/doc/london-borough-council/redbridge","2BENVIRONMEN","Environmental Services","2CENVTLHEALT","Environmental Health","REV","Revenue","R6759","Redbridge Enforcement Officers","04-SUPPLIES","Supplies And Services","04F","Communications and computing","5858","Phones","3540939","201911",03/02/2019 00:00:00,0,"51500","Mobile Phones - Personal Numbers","REDACTED DATA","EE LTD (AIRTIME PAYMENTS)","2382161","http://opencorporates.com/companies/gb/2382161","771592016"
"London Borough of Redbridge","http://opendatacommunities.org/doc/london-borough-council/redbridge","2BENVIRONMEN","Environmental Services","2CENVTLHEALT","Environmental Health","REV","Revenue","R6759","Redbridge Enforcement Officers","04-SUPPLIES","Supplies And Services","04F","Communications and computing","5858","Phones","3540939","201911",03/02/2019 00:00:00,1.23,"51500","Mobile Phones - Personal Numbers","REDACTED DATA","EE LTD (AIRTIME PAYMENTS)","2382161","http://opencorporates.com/companies/gb/2382161","771592016"
"London Borough of Redbridge","http://opendatacommunities.org/doc/london-borough-council/redbridge","2BENVIRONMEN","Environmental Services","2CENVTLHEALT","Environmental Health","REV","Revenue","R6759","Redbridge Enforcement Officers","04-SUPPLIES","Supplies And Services","04F","Communications and computing","5858","Phones","3540939","201911",03/02/2019 00:00:00,0,"51500","Mobile Phones - Personal Numbers","REDACTED DATA","EE LTD (AIRTIME PAYMENTS)","2382161","http://opencorporates.com/companies/gb/2382161","771592016"
"London Borough of Redbridge","http://opendatacommunities.org/doc/london-borough-council/redbridge","2BENVIRONMEN","Environmental Services","2CENVTLHEALT","Environmental Health","REV","Revenue","R6759","Redbridge Enforcement Officers","04-SUPPLIES","Supplies And Services","04F","Communications and computing","5858","Phones","3540939","201911",03/02/2019 00:00:00,9.31,"51500","Mobile Phones - Personal Numbers","REDACTED DATA","EE LTD (AIRTIME PAYMENTS)","2382161","http://opencorporates.com/companies/gb/2382161","771592016"
"London Borough of Redbridge","http://opendatacommunities.org/doc/london-borough-council/redbridge","2BENVIRONMEN","Environmental Services","2CENVTLHEALT","Environmental Health","REV","Revenue","R6759","Redbridge Enforcement Officers","04-SUPPLIES","Supplies And Services","04F","Communications and computing","5858","Phones","3540939","201911",03/02/2019 00:00:00,0,"51500","Mobile Phones - Personal Numbers","REDACTED DATA","EE LTD (AIRTIME PAYMENTS)","2382161","http://opencorporates.com/companies/gb/2382161","771592016"
"London Borough of Redbridge","http://opendatacommunities.org/doc/london-borough-council/redbridge","2BENVIRONMEN","Environmental Services","2CENVTLHEALT","Environmental Health","REV","Revenue","R6759","Redbridge Enforcement Officers","04-SUPPLIES","Supplies And Services","04F","Communications and computing","5858","Phones","3540939","201911",03/02/2019 00:00:00,0,"51500","Mobile Phones - Personal Numbers","REDACTED DATA","EE LTD (AIRTIME PAYMENTS)","2382161","http://opencorporates.com/companies/gb/2382161","771592016"
"London Borough of Redbridge","http://opendatacommunities.org/doc/london-borough-council/redbridge","5BGFHOUSING","General Fund Housing","5CHOMELESS","Homelessness","REV","Revenue","R5630","HAC Temporary Accomodation","05-THIRD","Third Party Payments","05H","Private contractors","6900","Nightly Let Plus Charges","3540732","201911",03/02/2019 00:00:00,930,"31230","Employment and Recruitment Agencies","REDACTED DATA","ADAM HTT LIMITED T/A ADAM","7718565","http://opencorporates.com/companies/gb/7718565","198573349"
"London Borough of Redbridge","http://opendatacommunities.org/doc/london-borough-council/redbridge","5BGFHOUSING","General Fund Housing","5CHOMELESS","Homelessness","REV","Revenue","R5630","HAC Temporary Accomodation","05-THIRD","Third Party Payments","05H","Private contractors","6900","Nightly Let Plus Charges","3540732","201911",09/01/2019 00:00:00,-1779.4,"31230","Employment and Recruitment Agencies","REDACTED DATA","ADAM HTT LIMITED T/A ADAM","7718565","http://opencorporates.com/companies/gb/7718565","198573349"
"London Borough of Redbridge","http://opendatacommunities.org/doc/london-borough-council/redbridge","5BGFHOUSING","General Fund Housing","5CHOMELESS","Homelessness","REV","Revenue","R5630","HAC Temporary Accomodation","05-THIRD","Third Party Payments","05H","Private contractors","6900","Nightly Let Plus Charges","3540732","201911",03/02/2019 00:00:00,1612,"31230","Employment and Recruitment Agencies","REDACTED DATA","ADAM HTT LIMITED T/A ADAM","7718565","http://opencorporates.com/companies/gb/7718565","198573349"
"London Borough of Redbridge","http://opendatacommunities.org/doc/london-borough-council/redbridge","5BGFHOUSING","General Fund Housing","5CHOMELESS","Homelessness","REV","Revenue","R5630","HAC Temporary Accomodation","05-THIRD","Third Party Payments","05H","Private contractors","6900","Nightly Let Plus Charges","3540732","201911",03/02/2019 00:00:00,1023,"31230","Employment and Recruitment Agencies","REDACTED DATA","ADAM HTT LIMITED T/A ADAM","7718565","http://opencorporates.com/companies/gb/7718565","198573349"
"London Borough of Redbridge","http://opendatacommunities.org/doc/london-borough-council/redbridge","5BGFHOUSING","General Fund Housing","5CHOMELESS","Homelessness","REV","Revenue","R5630","HAC Temporary Accomodation","05-THIRD","Third Party Payments","05H","Private contractors","6900","Nightly Let Plus Charges","3540732","201911",03/02/2019 00:00:00,1426,"31230","Employment and Recruitment Agencies","REDACTED DATA","ADAM HTT LIMITED T/A ADAM","7718565","http://opencorporates.com/companies/gb/7718565","198573349"
"London Borough of Redbridge","http://opendatacommunities.org/doc/london-borough-council/redbridge","5BGFHOUSING","General Fund Housing","5CHOMELESS","Homelessness","REV","Revenue","R5630","HAC Temporary Accomodation","05-THIRD","Third Party Payments","05H","Private contractors","6900","Nightly Let Plus Charges","3540732","201911",03/02/2019 00:00:00,1767,"31230","Employment and Recruitment Agencies","REDACTED DATA","ADAM HTT LIMITED T/A ADAM","7718565","http://opencorporates.com/companies/gb/7718565","198573349"
"London Borough of Redbridge","http://opendatacommunities.org/doc/london-borough-council/redbridge","5BGFHOUSING","General Fund Housing","5CHOMELESS","Homelessness","REV","Revenue","R5630","HAC Temporary Accomodation","05-THIRD","Third Party Payments","05H","Private contractors","6900","Nightly Let Plus Charges","3540732","201911",03/02/2019 00:00:00,1426,"31230","Employment and Recruitment Agencies","REDACTED DATA","ADAM HTT LIMITED T/A ADAM","7718565","http://opencorporates.com/companies/gb/7718565","198573349"
"London Borough of Redbridge","http://opendatacommunities.org/doc/london-borough-council/redbridge","5BGFHOUSING","General Fund Housing","5CHOMELESS","Homelessness","REV","Revenue","R5630","HAC Temporary Accomodation","05-THIRD","Third Party Payments","05H","Private contractors","6900","Nightly Let Plus Charges","3540732","201911",03/02/2019 00:00:00,1333,"31230","Employment and Recruitment Agencies","REDACTED DATA","ADAM HTT LIMITED T/A ADAM","7718565","http://opencorporates.com/companies/gb/7718565","198573349"
"London Borough of Redbridge","http://opendatacommunities.org/doc/london-borough-council/redbridge","5BGFHOUSING","General Fund Housing","5CHOMELESS","Homelessness","REV","Revenue","R5630","HAC Temporary Accomodation","05-THIRD","Third Party Payments","05H","Private contractors","6900","Nightly Let Plus Charges","3540732","201911",03/02/2019 00:00:00,1612,"31230","Employment and Recruitment Agencies","REDACTED DATA","ADAM HTT LIMITED T/A ADAM","7718565","http://opencorporates.com/companies/gb/7718565","198573349"
"London Borough of Redbridge","http://opendatacommunities.org/doc/london-borough-council/redbridge","5BGFHOUSING","General Fund Housing","5CHOMELESS","Homelessness","REV","Revenue","R5630","HAC Temporary Accomodation","05-THIRD","Third Party Payments","05H","Private contractors","6900","Nightly Let Plus Charges","3540732","201911",03/02/2019 00:00:00,930,"31230","Employment and Recruitment Agencies","REDACTED DATA","ADAM HTT LIMITED T/A ADAM","7718565","http://opencorporates.com/companies/gb/7718565","198573349"
"London Borough of Redbridge","http://opendatacommunities.org/doc/london-borough-council/redbridge","5BGFHOUSING","General Fund Housing","5CHOMELESS","Homelessness","REV","Revenue","R5630","HAC Temporary Accomodation","05-THIRD","Third Party Payments","05H","Private contractors","6900","Nightly Let Plus Charges","3540732","201911",03/02/2019 00:00:00,1550,"31230","Employment and Recruitment Agencies","REDACTED DATA","ADAM HTT LIMITED T/A ADAM","7718565","http://opencorporates.com/companies/gb/7718565","198573349"
